Code,Company,CompanyFullName,Summary,Price,PriceChange,52WRate,TotalQuarters,TotalLosingQuarters,MostRecentLosingQuarter,5YEarningGrowth,10YEarningGrowth,EXDate,PaymentDate,Amount,Indicator,Category,High,Low,Volume,Volume (B/S),Price Bid/Ask,52w,ROE,P/E,EPS,DPS,DY,PTBV,RPS,PSR,Market Cap
0001,SCOMNET (0001) [s],SUPERCOMNET TECHNOLOGIES BHD,,0.115,0.000 (0.00%),0.2667,51,23,1,18.26%,38.53%,6/26/2012,7/18/2012,0.0050,Currency,Ind-Prod - Ace Market,0.115,0.115,12000,862600 / 1726200,0.115 / 0.120,0.095 - 0.170,1.75,41.07,0.28,0.00,0.00%,0.72,15.71,0.73,27.9M
0002,KOTRA (0002) [s],KOTRA INDUSTRIES BHD,,1.130,0.000 (0.00%),0.1163,51,9,2,-7.78%,-25.93%,,,,,Consumer Products - Main Market,1.130,1.130,-,4000 / 16000,1.020 / 1.100,1.080 - 1.510,3.20,38.83,2.91,0.00,0.00%,1.24,113.16,1,149.5M
0003,IE (0003),0.000 (0.00%),,0.020,0.000 (0.00%),,13,9,0,NA,NA,,,,,Technology - Ace Market,-,-,-,0 / 0,- / -,,0.00,0,0,0,0.00%,-0.83,0,,2.1M
0005,PALETTE (0005) [s],PALETTE MULTIMEDIA BHD,,0.040,+0.005 (+14.29%),0.2500,50,30,0,-20.22%,-13.49%,,,,,Technology - Ace Market,0.040,0.035,112000,250000 / 3498400,0.035 / 0.040,0.030 - 0.070,-83.45,-1.69,-2.37,0.00,0.00%,1.41,0.50,8,11.6M
0006,PINEAPP (0006) [s],PINEAPPLE RESOURCES BHD,,0.325,0.000 (0.00%),0.3056,51,17,29,-11.89%,19.66%,,,,,Trad/Serv - Ace Market,0.325,0.325,-,50000 / 15400,0.320 / 0.350,0.270 - 0.450,1.49,39.63,0.82,0.00,0.00%,0.59,113.46,0.29,15.8M
0007,PUC (0007) [s],PUC FOUNDER (MSC) BHD,,0.125,0.000 (0.00%),0.0000,51,14,5,26.27%,18.52%,9/26/2013,10/18/2013,6.0000,Percentage,Technology - Ace Market,0.125,0.120,1697800,15006300 / 1560900,0.120 / 0.125,0.125 - 0.250,0.06,18.12,0.69,0.00,0.00%,0.01,4.28,2.92,133.2M
0008,WILLOW (0008),-0.010 (-1.06%),,0.930,-0.010 (-1.06%),0.9231,51,7,41,11.74%,9.72%,5/13/2015,5/28/2015,20.0000,Percentage,Technology - Main Market,0.935,0.920,55000,6000 / 24000,0.920 / 0.930,0.630 - 0.955,16.66,12.95,7.18,2.01,2.16%,2.16,47.13,1.97,226.3M
0009,YTLE (0009),+0.010 (+1.87%),,0.545,+0.010 (+1.87%),0.2162,51,0,51,11.80%,11.65%,10/29/2014,11/14/2014,0.0400,Currency,Technology - Ace Market,0.560,0.530,176200,2300 / 15600,0.530 / 0.545,0.505 - 0.690,19.14,20.34,2.68,3.99,7.32%,3.89,6.55,8.32,733.2M
0010,IRIS (0010) [s],IRIS CORPORATION BHD,,0.240,0.000 (0.00%),0.0851,50,7,0,-80.26%,3.41%,11/6/2013,11/29/2013,0.0045,Currency,Technology - Ace Market,0.245,0.235,2570700,137300 / 365600,0.240 / 0.245,0.220 - 0.455,-0.04,-23.76,-1.01,0.00,0.00%,0.01,27.67,0.87,489.7M
0011,BTECH (0011) [s],BRITE-TECH BHD,,0.290,+0.010 (+3.57%),0.6071,51,4,17,21.87%,9.38%,6/11/2015,6/23/2015,0.0063,Currency,Trad/Serv - Ace Market,0.290,0.285,20300,200000 / 11700,0.285 / 0.300,0.205 - 0.345,10.79,14.15,2.05,0.63,2.17%,1.53,10.03,2.89,73.1M
0012,3A (0012) [s],THREE-A RESOURCES BHD,,1.100,-0.010 (-0.90%),0.8605,51,0,51,-5.62%,6.70%,12/18/2014,1/5/2015,7.0000,Percentage,Ind-Prod - Main Market,1.110,1.080,276000,20000 / 1000,1.090 / 1.100,0.730 - 1.160,7.65,24.02,4.58,1.40,1.27%,1.84,78.60,1.4,433.0M
0016,SYMPHNY (0016) [s],SYMPHONY HOUSE BHD,,0.145,-0.005 (-3.33%),0.1600,49,16,2,-12.81%,-20.98%,3/11/2010,4/2/2010,0.0050,Currency,Trad/Serv - Main Market,0.145,0.145,236200,255800 / 204500,0.145 / 0.150,0.125 - 0.250,0.13,725,0.02,0.00,0.00%,0.91,12.47,1.16,95.7M
0017,M3TECH (0017) [s],M3 TECHNOLOGIES(ASIA)BHD,,0.135,0.000 (0.00%),0.0385,50,13,0,-46.89%,-28.55%,12/7/2011,1/6/2012,5.0000,Percentage,Technology - Ace Market,0.135,0.135,15000,100000 / 131000,0.130 / 0.150,0.130 - 0.260,-52.82,-1.72,-7.86,0.00,0.00%,0.91,18.74,0.72,23.9M
0018,OMEDIA (0018),+0.010 (+3.23%),,0.320,+0.010 (+3.23%),1.0526,50,44,0,-11.65%,-9.02%,,,,,Technology - Ace Market,0.330,0.305,1325300,90100 / 84600,0.315 / 0.320,0.120 - 0.310,-44.81,-23.19,-1.38,0.00,0.00%,10.39,0.77,41.56,68.3M
0020,NETX (0020) [s],NETX HOLDINGS BHD,,0.055,+0.005 (+10.00%),0.1667,49,22,0,-4.03%,-12.34%,,,,,Technology - Ace Market,0.055,0.050,256800,16012700 / 6560400,0.050 / 0.055,0.050 - 0.080,-9.80,-11.22,-0.49,0.00,0.00%,1.10,0.71,7.75,34.4M
0021,GHLSYS (0021) [s],GHL SYSTEMS BHD,,1.090,+0.040 (+3.81%),0.6923,50,14,5,162.81%,-22.99%,7/7/2009,7/21/2009,1.0000,Ratio,Technology - Main Market,1.110,1.030,951800,281700 / 9500,1.080 / 1.090,0.595 - 1.310,3.77,81.34,1.34,0.00,0.00%,3.07,30.06,3.63,700.7M
0022,CYBERT (0022) [s],CYBERTOWERS BHD,,0.055,+0.005 (+10.00%),0.4706,48,33,0,-31.71%,-9.35%,,,,,Technology - Ace Market,0.055,0.050,20500,230000 / 207800,0.045 / 0.055,0.015 - 0.100,61.71,-1.27,-4.32,0.00,0.00%,-0.79,0.02,275,5.5M
0023,IFCAMSC (0023) [s],IFCA MSC BHD,,1.220,+0.040 (+3.39%),0.6353,48,17,8,39.46%,17.33%,6/30/2015,7/30/2015,0.0100,Currency,Technology - Ace Market,1.240,1.140,14506000,214800 / 179900,1.220 / 1.230,0.140 - 1.840,34.38,22.18,5.50,0.00,0.00%,7.63,19.41,6.29,673.5M
0024,JAG (0024) [s],JAG BERHAD,,0.120,0.000 (0.00%),0.0000,48,32,6,40.08%,26.35%,12/3/2014,12/19/2014,0.0025,Currency,Ind-Prod - Ace Market,0.120,0.115,450300,7004600 / 1886000,0.115 / 0.120,0.120 - 0.430,4.24,25.53,0.47,0.44,3.67%,1.08,10.78,1.11,128.0M
0025,LNGRES (0025) [s],LNG RESOURCES BHD,,0.165,0.000 (0.00%),0.1034,48,4,0,-15.53%,-13.49%,11/28/2013,12/18/2013,0.0030,Currency,Ind-Prod - Ace Market,0.165,0.165,20000,45900 / 50000,0.165 / 0.170,0.150 - 0.295,-0.21,-330,-0.05,0.00,0.00%,0.69,23.34,0.71,39.9M
0026,NOVAMSC (0026) [s],NOVA MSC BHD,,0.150,+0.005 (+3.45%),0.4516,48,16,0,233.86%,59.50%,,,,,Technology - Ace Market,0.150,0.140,6902000,4193200 / 4250900,0.145 / 0.150,0.080 - 0.235,6.50,28.85,0.52,0.00,0.00%,1.88,6.51,2.3,74.4M
0028,SCOPE (0028) [s],SCOPE INDUSTRIES BHD,,0.180,0.000 (0.00%),0.0000,47,22,0,-9.76%,-14.57%,11/25/2011,12/15/2011,0.0050,Currency,Ind-Prod - Ace Market,0.180,0.180,-,22000 / 30000,0.160 / 0.180,0.180 - 0.320,-2.57,-32.73,-0.55,0.00,0.00%,0.84,3.94,4.57,91.0M
0029,DIGISTA (0029),0.000 (0.00%),,0.205,0.000 (0.00%),0.0385,47,8,1,-142.60%,-97.01%,4/19/2010,5/4/2010,10.0000,Percentage,Technology - Main Market,0.205,0.205,206000,50000 / 168000,0.205 / 0.210,0.200 - 0.330,-4.62,-23.84,-0.86,0.00,0.00%,1.10,35.45,0.58,93.5M
0030,EBWORX (0030),0.000 (0.00%),,0.900,0.000 (0.00%),,12,0,12,NA,NA,,,,,Technology - Ace Market,-,-,-,0 / 0,- / -,,0.00,0,0,0,0.00%,2.49,0,,181.3M
0032,REDTONE (0032) [s],REDTONE INTERNATIONAL BHD,,0.705,-0.005 (-0.70%),0.0278,45,12,13,39.85%,1.22%,1/22/2015,2/24/2015,0.0110,Currency,Trad/Serv - Ace Market,0.710,0.700,474800,19700 / 109900,0.705 / 0.710,0.700 - 0.880,9.55,25.36,2.78,0.76,1.08%,2.42,20.86,3.38,526.8M
0034,INGENCO (0034) [s],INGENUITY CONSOLIDATED BERHAD,,0.065,-0.005 (-7.14%),0.4000,46,33,0,-31.81%,-12.76%,,,,,Technology - Ace Market,0.065,0.065,1312200,3256400 / 6858200,0.065 / 0.070,0.045 - 0.095,-28.49,-2.51,-2.59,0.00,0.00%,0.72,42.67,0.15,62.0M
0035,OPCOM (0035) [s],OPCOM HOLDINGS BHD,,0.785,+0.005 (+0.64%),0.3571,46,1,35,-29.91%,-1.73%,8/1/2014,8/29/2014,0.0125,Currency,Technology - Ace Market,0.795,0.775,255200,17100 / 20700,0.785 / 0.790,0.510 - 1.280,5.91,28.14,2.79,1.00,1.27%,1.66,51.18,1.53,126.6M
0036,KGROUP (0036),0.000 (0.00%),,0.060,0.000 (0.00%),0.2000,47,23,0,-21.53%,-3.57%,,,,,Technology - Ace Market,0.060,0.060,-,116000 / 1184000,0.055 / 0.060,0.055 - 0.080,-13.57,-6.32,-0.95,0.00,0.00%,0.86,10.42,0.58,34.8M
0037,RGB (0037),+0.010 (+7.41%),,0.145,+0.010 (+7.41%),0.4706,46,13,13,176.44%,-25.86%,6/26/2015,7/15/2015,0.0020,Currency,Trad/Serv - Main Market,0.145,0.135,8601200,6918600 / 8585800,0.140 / 0.145,0.105 - 0.190,16.20,8.95,1.62,0.09,0.62%,1.45,16.67,0.87,188.8M
0038,PTB (0038) [s],PLASTRADE TECHNOLOGY BHD,,0.135,0.000 (0.00%),0.2308,46,14,1,31.16%,-14.19%,,,,,Ind-Prod - Ace Market,0.135,0.130,103000,350000 / 28600,0.130 / 0.135,0.120 - 0.185,0.00,0,-0.00,0.00,0.00%,0.64,33.02,0.41,20.3M
0039,ASIAEP (0039) [s],ASIAEP RESOURCES BERHAD,,0.010,0.000 (0.00%),NaN,37,21,0,26.74%,NA,,,,,Technology - Ace Market,0.010,0.010,-,0 / 0,0.000 / 0.000,0.010 - 0.010,20.75,-4.55,-0.22,0.00,0.00%,-0.94,0.02,50,8.1M
0040,OPENSYS (0040) [s],OPENSYS (M) BHD,,0.370,+0.010 (+2.78%),0.4737,46,4,39,18.29%,9.77%,3/27/2015,4/22/2015,5.0000,Percentage,Technology - Ace Market,0.370,0.350,5596100,579100 / 331200,0.365 / 0.370,0.280 - 0.470,16.81,12.05,3.07,1.00,2.70%,2.03,28.39,1.3,82.7M
0041,PANPAGE (0041) [s],PANPAGES BERHAD,,0.300,+0.005 (+1.69%),0.1250,45,4,1,-152.91%,-2.47%,9/26/2013,10/28/2013,20.0000,Percentage,Technology - Main Market,0.305,0.300,30000,400000 / 30000,0.295 / 0.300,0.285 - 0.405,-7.32,-15.71,-1.91,0.00,0.00%,1.15,15.57,1.93,72.4M
0042,MOBIF (0042),0.000 (0.00%),,,0.000 (0.00%),,7,7,0,NA,NA,,,,,Technology - Ace Market,-,-,-,0 / 0,- / -,,0.00,0,0,0,0.00%,0.00,0,,0.0M
0043,MTRONIC (0043) [s],METRONIC GLOBAL BHD,,0.095,+0.005 (+5.56%),0.4286,45,15,5,15.82%,-23.46%,,,,,Trad/Serv - Main Market,0.095,0.090,3015800,15042600 / 887000,0.090 / 0.095,0.080 - 0.115,2.29,59.38,0.16,0.00,0.00%,1.36,4.81,1.98,66.3M
0045,GNB (0045) [s],G NEPTUNE BERHAD,,0.050,+0.010 (+25.00%),0.5000,45,33,0,38.81%,5.72%,,,,,Technology - Ace Market,0.050,0.045,1319100,510900 / 1154100,0.045 / 0.050,0.030 - 0.070,37.20,6.49,0.77,0.00,0.00%,2.42,1.01,4.95,14.4M
0047,PERISAI (0047) [s],PERISAI PETROLEUM TEKNOLOGI,,0.455,+0.020 (+4.60%),0.0462,44,6,4,9.98%,9.82%,,,,,Trad/Serv - Main Market,0.455,0.430,13945100,603700 / 1592500,0.450 / 0.455,0.400 - 1.590,1.90,22.86,1.99,0.00,0.00%,0.43,14.08,3.23,542.7M
0048,ANCOMLB (0048) [s],ANCOM LOGISTICS BERHAD,,0.135,0.000 (0.00%),0.2941,44,18,0,79.92%,-16.06%,1/20/2014,1/30/2014,0.0400,Currency,Trad/Serv - Ace Market,0.135,0.135,-,100000 / 195100,0.135 / 0.140,0.110 - 0.195,-2.14,-90,-0.15,0.00,0.00%,1.93,6.79,1.99,63.9M
0049,OCNCASH (0049) [s],OCEANCASH PACIFIC BHD,,0.365,+0.005 (+1.39%),0.6944,44,9,2,14.08%,12.23%,12/8/2014,12/30/2014,0.0060,Currency,Ind-Prod - Ace Market,0.370,0.350,1618300,141600 / 370800,0.365 / 0.370,0.240 - 0.420,8.87,15.21,2.40,0.60,1.64%,1.35,33.99,1.07,81.4M
0050,SYSTECH (0050) [s],SYSTECH BHD,,0.275,+0.010 (+3.77%),0.5690,43,19,15,33.55%,NA,9/10/2014,9/26/2014,3.0000,Percentage,Technology - Ace Market,0.280,0.260,3747600,176700 / 470000,0.270 / 0.275,0.110 - 0.400,7.90,28.95,0.95,0.30,1.09%,2.29,3.27,8.41,87.3M
0051,CUSCAPI (0051) [s],CUSCAPI BHD,,0.180,+0.005 (+2.86%),0.1509,44,9,2,-206.13%,-27.45%,3/27/2013,4/18/2013,0.0150,Currency,Technology - Main Market,0.180,0.175,294600,139900 / 220500,0.175 / 0.180,0.140 - 0.405,-8.78,-11.39,-1.58,0.00,0.00%,1.00,11.92,1.51,78.4M
0053,OSKVI (0053),-0.005 (-1.00%),,0.495,-0.005 (-1.00%),-0.0294,43,21,1,459.14%,NA,6/5/2014,6/20/2014,0.0200,Currency,Finance - Ace Market,0.500,0.460,17300,5800 / 1800,0.495 / 0.500,0.500 - 0.670,-10.66,-4.99,-9.91,2.00,4.04%,0.53,48.89,1.01,96.9M
0054,KARYON (0054) [s],KARYON INDUSTRIES BHD,,0.205,0.000 (0.00%),0.0444,43,1,25,1.90%,NA,6/17/2015,7/3/2015,4.0000,Percentage,Ind-Prod - Main Market,0.205,0.205,151500,8500 / 405000,0.205 / 0.210,0.195 - 0.420,4.88,24.7,0.83,0.83,4.05%,1.21,28.36,0.72,97.5M
0055,SERSOL (0055) [s],SERSOL BERHAD,,0.300,0.000 (0.00%),0.4091,43,27,1,-13.95%,NA,,,,,Ind-Prod - Ace Market,0.305,0.295,411700,296300 / 267000,0.300 / 0.305,0.210 - 0.430,-25.43,-16.85,-1.78,0.00,0.00%,4.29,8.91,3.37,64.6M
0056,GRANFLO (0056) [s],GRAND-FLO BERHAD,,0.285,+0.010 (+3.64%),0.3333,43,3,6,8.46%,NA,6/4/2015,6/22/2015,0.0100,Currency,Technology - Main Market,0.285,0.275,110200,57000 / 65000,0.280 / 0.285,0.250 - 0.355,5.92,17.38,1.64,0.72,2.53%,1.03,20.55,1.39,136.8M
0058,JOBST (0058) [s],JOBSTREET CORPORATION BHD,,1.960,0.000 (0.00%),0.6350,43,0,43,35.44%,NA,7/3/2015,7/23/2015,0.0325,Currency,Trad/Serv - Main Market,1.960,1.950,31500,24800 / 32700,1.950 / 1.960,0.255 - 2.940,2.56,196,1471.89,1446.36,0.51%,5.03,105.46,1.86,258.8M
0059,MMODE (0059),0.000 (0.00%),,0.400,0.000 (0.00%),0.0241,43,2,39,10.79%,NA,6/1/2015,6/19/2015,0.0050,Currency,Trad/Serv - Main Market,0.400,0.395,143900,800 / 20000,0.400 / 0.405,0.390 - 0.805,10.79,8.87,4.51,1.00,2.50%,0.96,51.60,0.78,65.1M
0060,TMS (0060),0.000 (0.00%),,0.050,0.000 (0.00%),0.1667,43,32,0,-7.71%,NA,,,,,Technology - Ace Market,0.050,0.050,80000,9374900 / 2104500,0.050 / 0.055,0.045 - 0.075,-4.18,-14.71,-0.34,0.00,0.00%,0.61,29.51,0.17,43.5M
0062,TCUBES (0062),0.000 (0.00%),,0.030,0.000 (0.00%),,13,10,0,NA,NA,,,,,Technology - Ace Market,-,-,-,0 / 0,- / -,,0.00,0,0,0,0.00%,0.67,0,,4.0M
0064,EFFICEN (0064) [s],EFFICIENT E-SOLUTIONS BHD,,0.260,0.000 (0.00%),0.3023,44,1,13,-37.74%,-7.62%,3/13/2014,3/28/2014,2.0000,Percentage,Trad/Serv - Main Market,0.265,0.250,1798900,691600 / 117000,0.255 / 0.260,0.195 - 0.410,5.22,27.66,0.94,0.00,0.00%,1.44,6.81,3.82,184.4M
0065,EFORCE (0065),+0.005 (+0.83%),,0.610,+0.005 (+0.83%),0.2529,43,0,43,5.14%,NA,6/10/2015,6/30/2015,0.0100,Currency,Technology - Main Market,0.615,0.600,329100,109600 / 9200,0.605 / 0.610,0.500 - 0.935,20.00,14.52,4.20,2.01,3.30%,2.90,11.05,5.52,126.1M
0066,VSOLAR (0066),+0.005 (+4.35%),,0.120,+0.005 (+4.35%),0.0370,43,38,0,-9.94%,NA,,,,,Technology - Ace Market,0.125,0.115,13240100,5541800 / 2204600,0.120 / 0.125,0.110 - 0.380,-21.01,-10.26,-1.17,0.00,0.00%,2.15,0.51,23.53,36.4M
0067,EFUTURE (0067),-0.055 (-100.00%),,,-0.055 (-100.00%),,9,8,1,NA,NA,,,,,Ind-Prod - Ace Market,-,-,-,0 / 0,- / -,,0.00,0,0,0,0.00%,0.00,0,,0.0M
0068,ASDION (0068) [s],ASDION BHD,,1.430,-0.020 (-1.38%),0.9322,43,27,0,2.36%,NA,,,,,Technology - Ace Market,1.460,1.430,2115100,25600 / 41300,1.430 / 1.440,0.330 - 1.510,-22.61,-41.69,-3.43,0.00,0.00%,9.43,4.38,32.65,161.2M
0069,INSTACO (0069) [s],INSTACOM GROUP BERHAD,,0.120,+0.005 (+4.35%),0.1250,42,11,1,227.52%,NA,,,,,Technology - Ace Market,0.120,0.115,3275300,2996400 / 98400,0.115 / 0.120,0.100 - 0.260,-0.03,-1200,-0.01,0.00,0.00%,0.38,4.73,2.54,121.4M
0070,MQTECH (0070) [s],MQ TECHNOLOGY BHD,,0.100,0.000 (0.00%),0.2632,43,14,2,-27.30%,NA,,,,,Ind-Prod - Ace Market,0.105,0.100,1532000,1403700 / 950000,0.100 / 0.105,0.075 - 0.170,-12.50,-8,-1.25,0.00,0.00%,1.00,6.37,1.57,25.4M
0071,FONICS (0071),0.000 (0.00%),,0.015,0.000 (0.00%),,13,11,0,NA,NA,,,,,Technology - Ace Market,-,-,-,0 / 0,- / -,,0.30,-3.66,-0.41,0.00,0.00%,-0.01,0.00,,6.1M
0072,AT (0072) [s],AT SYSTEMATIZATION BHD,,0.095,+0.005 (+5.56%),0.2857,41,18,0,6.79%,NA,,,,,Ind-Prod - Ace Market,0.095,0.090,4094100,5896200 / 4215800,0.090 / 0.095,0.075 - 0.145,1.71,52.78,0.18,0.00,0.00%,0.90,5.94,1.6,37.4M
0074,GOCEAN (0074) [s],GREEN OCEAN CORPORATION BERHAD,,0.120,+0.010 (+9.09%),0.1176,41,22,2,35.20%,NA,,,,,Technology - Ace Market,0.120,0.115,452300,212600 / 218100,0.115 / 0.120,0.110 - 0.195,-3.54,-44.44,-0.27,0.00,0.00%,1.57,21.55,0.56,31.6M
0075,MEXTER (0075) [s],MEXTER TECHNOLOGY BHD,,0.085,0.000 (0.00%),0.1538,42,24,3,-27.29%,NA,,,,,Technology - Ace Market,0.085,0.085,18300,401700 / 75000,0.085 / 0.090,0.075 - 0.140,-1.17,-121.43,-0.07,0.00,0.00%,1.42,22.14,0.38,16.7M
0076,CAROTEC (0076),0.000 (0.00%),,0.020,0.000 (0.00%),,11,8,0,NA,NA,,,,,Ind-Prod - Ace Market,-,-,-,0 / 0,- / -,,0.00,0,0,0,0.00%,4.00,0,,18.2M
0077,KANNAL (0077),0.000 (0.00%),,,0.000 (0.00%),,8,8,0,NA,NA,,,,,Trad/Serv - Ace Market,-,-,-,0 / 0,- / -,,0.00,0,0,0,0.00%,0.00,0,,0.0M
0078,GDEX (0078) [s],GD EXPRESS CARRIER BHD,,1.350,-0.010 (-0.74%),0.0938,41,0,41,22.38%,NA,1/6/2015,2/6/2015,22.5000,Percentage,Trad/Serv - Main Market,1.390,1.300,576400,19600 / 10000,1.350 / 1.360,1.260 - 2.220,18.55,66.18,2.04,1.12,0.83%,12.27,15.44,8.74,1631.2M
0079,CWORKS (0079) [s],CWORKS SYSTEMS BHD,,0.220,0.000 (0.00%),0.0294,41,23,0,14.61%,NA,,,,,Technology - Ace Market,0.220,0.220,-,15000 / 15000,0.220 / 0.240,0.215 - 0.385,-5.59,-55,-0.40,0.00,0.00%,3.07,4.92,4.47,26.6M
0080,RAYA (0080),-0.030 (-18.18%),,0.135,-0.030 (-18.18%),0.0000,41,27,1,95.66%,NA,,,,,Trad/Serv - Ace Market,0.140,0.135,9800,100600 / 97000,0.135 / 0.160,0.135 - 0.230,-24.56,-10.63,-1.27,0.00,0.00%,2.61,11.37,1.19,17.6M
0081,IDEAL (0081),0.000 (0.00%),,0.430,0.000 (0.00%),0.2680,39,20,12,123.59%,NA,,,,,Trad/Serv - Ace Market,0.430,0.430,20000,50000 / 5000,0.440 / 0.450,0.300 - 0.785,13.67,14.98,2.87,0.00,0.00%,2.05,5.91,7.28,70.5M
0082,GPACKET (0082) [s],GREEN PACKET BHD,,0.210,0.000 (0.00%),0.0238,41,28,0,165.30%,NA,,,,,Technology - Main Market,0.210,0.210,250500,100 / 120000,0.210 / 0.215,0.205 - 0.415,20.30,5.17,4.06,0.00,0.00%,1.05,48.59,0.43,144.0M
0083,NOTION (0083) [s],NOTION VTEC BHD,,0.385,0.000 (0.00%),0.1169,41,6,0,-152.40%,NA,12/23/2013,1/15/2014,0.0100,Currency,Technology - Main Market,0.385,0.370,119700,200 / 3000,0.375 / 0.385,0.340 - 0.725,-6.37,-5.72,-6.73,0.00,0.00%,0.36,85.62,0.45,103.3M
0084,TECFAST (0084),0.000 (0.00%),,0.180,0.000 (0.00%),0.3158,41,11,1,98.13%,NA,5/22/2014,6/9/2014,5.0000,Percentage,Ind-Prod - Ace Market,0.180,0.180,-,550000 / 56300,0.175 / 0.190,0.150 - 0.245,3.94,43.9,0.41,0.54,3.00%,1.73,12.92,1.39,27.5M
0085,MLAB (0085),0.000 (0.00%),,0.085,0.000 (0.00%),0.0000,40,31,1,7.77%,NA,,,,,Technology - Ace Market,0.085,0.085,-,250000 / 50000,0.085 / 0.095,0.085 - 0.140,-15.53,-17.71,-0.48,0.00,0.00%,2.75,1.55,5.48,15.9M
0086,YGL (0086) [s],YGL CONVERGENCE BHD,,0.195,0.000 (0.00%),0.2740,41,21,1,-12.68%,NA,,,,,Technology - Ace Market,0.200,0.190,306100,211400 / 306800,0.195 / 0.200,0.095 - 0.460,-1.48,-177.27,-0.11,0.00,0.00%,2.62,4.22,4.62,34.3M
0088,INSBIO (0088),0.000 (0.00%),,,0.000 (0.00%),,34,13,0,-24.20%,NA,10/6/2010,10/28/2010,5.5000,Percentage,Technology - Ace Market,-,-,-,0 / 0,- / -,,378.00,0,-3.78,0.00,0.00%,0.00,1.97,0,-M
0089,TEXCYCL (0089) [s],TEX CYCLE TECHNOLOGY (M) BHD,,0.510,0.000 (0.00%),0.0741,40,2,1,-5.26%,NA,7/3/2015,7/24/2015,2.5000,Percentage,Trad/Serv - Ace Market,0.510,0.510,100000,1000 / 110000,0.510 / 0.530,0.500 - 0.635,4.51,28.98,1.76,0.50,0.98%,1.31,12.43,4.1,86.2M
0090,ELSOFT (0090) [s],ELSOFT RESEARCH BHD,,1.800,0.000 (0.00%),0.7875,41,1,21,25.58%,NA,3/16/2015,4/15/2015,0.0500,Currency,Technology - Main Market,1.810,1.770,120300,13400 / 12600,1.800 / 1.810,1.170 - 1.970,30.37,13.78,13.06,4.00,2.22%,4.19,28.30,6.36,325.8M
0091,DAYA (0091) [s],DAYA MATERIALS BHD,,0.115,0.000 (0.00%),0.0784,40,3,0,-129.15%,NA,7/29/2013,8/15/2013,2.5000,Percentage,Trad/Serv - Main Market,0.120,0.110,5233500,3194100 / 3620400,0.115 / 0.120,0.095 - 0.350,-11.59,-5.67,-2.03,0.00,0.00%,0.66,42.80,0.27,190.0M
0092,MTOUCHE (0092),0.000 (0.00%),,0.145,0.000 (0.00%),0.0370,40,15,0,4,780.22%,NA,4/4/2013,4/22/2013,0.0100,Currency,Technology - Ace Market,0.145,0.145,30000,20000 / 7400,0.140 / 0.145,0.140 - 0.275,-71.00,-4.08,-3.55,0.00,0.00%,2.90,11.36,1.28,31.2M
0093,SOLUTN (0093) [s],SOLUTION ENGINEERING HOLDINGS,,0.305,+0.005 (+1.67%),0.7619,40,5,9,1.18%,NA,11/28/2014,12/12/2014,0.0100,Currency,Technology - Ace Market,0.310,0.300,2033500,745200 / 153500,0.300 / 0.305,0.145 - 0.355,16.00,12.98,2.35,1.00,3.28%,2.08,20.78,1.47,59.9M
0094,INIX (0094) [s],INIX TECHNOLOGIES HOLDINGS BHD,,0.135,-0.005 (-3.57%),0.3846,41,20,0,-50.27%,NA,,,,,Technology - Ace Market,0.135,0.130,95800,1101200 / 67600,0.130 / 0.135,0.085 - 0.215,-17.03,-15.7,-0.86,0.00,0.00%,2.67,4.06,3.33,18.8M
0095,XINGHE (0095),0.000 (0.00%),,0.070,0.000 (0.00%),0.0769,41,22,3,47.63%,NA,8/20/2015,9/21/2015,0.0020,Currency,Trad/Serv - Ace Market,0.070,0.070,4630700,14786200 / 499900,0.070 / 0.070,0.055 - 0.250,9.95,3.35,2.09,0.00,0.00%,0.33,45.12,0.16,164.4M
0096,NEXGRAM (0096) [s],NEXGRAM HOLDINGS BERHAD,,0.100,0.000 (0.00%),0.5000,39,5,24,20.63%,NA,,,,,Technology - Ace Market,0.105,0.100,1745500,100200 / 50000,0.105 / 0.100,0.055 - 0.145,5.45,13.51,0.74,0.00,0.00%,0.74,7.34,1.36,188.2M
0097,VITROX (0097) [s],VITROX CORPORATION BHD,,3.380,+0.030 (+0.90%),0.7386,40,2,12,17.27%,NA,6/26/2015,7/24/2015,0.0350,Currency,Technology - Main Market,3.380,3.350,35900,14400 / 1000,3.360 / 3.380,2.080 - 3.840,29.45,14.48,23.35,3.99,1.18%,4.26,77.37,4.37,788.0M
0098,BAHVEST (0098) [s],BORNEO AQUA HARVEST BHD,,0.860,-0.020 (-2.27%),0.1579,40,18,1,-65.28%,NA,,,,,Technology - Ace Market,0.875,0.845,85200,23000 / 12900,0.845 / 0.860,0.815 - 1.100,-1.70,-156.36,-0.55,0.00,0.00%,2.65,4.05,21.23,365.1M
0099,SCICOM (0099) [s],SCICOM (MSC) BHD,,2.040,-0.020 (-0.97%),0.7692,39,1,24,16.82%,NA,6/4/2015,6/22/2015,0.0200,Currency,Trad/Serv - Main Market,2.050,2.000,121000,27600 / 5000,2.040 / 2.050,1.040 - 2.340,39.27,23.61,8.64,6.83,3.35%,9.27,48.79,4.18,725.1M
0100,ESCERAM (0100) [s],ES CERAMICS TECHNOLOGY BHD,,0.275,+0.005 (+1.85%),0.7073,39,4,15,44.78%,NA,1/25/2008,2/6/2008,0.0070,RM,Ind-Prod - Ace Market,0.280,0.265,1221900,340700 / 43100,0.270 / 0.275,0.130 - 0.335,14.82,10.91,2.52,0.00,0.00%,1.62,12.74,2.16,54.2M
0101,TMCLIFE (0101),0.000 (0.00%),,0.585,0.000 (0.00%),0.5385,40,13,6,120.18%,NA,10/24/2014,11/12/2014,0.0030,Currency,Trad/Serv - Main Market,0.590,0.575,1575700,73800 / 57100,0.585 / 0.590,0.410 - 0.735,2.18,81.25,0.72,0.21,0.36%,1.77,8.25,7.09,701.7M
0102,CONNECT (0102) [s],CONNECTCOUNTY HOLDINGS BHD,,0.305,+0.035 (+12.96%),1.1379,40,24,1,-26.73%,NA,,,,,Ind-Prod - Ace Market,0.305,0.270,17388500,263800 / 467600,0.300 / 0.305,0.140 - 0.285,-12.11,-27.98,-1.09,0.00,0.00%,3.39,26.29,1.16,63.1M
0103,MNC (0103),+0.045 (+18.75%),,0.285,+0.045 (+18.75%),0.5217,39,27,1,2.06%,NA,,,,,Technology - Ace Market,0.285,0.255,253000,7100 / 69100,0.270 / 0.285,0.225 - 0.340,7.28,61.96,0.46,0.00,0.00%,4.51,22.86,1.25,26.9M
0104,GENETEC (0104) [s],GENETEC TECHNOLOGY BERHAD,,0.150,+0.005 (+3.45%),0.3200,39,7,8,-147.50%,NA,9/6/2011,9/23/2011,10.0000,Percentage,Technology - Ace Market,0.155,0.145,5579200,2353900 / 922900,0.145 / 0.150,0.110 - 0.235,7.94,11.81,1.27,0.00,0.00%,0.94,41.47,0.36,52.8M
0105,ASIAPLY (0105) [s],ASIA POLY HOLDINGS BHD,,0.585,+0.005 (+0.86%),0.9634,40,9,17,-54.39%,NA,9/15/2014,10/8/2014,2.5000,Percentage,Ind-Prod - Ace Market,0.585,0.575,324600,18900 / 112500,0.580 / 0.585,0.190 - 0.600,3.00,75,0.78,0.85,1.45%,2.25,89.25,0.66,51.4M
0106,REXIT (0106),-0.005 (-1.22%),,0.405,-0.005 (-1.22%),0.5122,39,0,39,-10.02%,NA,3/3/2015,3/18/2015,15.0000,Percentage,Technology - Ace Market,0.415,0.400,265000,77000 / 10500,0.400 / 0.405,0.300 - 0.505,15.67,17.23,2.35,1.50,3.70%,2.70,8.67,4.67,73.3M
0107,EDUSPEC (0107) [s],EDUSPEC HOLDINGS BERHAD,,0.310,0.000 (0.00%),0.4500,40,22,0,95.27%,NA,,,,,Technology - Ace Market,0.310,0.305,648800,58200 / 131000,0.310 / 0.315,0.220 - 0.420,5.42,53.45,0.58,0.00,0.00%,2.90,7.82,3.96,261.3M
0108,N2N (0108) [s],N2N CONNECT BHD,,0.780,0.000 (0.00%),0.1667,39,11,14,81.96%,NA,9/11/2014,10/10/2014,0.0070,Currency,Technology - Ace Market,0.780,0.780,67400,12600 / 1000,0.780 / 0.785,0.730 - 1.030,4.76,44.32,1.76,1.69,2.17%,2.11,8.32,9.38,336.9M
0109,FLONIC (0109) [s],FLONIC HI-TEC BHD,,0.055,0.000 (0.00%),0.2308,39,25,1,-21.13%,NA,,,,,Ind-Prod - Ace Market,0.055,0.050,1552400,30669000 / 2942700,0.050 / 0.055,0.040 - 0.105,-19.75,-6.96,-0.79,0.00,0.00%,1.38,1.99,2.76,43.9M
0110,RA (0110) [s],R&A TELECOMMUNICATION GRP BHD,,0.015,0.000 (0.00%),0.0000,39,25,0,-38.33%,NA,,,,,Trad/Serv - Ace Market,0.015,0.015,2060000,15580000 / 24252000,0.015 / 0.020,0.015 - 0.050,-46.17,-0.54,-2.77,0.00,0.00%,0.25,3.10,0.48,14.5M
0111,K1 (0111) [s],K-ONE TECHNOLOGY BHD,,0.270,+0.010 (+3.85%),0.0633,39,5,8,62.11%,NA,3/31/2015,4/30/2015,0.0050,Currency,Technology - Ace Market,0.275,0.260,13357600,75500 / 1513400,0.270 / 0.275,0.245 - 0.640,0.14,12.8,2.11,0.00,0.00%,0.02,39.93,0.68,116.9M
0112,MIKROMB (0112) [s],MIKRO MSC BERHAD,,0.375,+0.005 (+1.35%),0.6667,39,0,39,11.70%,NA,6/9/2015,6/29/2015,5.0000,Percentage,Technology - Ace Market,0.380,0.360,3322100,72600 / 91000,0.370 / 0.375,0.205 - 0.460,21.60,13.39,2.80,1.02,2.72%,2.89,13.11,2.86,105.7M
0113,MMSV (0113) [s],MMS VENTURES BHD,,0.740,+0.005 (+0.68%),0.7851,39,13,9,46.52%,NA,3/20/2015,4/22/2015,0.0100,Currency,Technology - Ace Market,0.745,0.725,1142100,20100 / 44300,0.740 / 0.745,0.265 - 0.870,34.80,10.63,6.96,1.00,1.35%,3.70,25.98,2.85,120.6M
0116,FOCUS (0116),+0.005 (+6.67%),,0.080,+0.005 (+6.67%),0.2308,39,28,0,-23.79%,NA,,,,,Technology - Ace Market,0.080,0.070,5994000,3816000 / 500000,0.075 / 0.080,0.065 - 0.130,-21.45,-5.63,-1.42,0.00,0.00%,1.21,1.63,4.91,56.4M
0117,SMRT (0117) [s],SMRT HOLDINGS BERHAD,,0.330,+0.010 (+3.13%),0.0169,38,6,1,23.74%,NA,7/15/2013,7/31/2013,0.0050,Currency,Technology - Ace Market,0.335,0.325,773500,96100 / 12400,0.325 / 0.330,0.320 - 0.910,5.72,16.34,2.02,0.00,0.00%,0.93,52.10,0.63,80.9M
0118,TRIVE (0118) [s],ETI TECH CORPORATION BHD,,0.095,+0.005 (+5.56%),0.6250,37,9,0,-36.82%,NA,,,,,Technology - Main Market,0.095,0.090,322700,5798100 / 4412500,0.090 / 0.095,0.045 - 0.125,-22.00,-7.2,-1.32,0.00,0.00%,1.58,1.16,8.19,94.9M
0119,APPASIA (0119) [s],APPASIA BERHAD,,0.230,0.000 (0.00%),0.4750,38,21,1,-32.47%,NA,,,,,Technology - Ace Market,0.230,0.225,1345100,555200 / 420300,0.225 / 0.230,0.135 - 0.335,-54.94,-6.08,-3.78,0.00,0.00%,3.34,3.96,5.81,64.1M
0120,VIS (0120) [s],VISDYNAMICS HOLDINGS BHD,,0.220,0.000 (0.00%),0.1429,38,19,0,-50.87%,NA,4/27/2011,5/16/2011,0.0050,Currency,Technology - Ace Market,0.225,0.220,338000,6000 / 28500,0.220 / 0.225,0.190 - 0.400,6.39,19.13,1.15,0.00,0.00%,1.22,13.82,1.59,24.4M
0122,AIM (0122),0.000 (0.00%),,0.210,0.000 (0.00%),0.3000,24,15,3,-8.82%,NA,10/22/2008,11/10/2008,10.0000,Percentage,Trad/Serv - Ace Market,0.210,0.210,-,3300 / 38300,0.200 / 0.430,0.180 - 0.280,-0.09,-2100,-0.01,0.00,0.00%,1.95,5.30,3.96,50.8M
0123,PRIVA (0123) [s],PRIVASIA TECHNOLOGY BERHAD,,0.270,+0.010 (+3.85%),0.5238,37,14,12,14.77%,NA,6/24/2015,7/15/2015,0.0025,Currency,Technology - Ace Market,0.275,0.255,13139600,239100 / 589900,0.270 / 0.275,0.105 - 0.420,8.20,21.95,1.23,0.31,1.15%,1.80,14.56,1.85,150.7M
0125,CARLAW (0125),0.000 (0.00%),,0.005,0.000 (0.00%),,12,11,0,NA,NA,,,,,Ind-Prod - Ace Market,-,-,-,0 / 0,- / -,,0.00,0,0,0,0.00%,-0.14,0,,0.4M
0126,MICROLN (0126) [s],MICROLINK SOLUTIONS BHD,,1.750,+0.120 (+7.36%),0.9259,37,7,2,23.25%,NA,3/5/2014,3/21/2014,0.0300,Currency,Technology - Ace Market,1.750,1.580,288800,28700 / 15000,1.750 / 1.760,0.500 - 1.850,14.74,33.91,5.16,0.00,0.00%,5.00,83.71,2.09,266.3M
0127,JHM (0127) [s],JHM CONSOLIDATION BHD,,0.330,+0.015 (+4.76%),0.6364,36,6,2,-14.99%,NA,12/26/2008,1/15/2009,0.0100,RM,Technology - Ace Market,0.340,0.315,381500,48000 / 15000,0.325 / 0.335,0.120 - 0.450,1.82,73.33,0.45,0.00,0.00%,1.34,65.27,0.51,40.6M
0128,FRONTKN (0128) [s],FRONTKEN CORPORATION BHD,,0.250,+0.005 (+2.04%),0.6667,37,3,29,9.79%,NA,6/9/2011,6/28/2011,1.0000,Percentage,Trad/Serv - Main Market,0.260,0.240,37220200,4067100 / 2285300,0.245 / 0.250,0.110 - 0.320,8.00,12.5,2.00,0.00,0.00%,1.00,32.32,0.77,262.1M
0129,SRIDGE (0129) [s],SILVER RIDGE HOLDINGS BHD,,0.150,+0.015 (+11.11%),0.1111,37,17,0,-148.60%,NA,,,,,Technology - Ace Market,0.150,0.135,40100,100 / 40000,0.140 / 0.145,0.135 - 0.270,-15.31,-7.54,-1.99,0.00,0.00%,1.15,28.80,0.52,18.2M
0130,BCTTECH (0130),0.000 (0.00%),,0.005,0.000 (0.00%),,27,19,0,7.36%,NA,,,,,Technology - Ace Market,0.005,0.005,-,0 / 0,- / -,,75.07,-0.09,-5.27,0.00,0.00%,-0.07,4.16,0.12,0.7M
0131,DGSB (0131) [s],DIVERSIFIED GATEWAY SOLUTIONS,,0.075,-0.005 (-6.25%),0.2353,36,18,0,257.87%,NA,,,,,Technology - Ace Market,0.080,0.075,922900,7934000 / 1808200,0.075 / 0.080,0.055 - 0.140,11.95,19.74,0.38,0.00,0.00%,2.36,7.51,1,101.7M
0132,TDEX (0132) [s],TECHNODEX BHD,,0.130,0.000 (0.00%),0.0000,37,14,0,90.16%,NA,,,,,Technology - Ace Market,0.130,0.130,1001700,248300 / 775000,0.130 / 0.135,0.130 - 0.250,-1.00,-185.71,-0.07,0.00,0.00%,1.86,5.37,2.42,48.8M
0133,SANICHI (0133) [s],SANICHI TECHNOLOGY BHD,,0.075,-0.005 (-6.25%),0.0667,35,17,4,263.43%,NA,,,,,Ind-Prod - Ace Market,0.080,0.075,461100,14632100 / 5040900,0.075 / 0.080,0.070 - 0.145,3.18,21.43,0.35,0.00,0.00%,0.68,3.16,2.37,85.8M
0135,SCN (0135) [s],SCAN ASSOCIATES BHD,,0.110,+0.020 (+22.22%),0.6400,35,22,1,-7.42%,NA,,,,,Technology - Ace Market,0.110,0.090,24274300,4721000 / 3547400,0.105 / 0.110,0.030 - 0.155,-72.00,-5.09,-2.16,0.00,0.00%,3.67,8.09,1.36,22.0M
0136,GREENYB (0136) [s],GREENYIELD BHD,,0.210,+0.005 (+2.44%),0.0377,36,2,23,-10.51%,NA,12/29/2014,1/19/2015,0.0110,Currency,Ind-Prod - Main Market,0.210,0.200,105100,373500 / 9000,0.200 / 0.210,0.200 - 0.465,6.31,20,1.05,1.10,5.24%,1.26,12.56,1.67,70.1M
0137,STEMLFE (0137),0.000 (0.00%),,0.350,0.000 (0.00%),0.0476,35,6,1,19.77%,NA,6/9/2014,6/18/2014,30.0000,Percentage,Trad/Serv - Ace Market,0.350,0.345,217100,100000 / 30000,0.350 / 0.360,0.340 - 0.550,-7.20,-48.61,-0.72,3.08,8.80%,3.50,7.03,4.98,86.6M
0138,MYEG (0138) [s],MY E.G. SERVICES BHD,,2.780,+0.020 (+0.72%),0.2033,34,0,34,17.72%,NA,4/22/2015,5/21/2015,0.0050,Currency,Trad/Serv - Main Market,2.810,2.700,8916100,17000 / 17000,2.780 / 2.790,2.290 - 4.700,24.08,53.98,5.15,2.23,0.80%,13.00,10.99,25.3,3335.8M
0139,HDISPLY (0139),0.000 (0.00%),,,0.000 (0.00%),,8,3,1,NA,NA,,,,,Technology - Ace Market,-,-,-,0 / 0,- / -,,0.00,0,0,0,0.00%,0.00,0,,0.0M
0140,UTOPIA (0140) [s],1 UTOPIA BERHAD,,0.035,0.000 (0.00%),0.0000,34,15,1,-32.69%,NA,7/10/2008,8/6/2008,0.0075,RM,Trad/Serv - Ace Market,0.035,0.035,320000,7601700 / 5216300,0.035 / 0.040,0.035 - 0.065,-8.62,-3.13,-1.12,0.00,0.00%,0.27,30.33,0.12,34.6M
0141,WINTONI (0141) [s],WINTONI GROUP BHD,,0.335,+0.005 (+1.52%),0.8028,30,21,0,345.00%,NA,,,,,Technology - Ace Market,0.335,0.325,5393800,18000 / 574400,0.330 / 0.335,0.050 - 0.405,9.38,37.22,0.90,0.00,0.00%,3.49,4.28,7.83,171.9M
0143,KEYASIC (0143) [s],KEY ASIC BHD,,0.080,+0.005 (+6.67%),0.3333,30,22,0,-5.24%,NA,,,,,Technology - Main Market,0.085,0.075,526100,50000 / 29700,0.075 / 0.080,0.050 - 0.140,-118.91,-1.93,-4.15,0.00,0.00%,2.29,1.85,4.32,64.2M
0145,TFP (0145) [s],TFP SOLUTIONS BHD,,0.165,0.000 (0.00%),0.3600,30,11,1,-32.50%,NA,6/26/2008,7/29/2008,7.5000,Percentage,Trad/Serv - Ace Market,0.165,0.165,-,50000 / 20000,0.155 / 0.190,0.120 - 0.245,-93.00,-2.22,-7.44,0.00,0.00%,2.06,48.86,0.34,33.8M
0146,JFTECH (0146) [s],JF TECHNOLOGY BHD,,0.600,0.000 (0.00%),0.6000,30,9,7,18.49%,NA,3/3/2015,3/16/2015,5.0000,Percentage,Technology - Ace Market,0.600,0.600,-,5000 / 10000,0.560 / 0.640,0.450 - 0.700,0.11,29.27,2.05,0.99,1.65%,0.03,13.30,4.51,75.6M
0147,INNITY (0147) [s],INNITY CORPORATION BHD,,0.365,0.000 (0.00%),0.4412,28,9,0,27.25%,NA,,,,,Trad/Serv - Ace Market,0.365,0.365,-,900 / 1900,0.100 / 0.580,0.290 - 0.460,2.77,68.87,0.53,0.00,0.00%,1.91,33.89,1.08,50.5M
0148,SUNZEN (0148),+0.020 (+4.17%),,0.500,+0.020 (+4.17%),0.7000,28,0,28,-0.85%,NA,5/6/2014,5/22/2014,0.0080,Currency,Trad/Serv - Ace Market,0.500,0.470,1411500,20000 / 218800,0.495 / 0.500,0.290 - 0.590,1.43,116.28,0.43,0.42,0.84%,1.67,12.93,3.87,142.8M
0149,FIBON (0149),0.000 (0.00%),,0.420,0.000 (0.00%),0.2273,26,0,26,-5.66%,NA,12/1/2014,12/29/2014,0.0110,Currency,Ind-Prod - Main Market,0.420,0.420,-,32900 / 15000,0.410 / 0.500,0.370 - 0.590,10.38,10.94,3.84,1.11,2.64%,1.14,13.84,3.03,41.2M
0150,ASIABIO (0150) [s],ASIA BIOENERGY TECH BHD,,0.070,0.000 (0.00%),0.0000,27,14,1,-13.68%,NA,,,,,Trad/Serv - Ace Market,0.070,0.065,2491700,17799600 / 4230900,0.065 / 0.070,0.070 - 0.245,-6.06,-15.56,-0.45,0.00,0.00%,0.94,6.13,1.14,60.7M
0151,KGB (0151) [s],KELINGTON GROUP BERHAD,,0.355,-0.005 (-1.39%),0.2941,24,1,1,-16.16%,NA,7/9/2015,8/10/2015,0.0100,Currency,Trad/Serv - Main Market,0.360,0.355,72900,50000 / 6000,0.360 / 0.375,0.305 - 0.475,8.30,14.92,2.38,0.50,1.41%,1.24,80.69,0.44,77.0M
0152,DGB (0152),0.000 (0.00%),,0.075,0.000 (0.00%),0.0500,22,17,0,NA,NA,,,,,Technology - Ace Market,0.075,0.070,1272000,12844700 / 3565900,0.070 / 0.075,0.070 - 0.170,-13.40,-11.19,-0.67,0.00,0.00%,1.50,2.03,3.69,36.7M
0153,OVERSEA (0153),0.000 (0.00%),,0.190,0.000 (0.00%),0.2000,21,10,1,NA,NA,12/5/2014,12/23/2014,0.0030,Currency,Trad/Serv - Ace Market,0.190,0.190,500000,150000 / 460000,0.185 / 0.190,0.170 - 0.270,1.15,82.61,0.23,0.61,3.21%,0.95,25.91,0.73,45.8M
0154,EAH (0154) [s],EA HOLDINGS BERHAD,,0.120,+0.005 (+4.35%),0.1875,21,2,0,NA,NA,,,,,Technology - Ace Market,0.120,0.115,820000,2670000 / 2697400,0.115 / 0.120,0.105 - 0.185,1.69,54.55,0.22,0.00,0.00%,0.92,3.80,3.16,102.0M
0155,MGRC (0155) [s],MSIAN GENOMICS RES CENTRE BHD,,0.565,0.000 (0.00%),0.7222,20,11,4,NA,NA,,,,,Technology - Ace Market,0.565,0.565,-,5000 / 3000,0.510 / 0.580,0.370 - 0.640,19.42,15.74,3.59,0.00,0.00%,3.06,13.33,4.24,53.2M
0156,MPAY (0156) [s],MANAGEPAY SYSTEMS BERHAD,,0.275,+0.005 (+1.85%),0.5405,18,6,6,NA,NA,,,,,Technology - Ace Market,0.280,0.265,2917600,778000 / 556200,0.270 / 0.275,0.175 - 0.360,1.46,144.74,0.19,0.00,0.00%,2.12,2.52,10.91,110.7M
0157,FOCUSP (0157),0.000 (0.00%),,0.285,0.000 (0.00%),0.3000,20,2,2,NA,NA,10/29/2014,11/21/2014,0.0100,Currency,Trad/Serv - Ace Market,0.285,0.285,-,33900 / 50000,0.270 / 0.310,0.255 - 0.355,4.15,20.65,1.38,1.99,6.98%,0.86,94.50,0.3,47.0M
0158,SCC (0158),0.000 (0.00%),,2.600,0.000 (0.00%),0.9664,20,0,20,NA,NA,7/2/2015,7/31/2015,0.1000,Currency,Trad/Serv - Ace Market,2.610,2.600,105100,2000 / 3000,2.600 / 2.610,1.160 - 2.650,20.25,15.55,16.72,9.98,3.84%,3.15,107.57,2.42,111.2M
0159,AMEDIA (0159) [s],ASIA MEDIA GROUP BERHAD,,0.030,0.000 (0.00%),0.0000,19,6,0,NA,NA,,,,,Trad/Serv - Main Market,0.030,0.025,1236200,34975000 / 321300,0.025 / 0.030,0.030 - 0.095,-19.73,-1.37,-2.19,0.00,0.00%,0.27,1.47,2.04,35.9M
0160,HHHCORP (0160) [s],HIAP HUAT HOLDINGS BHD,,0.105,+0.005 (+5.00%),0.0435,11,4,0,NA,NA,,,,,Ind-Prod - Ace Market,0.105,0.100,336800,93300 / 129900,0.100 / 0.105,0.100 - 0.215,-1.76,-35,-0.30,0.00,0.00%,0.62,10.58,0.99,35.0M
0161,SCH (0161) [s],SCH GROUP BERHAD,,0.250,0.000 (0.00%),0.4348,6,1,4,NA,NA,2/11/2015,3/5/2015,0.0100,Currency,Trad/Serv - Ace Market,0.250,0.245,1094700,412300 / 216000,0.245 / 0.250,0.200 - 0.315,17.42,9.4,2.66,1.00,4.00%,1.64,16.75,1.49,103.1M
0162,IJACOBS (0162) [s],IDEAL JACOBS (M) CORPORATION B,,0.230,-0.005 (-2.13%),0.0297,17,8,0,NA,NA,,,,,Ind-Prod - Ace Market,0.235,0.220,70000,1000 / 7000,0.230 / 0.240,0.215 - 0.720,-18.22,-7.01,-3.28,0.00,0.00%,1.28,26.21,0.88,31.2M
0163,CAREPLS (0163) [s],CAREPLUS GROUP BERHAD,,0.730,+0.005 (+0.69%),0.8750,19,6,2,NA,NA,7/3/2015,7/21/2015,0.0025,Currency,Ind-Prod - Ace Market,0.740,0.715,401500,128000 / 75500,0.730 / 0.740,0.310 - 0.790,9.25,37.63,1.94,0.00,0.00%,3.48,67.80,1.08,171.6M
0165,XOX (0165) [s],XOX BHD,,0.070,0.000 (0.00%),0.3077,16,12,2,NA,NA,,,,,Trad/Serv - Ace Market,0.070,0.065,450600,2142200 / 1076900,0.065 / 0.070,0.050 - 0.115,8.01,15.91,0.44,0.00,0.00%,1.28,24.80,0.28,23.2M
0166,INARI (0166) [s],INARI AMERTRON BERHAD,,3.250,+0.040 (+1.25%),0.8014,17,0,17,NA,NA,6/3/2015,7/3/2015,0.0210,Currency,Technology - Main Market,3.300,3.170,2590700,119500 / 8000,3.250 / 3.280,2.120 - 3.530,27.82,16.5,19.70,8.24,2.54%,4.59,124.28,2.62,2358.8M
0167,MCLEAN (0167) [s],MCLEAN TECHNOLOGIES BERHAD,,0.200,0.000 (0.00%),0.5385,18,11,1,NA,NA,,,,,Trad/Serv - Ace Market,0.200,0.200,29500,309500 / 10000,0.200 / 0.210,0.130 - 0.260,-23.57,-6.06,-3.30,0.00,0.00%,1.43,30.67,0.65,23.5M
0168,BOILERM (0168) [s],BOILERMECH HOLDINGS BHD,,1.460,+0.010 (+0.69%),0.0498,18,0,18,NA,NA,9/26/2014,10/14/2014,0.0300,Currency,Ind-Prod - Main Market,1.460,1.450,237000,115000 / 46000,1.450 / 1.460,1.350 - 3.560,30.36,19.24,7.59,2.77,1.90%,5.84,53.85,2.71,753.4M
0169,SMTRACK (0169),+0.005 (+4.76%),,0.110,+0.005 (+4.76%),0.4286,18,16,1,NA,NA,,,,,Technology - Ace Market,0.115,0.105,1782000,1805000 / 100000,0.105 / 0.110,0.065 - 0.170,-60.00,-3.06,-3.60,0.00,0.00%,1.83,0.72,15.28,30.0M
0170,KANGER (0170) [s],KANGER INTERNATIONAL BERHAD,,0.150,+0.005 (+3.45%),0.0294,7,0,7,NA,NA,,,,,-,0.150,0.135,2142600,19000 / 991800,0.145 / 0.150,0.140 - 0.480,8.06,13.64,1.10,0.00,0.00%,1.10,11.94,1.26,81.6M
0171,PLABS (0171),+0.005 (+2.38%),,0.215,+0.005 (+2.38%),0.4000,17,0,17,NA,NA,2/5/2015,2/25/2015,0.0050,Currency,Trad/Serv - Ace Market,0.215,0.210,661000,73200 / 135800,0.210 / 0.215,0.145 - 0.320,10.19,12.22,1.76,0.50,2.33%,1.24,32.31,0.67,40.4M
0172,OCK (0172) [s],OCK GROUP BERHAD,,0.830,+0.010 (+1.22%),0.2188,12,0,12,NA,NA,6/7/2013,7/10/2013,0.0050,Currency,Trad/Serv - Main Market,0.830,0.815,254400,10000 / 60500,0.820 / 0.830,0.620 - 1.580,8.61,26.77,3.10,0.00,0.00%,2.31,39.20,2.12,438.4M
0173,REV (0173),+0.025 (+3.31%),,0.780,+0.025 (+3.31%),0.1974,17,11,0,NA,NA,,,,,Trad/Serv - Ace Market,0.790,0.750,119800,500 / 5000,0.780 / 0.795,0.630 - 1.390,-15.00,-20,-3.90,0.00,0.00%,3.00,18.40,4.24,105.0M
0174,IDMENSN (0174) [s],iDIMENSION CONSOLIDATED BHD,,0.130,+0.005 (+4.00%),0.8333,16,8,1,NA,NA,11/25/2011,12/16/2011,0.0070,Currency,Technology - Ace Market,0.130,0.120,32393100,41551500 / 1798600,0.125 / 0.130,0.080 - 0.140,-4.55,-26,-0.50,0.00,0.00%,1.18,7.98,1.63,57.8M
0175,HHGROUP (0175) [s],HENG HUAT RESOURCES GROUP BHD,,0.670,+0.020 (+3.08%),0.7671,5,0,5,NA,NA,2/26/2015,3/31/2015,5.0000,Percentage,Ind-Prod - Ace Market,0.690,0.640,2769700,64000 / 15000,0.670 / 0.680,0.390 - 0.755,14.71,13.4,5.00,0.50,0.75%,1.97,47.04,1.42,137.9M
0176,KRONO (0176) [s],KRONOLOGI ASIA BERHAD,,0.220,+0.010 (+4.76%),0.0952,3,1,0,NA,NA,,,,,Technology - Ace Market,0.225,0.210,4611100,280400 / 665900,0.220 / 0.225,0.200 - 0.410,6.00,30.56,0.72,0.00,0.00%,1.83,16.05,1.37,52.1M
0177,PASUKGB (0177),-0.005 (-3.45%),,0.140,-0.005 (-3.45%),-0.0222,12,6,1,NA,NA,,,,,Trad/Serv - Ace Market,0.145,0.140,2042900,789500 / 523800,0.140 / 0.145,0.145 - 0.370,-9.00,-15.56,-0.90,0.00,0.00%,1.40,16.25,0.86,41.3M
0178,SEDANIA (0178),+0.050 (+12.05%),,0.465,+0.050 (+12.05%),,1,0,1,NA,NA,,,,,-,0.475,0.415,19924300,406600 / 337900,0.460 / 0.465,,0.00,0,0,0,0.00%,3.10,0,,69.6M
0179,BIOHLDG (0179) [s],,,0.305,+0.010 (+3.39%),0.1842,2,0,2,NA,NA,,,,,-,0.305,0.290,4445700,687000 / 596100,0.300 / 0.305,0.270 - 0.460,3.74,54.46,0.56,0.00,0.00%,2.04,2.50,12.2,141.3M
1007,AMPROP (1007) [s],AMCORP PROPERTIES BERHAD,,0.865,-0.005 (-0.57%),0.1854,51,16,17,10.95%,17.62%,9/19/2013,10/3/2013,6.0000,Percentage,Properties - Main Market,0.865,0.860,76000,27600 / 9300,0.860 / 0.865,0.725 - 1.480,4.28,14.34,6.03,0.00,0.00%,0.61,29.47,2.94,509.5M
1015,AMBANK (1015),+0.040 (+0.67%),,6.030,+0.040 (+0.67%),0.0417,51,2,32,9.61%,11.08%,12/2/2014,12/16/2014,12.0000,Percentage,Finance - Main Market,6.360,5.880,6625800,17300 / 5000,6.030 / 6.060,5.980 - 7.180,13.26,9.47,63.65,28.85,4.78%,1.26,303.32,1.99,18175.6M
1023,CIMB (1023),+0.160 (+3.01%),,5.470,+0.160 (+3.01%),0.1306,51,0,51,0.31%,7.95%,3/27/2015,4/28/2015,0.0500,Currency,Finance - Main Market,5.510,5.310,22489800,2700 / 1189400,5.460 / 5.470,5.180 - 7.400,6.77,17.72,30.87,20.09,3.67%,1.20,168.30,3.25,46439.2M
1058,MANULFE (1058),-0.010 (-0.34%),,2.940,-0.010 (-0.34%),-0.0145,51,0,51,-11.48%,-0.71%,5/29/2015,6/18/2015,0.1000,Currency,Finance - Main Market,2.940,2.940,2000,1000 / 2000,2.940 / 3.030,2.950 - 3.640,4.41,17.4,16.90,1252.98,0.34%,0.77,493.59,0.6,595.0M
1066,RHBCAP (1066),+0.110 (+1.52%),,7.370,+0.110 (+1.52%),0.1270,51,0,51,7.94%,9.71%,3/25/2015,4/24/2015,0.0600,Currency,Finance - Main Market,7.440,7.190,1308900,1000 / 2600,7.300 / 7.370,7.060 - 9.500,10.53,9.24,79.72,10.22,1.39%,0.97,413.80,1.78,19077.1M
1082,HLFG (1082),-0.040 (-0.26%),,15.160,-0.040 (-0.26%),0.0062,51,0,51,8.64%,9.36%,6/10/2015,6/26/2015,0.2500,Currency,Finance - Main Market,15.320,15.040,310700,124500 / 1700,15.160 / 15.220,15.140 - 18.340,12.94,9.79,154.81,37.79,2.49%,1.27,421.04,3.6,15960.0M
1147,GOB (1147) [s],GLOBAL ORIENTAL BERHAD,,0.485,0.000 (0.00%),0.0074,51,15,17,34.88%,15.02%,,,,,Properties - Main Market,0.495,0.485,508500,115000 / 34900,0.480 / 0.490,0.480 - 1.160,7.13,7.01,6.92,0.00,0.00%,0.50,98.04,0.49,220.5M
1155,MAYBANK (1155),0.000 (0.00%),,9.140,0.000 (0.00%),0.4545,51,1,23,14.63%,7.96%,4/23/2015,5/26/2015,0.3300,Currency,Finance - Main Market,9.200,9.130,11297200,1350400 / 1841200,9.130 / 9.140,8.290 - 10.160,11.98,12.79,71.48,52.75,5.77%,1.53,383.26,2.38,87139.6M
1163,ALLIANZ (1163),0.000 (0.00%),,11.780,0.000 (0.00%),0.3983,51,5,29,14.38%,12.02%,1/13/2015,1/30/2015,0.0500,Currency,Finance - Main Market,11.780,11.780,-,3500 / 20000,11.600 / 12.000,10.840 - 13.200,11.87,7,168.24,7.38,0.63%,0.83,2648.09,589,1983.9M
1171,MBSB (1171),0.000 (0.00%),,1.690,0.000 (0.00%),0.0000,51,8,21,23.71%,13.91%,4/27/2015,5/28/2015,0.0200,Currency,Finance - Main Market,1.710,1.670,922500,30300 / 6700,1.690 / 1.700,1.690 - 2.660,18.71,5.09,33.21,4.64,2.75%,0.95,92.87,1.82,4796.7M
1198,MAA (1198),0.000 (0.00%),,0.770,0.000 (0.00%),0.8421,51,17,7,-22.75%,9.28%,4/15/2015,4/30/2015,0.0300,Currency,Finance - Main Market,0.770,0.745,318200,21000 / 20000,0.770 / 0.780,0.610 - 0.800,4.00,13.85,5.56,6.11,7.94%,0.55,221.26,0.35,231.0M
1201,SUMATEC (1201) [s],SUMATEC RESOURCES BHD,,0.190,0.000 (0.00%),0.0455,50,20,6,106.29%,45.15%,,,,,Trad/Serv - Main Market,0.200,0.190,21567600,5216300 / 4388100,0.190 / 0.195,0.170 - 0.610,10.88,9.64,1.97,0.00,0.00%,1.05,2.76,6.88,661.7M
1236,MBFHLDG (1236),0.000 (0.00%),,1.700,0.000 (0.00%),,42,11,3,19.09%,NA,5/21/2013,5/31/2013,0.4000,Currency,Finance - Main Market,1.700,1.700,-,0 / 0,- / -,,0.00,0,0,0,0.00%,0.72,0,,971.6M
1287,PMHLDG (1287),+0.005 (+1.96%),,0.260,+0.005 (+1.96%),0.4000,51,32,1,-20.15%,-41.79%,,,,,Hotels - Main Market,0.260,0.250,566000,30000 / 41500,0.255 / 0.260,0.090 - 0.515,-5.37,-78.79,-0.33,0.00,0.00%,4.23,0.98,26.53,241.5M
1295,PBBANK (1295),+0.180 (+0.97%),,18.720,+0.180 (+0.97%),0.4667,51,0,51,8.98%,7.94%,2/18/2015,3/5/2015,31.0000,Percentage,Finance - Main Market,18.720,18.500,5863500,1900000 / 261300,18.700 / 18.720,17.460 - 20.160,16.64,15.47,121.03,53.26,2.85%,2.57,453.50,4.13,72287.1M
1368,EDGENTA (1368) [s],FABER GROUP BHD,,3.450,+0.050 (+1.47%),0.7831,51,8,14,5.59%,-20.64%,6/8/2015,6/24/2015,0.0500,Currency,Trad/Serv - Main Market,3.460,3.360,350100,17200 / 2000,3.450 / 3.480,2.150 - 3.810,10.86,21.46,16.08,22.47,6.51%,2.33,237.82,1.45,2806.6M
1473,BRDB (1473),0.000 (0.00%),,2.880,0.000 (0.00%),,13,1,7,NA,NA,7/18/2012,8/17/2012,7.5000,Percentage,Properties - Main Market,-,-,-,0 / 0,- / -,,0.00,0,0,0,0.00%,0.77,0,,1408.1M
1481,ASB (1481),+0.005 (+3.57%),,0.145,+0.005 (+3.57%),0.1429,51,26,0,-64.51%,-12.13%,8/20/2015,9/18/2015,0.0025,Currency,Trad/Serv - Main Market,0.145,0.140,205100,148800 / 374400,0.140 / 0.145,0.130 - 0.235,-1.76,-12.39,-1.17,0.21,1.45%,0.22,41.65,0.35,96.2M
1503,GUOCO (1503),0.000 (0.00%),,1.270,0.000 (0.00%),0.2128,51,6,12,39.97%,10.79%,10/16/2014,11/4/2014,4.0000,Percentage,Properties - Main Market,1.270,1.250,28000,2000 / 200,1.270 / 1.290,1.070 - 2.010,13.02,6.86,18.52,1.91,1.50%,0.89,27.77,4.57,889.6M
1538,SYMLIFE (1538) [s],SYMPHONY LIFE BERHAD,,0.820,+0.005 (+0.61%),0.1087,51,5,24,12.00%,17.83%,9/23/2014,10/8/2014,0.0400,Currency,Properties - Main Market,0.820,0.815,13700,8000 / 27400,0.820 / 0.830,0.770 - 1.230,6.43,6.07,13.50,3.65,4.45%,0.39,92.61,0.89,253.9M
1562,BJTOTO (1562),+0.030 (+0.92%),,3.280,+0.030 (+0.92%),0.1000,51,1,44,-1.57%,-0.70%,7/15/2015,8/6/2015,0.0500,Currency,Trad/Serv - Main Market,3.300,3.220,2442900,4000 / 6600,3.270 / 3.280,3.210 - 3.910,52.53,12.24,26.79,23.53,7.17%,6.43,393.37,0.83,4409.6M
1589,IWCITY (1589) [s],ISKANDAR WATERFRONT CITY BERHAD,,1.060,-0.010 (-0.93%),0.0000,51,19,1,6.43%,20.05%,,,,,Properties - Main Market,1.060,1.040,68000,5000 / 7000,1.050 / 1.060,1.060 - 1.780,0.29,441.67,0.24,0.00,0.00%,1.29,21.51,4.93,709.9M
1597,IGB (1597),-0.040 (-1.38%),,2.850,-0.040 (-1.38%),0.8125,51,0,51,4.81%,5.75%,3/10/2015,3/27/2015,0.1000,Currency,Properties - Main Market,2.900,2.820,48000,10000 / 107000,2.830 / 2.850,2.460 - 2.940,5.31,16.88,16.88,10.23,3.59%,0.90,91.42,3.12,3804.5M
1619,DRBHCOM (1619) [s],DRB-HICOM BHD,,1.590,+0.010 (+0.63%),0.2283,51,4,24,-8.84%,9.25%,3/27/2015,4/28/2015,0.0150,Currency,Ind-Prod - Main Market,1.590,1.560,194600,12900 / 10500,1.560 / 1.590,1.380 - 2.300,3.96,10.24,15.53,6.00,3.77%,0.41,708.03,0.22,3073.9M
1643,LANDMRK (1643),+0.030 (+2.68%),,1.150,+0.030 (+2.68%),0.3289,51,23,0,-30.22%,-255.72%,6/28/2010,7/29/2010,1.0000,Percentage,Hotels - Main Market,1.150,1.120,110000,4800 / 24200,1.140 / 1.150,0.900 - 1.660,-0.48,-65.34,-1.76,0.00,0.00%,0.31,11.50,10,552.9M
1651,MRCB (1651) [s],MALAYSIAN RESOURCES CORP,,1.180,0.000 (0.00%),0.1757,51,14,1,23.36%,12.44%,6/30/2015,7/24/2015,0.0250,Currency,Properties - Main Market,1.200,1.180,1137200,159500 / 27500,1.170 / 1.180,1.050 - 1.790,16.82,5.57,21.19,0.98,0.83%,0.94,95.95,1.23,2108.2M
1694,MENANG (1694),0.000 (0.00%),,0.795,0.000 (0.00%),0.2482,51,33,13,38.43%,22.45%,,,,,Properties - Main Market,0.795,0.785,17000,10800 / 39200,0.790 / 0.795,0.625 - 1.310,23.34,3.54,22.45,0.00,0.00%,0.83,103.69,0.77,212.4M
1716,APLAND (1716),0.000 (0.00%),,0.445,0.000 (0.00%),,11,8,0,NA,NA,,,,,Properties - Main Market,-,-,-,0 / 0,- / -,,0.00,0,0,0,0.00%,0.99,0,,306.4M
1724,PARAMON (1724) [s],PARAMOUNT CORPORATION BHD,,2.010,+0.020 (+1.01%),0.9167,51,0,51,-12.11%,3.83%,6/8/2015,6/24/2015,0.0500,Currency,Properties - Main Market,2.020,1.950,301300,17500 / 2200,2.000 / 2.010,1.350 - 2.070,7.56,12.84,15.65,6.78,3.37%,0.97,136.47,1.47,848.7M
1783,SPB (1783),+0.030 (+0.59%),,5.150,+0.030 (+0.59%),0.1316,51,3,20,13.81%,6.01%,4/16/2015,5/6/2015,0.1200,Currency,Properties - Main Market,5.180,5.100,10300,3700 / 2000,5.150 / 5.220,4.900 - 6.800,5.01,17.09,30.14,29.97,5.82%,0.86,28.25,18.23,1769.6M
1813,SPK (1813),0.000 (0.00%),,0.345,0.000 (0.00%),,42,26,0,-25.02%,NA,,,,,Construction - Main Market,0.345,0.345,-,0 / 0,- / -,,0.00,0,0,0,0.00%,13.37,0,,46.2M
1818,BURSA (1818),-0.010 (-0.12%),,8.140,-0.010 (-0.12%),0.2881,41,0,41,3.54%,NA,4/1/2015,4/16/2015,0.1800,Currency,Finance - Main Market,8.190,8.120,341000,4800 / 49800,8.130 / 8.140,7.800 - 8.980,27.77,21.71,37.49,51.76,6.36%,6.03,95.11,8.56,4344.9M
1899,BKAWAN (1899) [s],BATU KAWAN BHD,,18.220,+0.060 (+0.33%),0.4145,51,0,51,-2.44%,6.19%,7/20/2015,8/13/2015,0.1500,Currency,Plantation - Main Market,18.220,18.140,27000,600 / 12100,18.220 / 18.300,16.960 - 20.000,8.87,16.9,107.81,60.22,3.31%,1.50,3010.31,607.33,7422.6M
1902,PINEPAC (1902) [s],PINEHILL PACIFIC BERHAD,,0.290,0.000 (0.00%),0.0227,51,35,0,-25.62%,-10.45%,,,,,Plantation - Main Market,0.290,0.290,-,11000 / 16000,0.290 / 0.300,0.285 - 0.505,-12.16,-3.18,-9.12,0.00,0.00%,0.39,18.42,1.57,43.4M
1929,CHINTEK (1929),-0.560 (-6.05%),,8.700,-0.560 (-6.05%),-0.6567,50,1,0,-16.92%,0.28%,1/14/2015,1/30/2015,8.0000,Percentage,Plantation - Main Market,8.700,8.700,1000,1200 / 5000,8.820 / 10.000,9.140 - 9.810,4.92,25.64,33.93,20.03,2.30%,1.26,116.56,7.46,794.8M
1945,PJDEV (1945) [s],PJ DEVELOPMENT HOLDINGS BHD,,1.490,0.000 (0.00%),0.1176,51,3,24,21.88%,10.07%,4/16/2015,5/8/2015,0.0400,Currency,Properties - Main Market,1.500,1.490,690700,26000 / 700,1.480 / 1.490,1.390 - 2.240,19.17,2.94,50.61,4.98,3.34%,0.56,260.47,0.57,676.2M
1961,IOICORP (1961),+0.070 (+1.75%),,4.060,+0.070 (+1.75%),0.0703,51,1,0,-7.37%,4.72%,3/3/2015,3/13/2015,45.0000,Percentage,Plantation - Main Market,4.060,3.970,9309200,188600 / 131200,4.060 / 4.070,3.970 - 5.250,8.30,61.89,6.56,14.55,3.58%,5.14,181.54,2.24,25741.5M
1996,KRETAM (1996) [s],KRETAM HOLDINGS BHD,,0.410,-0.010 (-2.38%),0.0000,51,13,0,-45.53%,5.60%,9/21/2011,10/12/2011,0.1500,Currency,Plantation - Main Market,0.415,0.405,157000,12700 / 34000,0.405 / 0.410,0.410 - 0.590,0.26,315.38,0.13,0.00,0.00%,0.83,22.37,1.83,768.8M
2003,KULIM (2003) [s],KULIM (M) BHD,,2.500,+0.010 (+0.40%),0.0196,51,2,5,19.63%,11.16%,3/10/2015,3/23/2015,0.3765,Currency,Plantation - Main Market,2.520,2.480,457900,20000 / 73300,2.490 / 2.500,2.480 - 3.500,31.22,2.19,114.27,47.52,19.01%,0.68,124.42,2.01,3281.0M
2011,LINGUI (2011),0.000 (0.00%),,1.620,0.000 (0.00%),,42,10,0,-11.37%,NA,11/7/2012,11/29/2012,0.0100,Currency,Ind-Prod - Main Market,1.620,1.620,-,0 / 0,- / -,,0.91,70.43,2.30,1.00,0.62%,0.64,256.52,0.63,1068.6M
2038,NSOP (2038) [s],NEGRI SEMBILAN OIL PALMS BHD,,5.000,0.000 (0.00%),0.2963,51,3,1,-72.68%,-4.59%,6/12/2015,6/30/2015,3.0000,Percentage,Plantation - Main Market,5.000,5.000,-,1000 / 22300,4.600 / 5.000,4.600 - 5.950,-1.39,-65.79,-7.60,9.00,1.80%,0.92,122.41,4.08,351.0M
2054,TDM (2054) [s],TDM BHD,,0.685,-0.005 (-0.72%),0.0964,51,6,0,-17.56%,6.66%,5/11/2015,6/2/2015,0.0150,Currency,Plantation - Main Market,0.690,0.680,144900,400 / 63000,0.685 / 0.700,0.645 - 1.060,2.48,30.72,2.23,1.01,1.47%,0.76,25.26,2.71,1014.9M
2062,HARBOUR (2062) [s],HARBOUR-LINK GROUP BHD,,2.660,-0.030 (-1.12%),0.8497,51,8,7,11.15%,9.02%,11/26/2014,12/19/2014,0.0250,Currency,Trad/Serv - Main Market,2.740,2.640,566000,18600 / 3700,2.660 / 2.680,1.360 - 2.890,18.36,9.99,26.62,2.50,0.94%,1.83,271.58,0.98,484.1M
2089,UTDPLT (2089) [s],UNITED PLANTATIONS BHD,,26.700,0.000 (0.00%),0.5692,51,0,51,-2.18%,5.65%,4/28/2015,5/15/2015,40.0000,Percentage,Plantation - Main Market,26.700,26.700,100,249900 / 1100,26.700 / 27.000,23.000 - 29.500,11.50,22.07,121.00,168.76,6.32%,2.54,478.72,5.58,5548.0M
2097,EASTLND (2097) [s],EASTLAND EQUITY BHD,,0.355,-0.005 (-1.39%),0.2188,50,24,5,21.61%,38.32%,,,,,Trad/Serv - Main Market,0.355,0.340,25500,5000 / 4600,0.340 / 0.355,0.320 - 0.480,16.81,2.4,14.79,0.00,0.00%,0.40,13.73,2.59,87.2M
2127,IRCB (2127) [s],INTEGRATED RUBBER CORPORATION,,0.860,+0.030 (+3.61%),0.8852,51,30,5,25.45%,-9.33%,,,,,Ind-Prod - Main Market,0.865,0.820,2394300,156000 / 2800,0.855 / 0.860,0.320 - 0.930,0.08,46.24,1.86,0.00,0.00%,0.04,39.60,2.17,372.4M
2135,GOPENG (2135) [s],GOPENG BHD,,1.010,-0.090 (-8.18%),0.5800,51,18,3,-180.23%,0.74%,6/26/2015,7/17/2015,0.0300,Currency,Plantation - Main Market,1.030,1.000,54000,1000 / 3000,1.010 / 1.060,0.720 - 1.220,2.83,21.54,4.69,2.97,2.94%,0.61,5.23,19.31,181.1M
2143,ECM (2143),0.000 (0.00%),,1.340,0.000 (0.00%),0.8462,51,7,9,-119.23%,-31.12%,8/2/2012,8/14/2012,0.0240,Currency,Finance - Main Market,1.340,1.330,69100,8600 / 8800,1.330 / 1.340,0.900 - 1.420,6.30,13.2,10.15,0.00,0.00%,0.83,17.43,7.69,358.9M
2186,KUCHAI (2186),-0.010 (-0.75%),,1.330,-0.010 (-0.75%),0.4000,51,16,1,-0.19%,12.04%,12/18/2014,1/8/2015,0.2000,Percentage,Mining - Main Market,1.330,1.330,5000,1000 / 1000,1.330 / 1.360,1.150 - 1.600,13.89,2.75,48.45,0.10,0.08%,0.38,4.57,29.1,164.6M
2194,MMCCORP (2194) [s],MMC CORPORATION BHD,,2.510,-0.010 (-0.40%),0.5254,51,0,51,9.22%,3.77%,6/18/2015,7/6/2015,0.0350,Currency,Trad/Serv - Main Market,2.520,2.450,399800,22500 / 16000,2.480 / 2.510,2.200 - 2.790,7.45,13.52,18.56,3.00,1.20%,1.01,291.92,0.86,7643.1M
2208,PTGTIN (2208) [s],PETALING TIN BHD,,0.240,0.000 (0.00%),0.1600,51,38,0,-13.62%,24.40%,,,,,Properties - Main Market,0.240,0.240,-,27900 / 4100,0.240 / 0.245,0.220 - 0.345,-1.75,-13.33,-1.80,0.00,0.00%,0.23,4.74,5.06,83.0M
2216,IJMPLNT (2216) [s],IJM PLANTATIONS BHD,,3.600,+0.150 (+4.35%),0.5625,51,3,48,-4.24%,5.42%,6/23/2015,7/7/2015,0.0600,Currency,Plantation - Main Market,3.600,3.450,511700,28000 / 18000,3.400 / 3.600,3.150 - 3.950,5.61,35.05,10.27,6.55,1.82%,1.97,75.82,4.75,3170.1M
2224,SDRED (2224),-0.020 (-2.04%),,0.960,-0.020 (-2.04%),0.1064,51,0,51,16.30%,7.03%,8/22/2014,9/5/2014,6.0000,Percentage,Properties - Main Market,0.980,0.955,33000,5000 / 30000,0.970 / 0.995,0.910 - 1.380,8.69,6.11,15.71,3.00,3.13%,0.53,94.18,1.02,409.1M
2259,TALAMT (2259) [s],TALAM TRANSFORM BERHAD,,0.070,0.000 (0.00%),0.1250,51,21,0,-0.05%,9.99%,,,,,Properties - Main Market,0.070,0.065,5962000,24614300 / 130500,0.065 / 0.070,0.060 - 0.140,-25.18,-2.53,-2.77,0.00,0.00%,0.64,7.78,0.9,295.4M
2283,ZELAN (2283) [s],ZELAN BHD,,0.325,+0.005 (+1.56%),0.4103,51,15,6,310.81%,-15.69%,11/24/2008,12/9/2008,0.0500,RM,Construction - Main Market,0.330,0.320,3812700,937400 / 400,0.320 / 0.325,0.245 - 0.440,29.13,4.85,6.70,0.00,0.00%,1.41,35.39,0.92,274.6M
2291,GENP (2291) [s],GENTING PLANTATIONS BERHAD,,9.910,-0.030 (-0.30%),0.2192,51,0,51,-0.21%,4.24%,6/26/2015,7/20/2015,0.0400,Currency,Plantation - Main Market,10.120,9.910,834500,3300 / 6400,9.910 / 10.080,9.430 - 11.620,8.32,23.32,42.50,5.93,0.60%,1.94,211.23,4.69,7668.3M
2305,TAHPS (2305),+0.080 (+1.17%),,6.900,+0.080 (+1.17%),0.2804,51,3,13,17.92%,1.07%,8/4/2015,8/27/2015,0.3200,Currency,Properties - Main Market,6.900,6.900,2000,8000 / 6000,6.900 / 7.000,5.700 - 9.980,9.02,11.75,58.70,34.99,5.07%,1.06,136.65,5.05,516.5M
2313,AMOLEK (2313),0.000 (0.00%),,18.800,0.000 (0.00%),,16,13,0,NA,NA,,,,,Plantation - Main Market,18.800,18.800,-,0 / 0,- / -,,-4.96,-65.07,-28.89,0.00,0.00%,3.23,0.00,,33.8M
2372,GNEALY (2372),0.000 (0.00%),,7.460,0.000 (0.00%),,13,0,13,NA,NA,10/3/2012,11/2/2012,0.5275,Currency,Plantation - Main Market,-,-,-,0 / 0,- / -,,9.75,13.84,53.92,14.84,1.99%,1.35,228.15,3.27,860.6M
2429,TANCO (2429) [s],TANCO HOLDINGS BHD,,0.135,+0.005 (+3.85%),0.3333,51,44,0,-60.00%,-18.69%,,,,,Properties - Main Market,0.140,0.130,689900,21000 / 511900,0.135 / 0.140,0.110 - 0.185,-15.28,-1.76,-7.65,0.00,0.00%,0.27,2.59,5.21,45.2M
2445,KLK (2445) [s],KUALA LUMPUR KEPONG BHD,,21.400,+0.220 (+1.04%),0.3394,51,0,51,-3.31%,6.28%,7/15/2015,8/11/2015,0.1500,Currency,Plantation - Main Market,22.060,21.120,645500,117800 / 7200,21.400 / 21.440,19.900 - 24.320,9.80,27.75,77.11,55.02,2.57%,2.72,1115.65,2140,22790.4M
2453,KLUANG (2453),+0.020 (+0.65%),,3.120,+0.020 (+0.65%),0.2667,51,11,0,3.83%,0.34%,12/18/2014,1/8/2015,1.0000,Percentage,Plantation - Main Market,3.120,3.100,7000,9000 / 2000,3.100 / 3.300,2.800 - 4.000,1.29,31.87,9.79,1.00,0.32%,0.41,38.98,8,197.1M
2488,AFG (2488),+0.050 (+1.15%),,4.390,+0.050 (+1.15%),0.0610,51,3,34,8.80%,10.39%,6/11/2015,6/30/2015,0.0640,Currency,Finance - Main Market,4.410,4.340,1971800,267600 / 84800,4.390 / 4.400,4.340 - 5.160,11.82,12.8,34.29,19.17,4.37%,1.51,89.32,4.91,6796.2M
2542,RVIEW (2542) [s],RIVERVIEW RUBBER ESTATES BHD,,3.820,0.000 (0.00%),0.3093,51,1,25,-11.87%,3.57%,6/18/2014,7/18/2014,10.0000,Percentage,Plantation - Main Market,3.820,3.820,-,1000 / 2000,3.880 / 4.000,3.520 - 4.490,2.40,34.45,11.09,12.25,3.21%,0.83,43.75,8.73,247.7M
2569,SBAGAN (2569),+0.020 (+0.65%),,3.120,+0.020 (+0.65%),0.2099,51,13,0,4.32%,-2.31%,12/18/2014,1/8/2015,2.3000,Percentage,Plantation - Main Market,3.120,3.100,7500,1000 / 5500,3.020 / 3.120,2.950 - 3.760,1.22,35.58,8.77,2.30,0.74%,0.43,17.58,17.75,206.9M
2577,YTLLAND (2577),+0.005 (+0.68%),,0.740,+0.005 (+0.68%),0.0164,51,0,51,8.27%,-9.61%,,,,,Properties - Main Market,0.745,0.735,91000,15800 / 800,0.740 / 0.745,0.735 - 1.040,1.98,30.2,2.45,0.00,0.00%,0.60,13.90,5.32,613.6M
2593,UMCCA (2593) [s],UNITED MALACCA BHD,,6.280,0.000 (0.00%),0.1467,51,0,51,-5.87%,3.63%,7/31/2015,8/21/2015,0.0800,Currency,Plantation - Main Market,6.280,6.120,24500,200 / 11000,6.280 / 6.300,6.060 - 7.560,2.80,27.68,22.69,23.92,3.81%,0.78,102.49,6.13,1306.1M
2607,INCKEN (2607) [s],INCH KENNETH KAJANG RUBBER PLC,,0.700,-0.005 (-0.71%),0.0943,51,23,0,-31.39%,-13.38%,5/21/2015,6/9/2015,0.0109,Currency,Plantation - Main Market,0.700,0.700,15000,5000 / 15100,0.700 / 0.720,0.675 - 0.940,-1.11,-36.27,-1.93,1.06,1.51%,0.40,4.92,14.23,293.1M
2615,JTINTER (2615),0.000 (0.00%),,,0.000 (0.00%),,47,0,47,1.89%,3.47%,12/5/2013,12/20/2013,0.1100,Currency,Consumer Products - Main Market,-,-,-,0 / 0,- / -,,0.00,0,0,0,0.00%,0.00,0,,0.0M
2658,AJI (2658) [s],AJINOMOTO (M) BHD,,6.140,0.000 (0.00%),0.7289,51,0,51,3.18%,6.68%,10/2/2014,10/21/2014,0.1850,Currency,Consumer Products - Main Market,6.140,6.140,-,7600 / 5000,6.130 / 6.400,4.930 - 6.590,10.63,12.56,48.90,18.50,3.01%,1.33,559.83,1.1,373.3M
2674,ALCOM (2674) [s],ALUMINIUM COMPANY OF MALAYSIA,,0.760,+0.030 (+4.11%),0.2344,51,15,1,-116.36%,-72.96%,7/22/2014,8/12/2014,5.0000,Percentage,Ind-Prod - Main Market,0.760,0.760,100,300 / 29300,0.730 / 0.760,0.610 - 1.250,-0.96,-62.3,-1.22,4.90,6.45%,0.60,208.23,0.36,102.1M
2682,AISB (2682) [s],AMALGAMATED INDUSTRIAL STEEL,,0.400,0.000 (0.00%),1.0000,51,27,0,36.01%,-19.69%,6/11/2010,7/12/2010,1.5000,Percentage,Ind-Prod - Main Market,0.400,0.400,-,11000 / 51100,0.330 / 0.380,0.275 - 0.400,-0.45,-100,-0.40,0.00,0.00%,0.45,60.70,0.66,50.0M
2739,HUAAN (2739) [s],SINO HUA-AN INTERNATIONAL BHD,,0.080,-0.005 (-5.88%),0.0588,51,29,0,-12.97%,-9.75%,5/19/2011,6/20/2011,0.0018,Currency,Ind-Prod - Main Market,0.085,0.080,365600,965400 / 566600,0.075 / 0.085,0.075 - 0.160,-1.28,-9.2,-0.87,0.00,0.00%,0.12,83.35,0.1,89.8M
2747,JAVA (2747) [s],JAVA BERHAD,,0.260,+0.050 (+23.81%),0.1613,51,29,0,-22.41%,-25.33%,10/30/2008,11/13/2008,0.0350,RM,Ind-Prod - Main Market,0.260,0.260,1000,12000 / 19000,0.205 / 0.260,0.210 - 0.520,-52.21,-1.19,-21.93,0.00,0.00%,0.62,18.89,1.38,45.1M
2755,FCW (2755) [s],FCW HOLDINGS BHD,,1.210,0.000 (0.00%),0.2800,51,21,1,29.90%,17.75%,5/28/2015,6/26/2015,10.0000,Percentage,Consumer Products - Main Market,1.210,1.210,-,10000 / 1800,1.200 / 1.350,1.000 - 1.750,24.52,5.36,22.56,0.00,0.00%,1.32,10.77,11.23,302.5M
2771,BSTEAD (2771),+0.050 (+1.22%),,4.150,+0.050 (+1.22%),0.1210,51,1,50,-4.34%,5.38%,6/15/2015,6/30/2015,0.0500,Currency,Trad/Serv - Main Market,4.160,4.050,244400,105400 / 10200,4.150 / 4.160,4.000 - 5.240,6.19,11.84,35.06,33.34,8.03%,0.73,967.02,0.43,4291.8M
2828,CIHLDG (2828),+0.020 (+0.83%),,2.440,+0.020 (+0.83%),0.7411,51,18,3,-32.40%,11.80%,11/24/2011,12/9/2011,4.6000,Currency,Consumer Products - Main Market,2.500,2.380,80100,200 / 7000,2.440 / 2.500,0.980 - 2.950,3.30,85.02,2.87,0.00,0.00%,2.80,205.07,1.19,395.3M
2836,CARLSBG (2836),0.000 (0.00%),,12.500,0.000 (0.00%),0.5099,51,0,51,10.46%,7.72%,4/30/2015,5/20/2015,0.6600,Currency,Consumer Products - Main Market,12.540,12.240,68100,3500 / 3900,12.400 / 12.500,10.440 - 14.480,53.70,18.62,67.12,60.61,4.85%,10.00,526.17,2.38,3845.3M
2852,CMSB (2852) [s],CAHYA MATA SARAWAK BHD,,5.150,-0.010 (-0.19%),0.8696,51,11,24,18.67%,10.16%,5/13/2015,5/29/2015,0.0700,Currency,Ind-Prod - Main Market,5.250,5.140,2028600,32500 / 11900,5.150 / 5.230,3.350 - 5.420,12.50,23.02,22.37,13.03,2.53%,2.88,167.10,3.08,5521.7M
2879,CCM (2879) [s],CHEMICAL COMPANY OF MALAYSIA,,0.990,-0.010 (-1.00%),0.3333,51,6,1,-112.05%,-107.71%,12/29/2014,1/15/2015,0.0250,Currency,Ind-Prod - Main Market,0.995,0.990,10500,10600 / 13000,0.990 / 1.000,0.870 - 1.230,-5.93,-10.3,-9.61,2.53,2.56%,0.61,238.63,0.41,450.1M
2887,LIONDIV (2887),-0.005 (-5.56%),,0.085,-0.005 (-5.56%),0.0000,51,27,0,-23.18%,-24.47%,6/19/2015,6/30/2015,1.0000,Ratio,Ind-Prod - Main Market,0.090,0.085,825200,50000 / 133300,0.085 / 0.090,0.085 - 0.180,-150.47,-0.16,-54.17,0.00,0.00%,0.24,184.82,0.05,118.3M
2925,CCB (2925) [s],CYCLE & CARRIAGE BINTANG BHD,,2.460,+0.020 (+0.82%),0.9242,51,4,5,-37.60%,-7.95%,8/3/2012,8/24/2012,0.0500,Currency,Trad/Serv - Main Market,2.490,2.440,19000,1000 / 12500,2.450 / 2.460,1.850 - 2.510,7.11,16.22,15.17,0.00,0.00%,1.15,991.84,0.25,247.8M
2968,GPLUS (2968),0.000 (0.00%),,1.050,0.000 (0.00%),NaN,8,0,8,NA,NA,,,,,Properties - Main Market,1.050,1.050,-,0 / 0,0.000 / 0.000,1.050 - 1.050,10.76,7.89,13.30,0.00,0.00%,0.85,280.20,0.37,154.2M
2976,WINGTM (2976) [s],WING TAI MALAYSIA BERHAD,,1.550,+0.030 (+1.97%),0.0617,51,2,23,8.93%,9.83%,12/3/2014,12/19/2014,0.0700,Currency,Properties - Main Market,1.550,1.500,17000,700 / 1000,1.500 / 1.550,1.500 - 2.310,7.62,6,25.83,6.97,4.50%,0.46,125.29,1.24,490.4M
2984,FACBIND (2984),0.000 (0.00%),,1.050,0.000 (0.00%),0.1683,51,16,4,33.42%,16.06%,12/12/2014,12/30/2014,2.8000,Percentage,Ind-Prod - Main Market,1.080,1.050,163100,36500 / 10000,1.050 / 1.110,0.965 - 1.470,1.66,26.32,3.99,2.81,2.68%,0.44,69.45,1.51,88.1M
3018,OLYMPIA (3018),0.000 (0.00%),,0.120,0.000 (0.00%),0.0000,51,38,0,-12.58%,-29.97%,,,,,Trad/Serv - Main Market,0.120,0.120,30000,898800 / 606500,0.115 / 0.120,0.120 - 0.215,-6.81,-5.69,-2.11,0.00,0.00%,0.39,16.00,0.75,122.8M
3026,DLADY (3026) [s],DUTCH LADY MILK INDUSTRIES BHD,,45.420,+0.100 (+0.22%),0.5816,51,0,51,8.70%,9.44%,4/24/2015,5/19/2015,1.1000,Currency,Consumer Products - Main Market,45.420,45.360,3500,300 / 200,45.360 / 45.600,41.000 - 48.600,59.63,28,162.19,219.94,4.84%,16.70,1514.78,4542,2906.9M
3034,HAPSENG (3034) [s],HAP SENG CONSOLIDATED BHD,,5.200,-0.280 (-5.11%),0.8607,51,1,25,18.19%,8.56%,6/8/2015,6/23/2015,0.1000,Currency,Trad/Serv - Main Market,5.580,5.190,4205800,8300 / 500,5.190 / 5.200,3.470 - 5.480,17.37,15.76,33.00,23.60,4.54%,2.74,178.21,2.92,11642.9M
3042,PETRONM (3042) [s],PETRON MSIA REFINING& MKTG BHD,,2.850,-0.010 (-0.35%),0.8462,51,25,1,-1,518.68%,14.51%,6/9/2014,6/25/2014,0.1400,Currency,Ind-Prod - Main Market,2.900,2.850,28700,10300 / 7000,2.850 / 2.890,2.300 - 2.950,-0.12,-814.29,-0.35,13.09,4.59%,0.94,3628.80,95,769.5M
3069,MFCB (3069) [s],MEGA FIRST CORPORATION BHD,,2.260,0.000 (0.00%),0.3103,51,0,51,0.26%,5.62%,6/19/2015,7/9/2015,0.0500,Currency,Trad/Serv - Main Market,2.260,2.260,24400,200 / 3000,2.260 / 2.320,2.080 - 2.660,9.63,6.9,32.73,10.49,4.64%,0.66,286.96,0.79,503.6M
3107,FIMACOR (3107) [s],FIMA CORPORATION BHD,,2.440,+0.020 (+0.83%),0.0363,51,0,51,-3.41%,6.62%,12/8/2014,12/24/2014,10.0000,Percentage,Ind-Prod - Main Market,2.440,2.420,58200,10000 / 94100,2.440 / 2.450,2.170 - 9.600,10.50,10.47,23.30,6.44,2.64%,1.10,157.91,1.55,584.1M
3115,KBUNAI (3115),+0.005 (+9.09%),,0.060,+0.005 (+9.09%),0.1000,51,45,0,46.94%,-7.12%,,,,,Properties - Main Market,0.060,0.055,1064800,50000 / 7220500,0.055 / 0.060,0.055 - 0.105,-4.63,-8.7,-0.69,0.00,0.00%,0.40,0.88,6.82,346.6M
3158,YNHPROP (3158) [s],YNH PROPERTY BHD,,1.900,-0.020 (-1.04%),0.1892,51,2,45,-6.99%,-5.37%,9/4/2015,9/29/2015,1.0000,Ratio,Properties - Main Market,1.940,1.890,362600,2700 / 24100,1.900 / 1.920,1.830 - 2.200,4.28,22.2,8.56,2.02,1.06%,0.95,110.21,1.72,762.5M
3174,L&G (3174) [s],LAND & GENERAL BHD,,0.430,0.000 (0.00%),0.0000,51,15,15,22.68%,16.08%,9/23/2014,10/16/2014,0.0200,Currency,Properties - Main Market,0.435,0.420,1336900,338300 / 100000,0.430 / 0.435,0.430 - 0.680,16.76,4.41,9.76,1.95,4.53%,0.74,43.09,1,464.4M
3182,GENTING (3182),+0.050 (+0.62%),,8.060,+0.050 (+0.62%),0.0251,51,2,25,1.30%,5.95%,6/26/2015,7/27/2015,0.0300,Currency,Trad/Serv - Main Market,8.230,8.000,3046800,28100 / 43000,8.060 / 8.100,8.010 - 10.000,5.72,18.51,43.54,1.00,0.12%,1.06,481.19,1.68,29967.3M
3204,GKENT (3204),+0.030 (+2.40%),,1.280,+0.030 (+2.40%),0.1392,51,4,47,8.42%,9.55%,7/10/2015,8/5/2015,0.0210,Currency,Trad/Serv - Main Market,1.290,1.220,580400,4200 / 38000,1.280 / 1.290,1.060 - 2.640,10.65,12.21,10.48,7.20,5.63%,1.30,115.62,1.11,384.5M
3239,BJASSET (3239),+0.005 (+0.63%),,0.805,+0.005 (+0.63%),0.1829,51,14,4,-30.27%,12.64%,1/6/2015,1/29/2015,0.0200,Currency,Properties - Main Market,0.805,0.805,14000,14000 / 1000,0.800 / 0.805,0.730 - 1.140,4.23,10.01,8.04,2.00,2.48%,0.42,37.38,2.15,896.0M
3247,GUH (3247) [s],GUH HOLDINGS BHD,,0.990,+0.005 (+0.51%),0.0308,51,5,27,-25.11%,12.02%,8/29/2014,9/18/2014,0.0500,Currency,Ind-Prod - Main Market,0.990,0.985,258500,1700 / 27500,0.990 / 1.000,0.970 - 1.620,3.68,14,7.07,4.96,5.01%,0.52,109.52,0.9,261.3M
3255,GAB (3255),-0.100 (-0.70%),,14.280,-0.100 (-0.70%),0.7692,51,0,51,5.09%,5.66%,3/27/2015,4/22/2015,0.2000,Currency,Consumer Products - Main Market,14.340,14.240,98500,1300 / 7000,14.280 / 14.320,12.080 - 14.940,55.28,19.87,71.87,64.49,4.52%,10.98,583.96,2.45,4314.0M
3263,GPERAK (3263),0.000 (0.00%),,,0.000 (0.00%),,3,3,0,NA,NA,,,,,Hotels - Main Market,-,-,-,0 / 0,- / -,,,0,0,0,0.00%,,0,,0.0M
3298,HEXZA (3298),+0.010 (+1.26%),,0.805,+0.010 (+1.26%),0.5738,51,2,25,-5.02%,-2.48%,11/24/2014,12/10/2014,8.0000,Percentage,Ind-Prod - Main Market,0.805,0.800,111000,11000 / 10000,0.795 / 0.800,0.630 - 0.935,6.40,11.65,6.91,4.06,5.04%,0.75,77.40,1.04,161.3M
3301,HLIND (3301),-0.020 (-0.45%),,4.430,-0.020 (-0.45%),0.0913,51,4,24,-2.46%,5.62%,5/7/2015,5/26/2015,0.1700,Currency,Consumer Products - Main Market,4.450,4.400,141100,40400 / 5000,4.430 / 4.450,4.000 - 8.710,14.05,8.17,54.25,26.06,5.88%,1.15,672.18,0.66,1415.3M
3336,IJM (3336) [s],IJM CORPORATION BHD,,6.520,-0.160 (-2.40%),0.1273,51,2,16,11.55%,11.42%,6/23/2015,7/9/2015,0.1100,Currency,Construction - Main Market,6.680,6.500,5523400,7600 / 20000,6.520 / 6.550,6.380 - 7.480,4.80,24.18,26.97,20.63,3.16%,1.16,305.53,2.13,11626.5M
3379,INSAS (3379),+0.020 (+2.50%),,0.820,+0.020 (+2.50%),0.1091,26,3,7,8.95%,NA,1/23/2015,2/25/2015,0.0100,Currency,Finance - Main Market,0.825,0.795,1485400,30400 / 5500,0.815 / 0.820,0.760 - 1.310,7.23,5.97,13.73,1.00,1.22%,0.43,57.79,1.42,543.7M
3395,BJCORP (3395),+0.005 (+1.23%),,0.410,+0.005 (+1.23%),0.1250,51,18,0,17.78%,13.87%,12/5/2014,12/30/2014,1.0000,Percentage,Trad/Serv - Main Market,0.415,0.400,5732500,748100 / 9800,0.405 / 0.410,0.385 - 0.585,13.09,1.97,20.77,1.20,2.93%,0.26,231.35,0.18,1701.0M
3417,E&O (3417) [s],EASTERN & ORIENTAL BHD,,1.700,+0.040 (+2.41%),0.0263,51,8,24,14.35%,9.85%,10/8/2014,11/5/2014,0.0300,Currency,Properties - Main Market,1.710,1.670,481100,18100 / 61700,1.690 / 1.700,1.660 - 3.180,9.53,13.61,12.49,2.75,1.62%,1.30,36.85,4.61,2073.5M
3441,JOHAN (3441),+0.010 (+6.25%),,0.170,+0.010 (+6.25%),0.1111,51,27,0,-28.36%,-1.28%,,,,,Finance - Main Market,0.170,0.160,324000,20000 / 55000,0.165 / 0.170,0.155 - 0.290,-16.97,-3.1,-5.49,0.00,0.00%,0.53,39.59,0.43,105.9M
3476,KSENG (3476),+0.040 (+0.76%),,5.270,+0.040 (+0.76%),0.1221,51,1,25,-7.70%,6.32%,6/29/2015,7/23/2015,6.0000,Percentage,Ind-Prod - Main Market,5.300,5.050,32800,200 / 5000,5.240 / 5.280,5.060 - 6.780,6.31,14.45,36.47,10.50,1.99%,0.91,286.63,1.84,1898.1M
3484,DBHD (3484) [s],DAMANSARA REALTY BHD,,0.800,-0.030 (-3.61%),0.0058,51,26,1,93.44%,9.59%,,,,,Properties - Main Market,0.800,0.800,15000,10000 / 1200,0.795 / 0.800,0.795 - 1.660,0.43,470.59,0.17,0.00,0.00%,2.00,68.44,1.17,247.5M
3492,KFC (3492),0.000 (0.00%),,3.980,0.000 (0.00%),,14,0,14,NA,NA,9/14/2011,10/7/2011,0.0300,Currency,Trad/Serv - Main Market,3.980,3.980,-,0 / 0,- / -,,0.00,0,0,0,0.00%,2.69,0,,3152.3M
3514,MARCO (3514) [s],MARCO HOLDINGS BHD,,0.165,0.000 (0.00%),0.2222,51,0,51,14.51%,11.21%,6/26/2015,7/15/2015,2.0000,Percentage,Trad/Serv - Main Market,0.165,0.165,1439300,864800 / 2281700,0.165 / 0.170,0.145 - 0.235,13.07,9.02,1.83,0.00,0.00%,1.18,15.20,1.09,174.0M
3522,KIANJOO (3522) [s],KIAN JOO CAN FACTORY BHD,,3.150,0.000 (0.00%),0.9000,49,0,49,8.59%,8.08%,4/22/2014,5/6/2014,15.0000,Percentage,Ind-Prod - Main Market,3.150,3.140,28300,9700 / 7800,3.150 / 3.160,2.790 - 3.190,10.99,10.81,29.13,6.25,1.98%,1.19,307.00,1.03,1399.1M
3557,ECOFIRS (3557) [s],ECOFIRST CONSOLIDATED BHD,,0.290,0.000 (0.00%),0.0435,51,31,3,91.34%,67.41%,,,,,Properties - Main Market,0.290,0.285,408100,186000 / 10000,0.285 / 0.295,0.285 - 0.400,-1.09,-96.67,-0.30,0.00,0.00%,1.05,6.23,4.65,211.7M
3565,KEURO (3565),+0.060 (+6.19%),,1.030,+0.060 (+6.19%),0.2162,50,22,0,243.98%,118.88%,,,,,Construction - Main Market,1.030,0.970,339100,503100 / 40000,1.000 / 1.030,0.950 - 1.320,6.13,27.03,3.81,0.00,0.00%,1.66,2.33,44.21,1032.8M
3573,LIENHOE (3573),+0.005 (+1.64%),,0.310,+0.005 (+1.64%),0.1818,51,40,0,-2.78%,33.54%,,,,,Properties - Main Market,0.310,0.305,353200,13000 / 62400,0.305 / 0.310,0.290 - 0.400,-4.62,-9.06,-3.42,0.00,0.00%,0.42,33.80,0.92,106.3M
3581,LIONCOR (3581),-0.005 (-10.00%),,0.045,-0.005 (-10.00%),0.0000,51,31,0,-4.51%,-9.62%,,,,,Ind-Prod - Main Market,0.045,0.045,175000,380000 / 35000,0.035 / 0.045,0.045 - 0.090,101.87,-0.1,-46.86,0.00,0.00%,-0.10,175.39,0.03,59.2M
3611,GBH (3611) [s],GOH BAN HUAT BHD,,1.490,-0.010 (-0.67%),0.1182,51,27,1,52.33%,25.47%,6/10/2015,7/3/2015,3.0000,Percentage,Ind-Prod - Main Market,1.500,1.490,6000,300 / 3000,1.500 / 1.660,1.360 - 2.460,27.51,3.76,39.62,0.00,0.00%,1.03,29.43,5.06,278.0M
3662,MFLOUR (3662) [s],MALAYAN FLOUR MILLS BHD,,1.360,0.000 (0.00%),0.0000,51,7,12,-9.62%,7.60%,3/9/2015,3/25/2015,0.0350,Currency,Consumer Products - Main Market,1.370,1.360,113500,66100 / 2000,1.350 / 1.380,1.360 - 2.180,6.89,14.62,9.30,6.51,4.79%,1.01,420.50,0.32,732.0M
3689,F&N (3689) [s],FRASER & NEAVE HOLDINGS BHD,,17.800,0.000 (0.00%),0.6163,51,0,51,-16.10%,6.24%,5/20/2015,6/12/2015,0.2200,Currency,Consumer Products - Main Market,18.040,17.700,2800,5700 / 1900,17.800 / 18.020,15.680 - 19.120,14.87,24.79,71.80,54.88,3.08%,3.69,1068.03,1780,6519.6M
3697,OILCORP (3697),-0.015 (-100.00%),,,-0.015 (-100.00%),,6,6,0,NA,NA,,,,,Trad/Serv - Main Market,-,-,-,0 / 0,- / -,,0.00,0,0,0,0.00%,0.00,0,,0.0M
3719,PANAMY (3719),0.000 (0.00%),,23.000,0.000 (0.00%),0.8885,51,2,40,5.88%,8.67%,9/3/2015,9/21/2015,0.9200,Currency,Consumer Products - Main Market,23.000,22.360,3300,200 / 1100,22.980 / 23.000,18.220 - 23.600,13.85,14.04,163.85,72.65,3.16%,1.94,1532.54,2300,1397.3M
3743,SUNSURIA (3743),0.000 (0.00%),,0.930,0.000 (0.00%),0.0000,51,20,29,14.31%,24.60%,,,,,Properties - Main Market,0.950,0.895,404100,1900 / 47700,0.925 / 0.930,0.930 - 2.050,4.84,33.1,2.81,0.00,0.00%,1.60,48.65,1.91,147.3M
3778,MELEWAR (3778),0.000 (0.00%),,0.235,0.000 (0.00%),0.0862,51,22,0,-31.54%,-18.77%,12/3/2010,12/30/2010,0.0200,Currency,Ind-Prod - Main Market,0.235,0.235,20000,55000 / 31100,0.230 / 0.255,0.210 - 0.500,31.79,0.65,35.92,0.00,0.00%,0.21,291.57,0.08,53.0M
3786,MAS (3786) [s],MALAYSIAN AIRLINE SYSTEM BHD,,0.265,0.000 (0.00%),0.9286,49,21,0,-40.53%,-18.26%,12/12/2008,12/30/2008,0.0300,RM,Trad/Serv - Main Market,0.265,0.265,-,0 / 0,- / -,0.200 - 0.270,-66.60,-2.65,-9.99,0.00,0.00%,1.77,86.59,0.31,4428.4M
3794,LAFMSIA (3794) [s],LAFARGE MALAYSIA BERHAD,,8.460,+0.010 (+0.12%),0.0046,51,3,39,-2.12%,6.71%,6/17/2015,7/15/2015,0.0800,Currency,Ind-Prod - Main Market,8.780,8.450,1106500,10500 / 3000,8.460 / 8.550,8.450 - 10.640,8.18,28.11,30.10,42.87,5.07%,2.30,325.12,2.6,7188.5M
3816,MISC (3816) [s],MISC BHD,,7.720,+0.050 (+0.65%),0.4482,50,3,11,19.37%,-32.38%,2/24/2015,3/11/2015,0.0600,Currency,Trad/Serv - Main Market,7.850,7.640,5676200,93500 / 2300,7.720 / 7.750,6.380 - 9.370,7.48,15.63,49.38,14.98,1.94%,1.17,212.73,3.63,34460.5M
3859,MAGNUM (3859),0.000 (0.00%),,2.650,0.000 (0.00%),0.1538,51,5,37,-8.55%,9.97%,6/10/2015,6/26/2015,5.0000,Percentage,Trad/Serv - Main Market,2.650,2.630,385400,48100 / 7900,2.640 / 2.650,2.570 - 3.090,10.77,14.22,18.64,19.94,7.52%,1.53,202.52,1.31,3775.5M
3867,MPI (3867) [s],MALAYSIAN PACIFIC INDUSTRIES,,6.660,+0.120 (+1.83%),0.8395,51,6,9,-1.95%,-17.61%,5/15/2015,6/2/2015,0.1300,Currency,Technology - Main Market,6.700,6.370,267400,8000 / 8400,6.580 / 6.660,4.150 - 7.140,9.45,15.98,41.67,16.19,2.43%,1.51,673.28,0.99,1324.7M
3883,MUDA (3883) [s],MUDA HOLDINGS BHD,,1.220,+0.020 (+1.67%),0.0630,51,11,24,-13.49%,10.07%,6/22/2015,7/14/2015,6.0000,Percentage,Ind-Prod - Main Market,1.220,1.210,111600,28400 / 20000,1.210 / 1.220,1.140 - 2.410,2.53,17.91,6.81,3.01,2.47%,0.45,347.44,0.35,372.2M
3891,MUIIND (3891),+0.005 (+2.70%),,0.190,+0.005 (+2.70%),0.0357,51,33,0,-208.79%,58.11%,,,,,Trad/Serv - Main Market,0.190,0.185,238400,932900 / 260700,0.185 / 0.190,0.185 - 0.325,-2.35,-30.16,-0.63,0.00,0.00%,0.71,19.41,0.98,557.2M
3905,MULPHA (3905),0.000 (0.00%),,0.360,0.000 (0.00%),0.0769,51,16,4,-54.34%,-42.39%,,,,,Trad/Serv - Main Market,0.365,0.355,4007200,9600 / 197000,0.360 / 0.365,0.345 - 0.540,7.99,4.13,8.71,0.00,0.00%,0.33,46.72,0.77,768.1M
3913,MUIPROP (3913) [s],MUI PROPERTIES BHD,,0.320,+0.005 (+1.59%),0.1905,51,23,0,-46.43%,49.87%,7/11/2012,7/27/2012,5.0000,Percentage,Properties - Main Market,0.325,0.285,7287800,10000 / 14400,0.315 / 0.320,0.280 - 0.490,-4.24,-18.39,-1.74,0.00,0.00%,0.78,3.88,8.25,237.1M
3921,MWE (3921),0.000 (0.00%),,1.330,0.000 (0.00%),0.1455,51,7,1,-7.18%,5.87%,5/15/2015,6/3/2015,2.0000,Percentage,Consumer Products - Main Market,1.330,1.330,-,2000 / 2500,1.260 / 1.340,1.250 - 1.800,2.74,17.88,7.44,2.01,1.51%,0.49,133.56,1,306.2M
3948,DUTALND (3948) [s],DUTALAND BHD,,0.495,+0.005 (+1.02%),0.1304,51,33,1,24.92%,9.04%,,,,,Plantation - Main Market,0.495,0.480,274300,172000 / 55900,0.490 / 0.495,0.450 - 0.795,8.89,5.25,9.42,0.00,0.00%,0.47,5.81,8.52,418.8M
4006,ORIENT (4006),-0.060 (-0.84%),,7.060,-0.060 (-0.84%),0.3904,51,1,25,-0.70%,-0.79%,6/26/2015,7/15/2015,2.0000,Percentage,Consumer Products - Main Market,7.130,7.000,40200,10000 / 100,7.040 / 7.060,6.490 - 7.950,6.09,13.94,50.65,13.00,1.84%,0.85,585.15,1.21,4379.7M
4022,TADMAX (4022),-0.010 (-3.17%),,0.305,-0.010 (-3.17%),0.0000,51,25,0,23.69%,-17.05%,7/29/2008,8/18/2008,1.5000,Percentage,Ind-Prod - Main Market,0.320,0.300,94000,6000 / 15100,0.300 / 0.305,0.305 - 0.505,-6.52,-10.63,-2.87,0.00,0.00%,0.69,4.38,6.96,135.7M
4057,ASIAPAC (4057) [s],ASIAN PAC HOLDINGS BHD,,0.245,+0.005 (+2.08%),0.2963,51,9,10,33.32%,14.00%,10/15/2014,11/13/2014,0.0020,Currency,Properties - Main Market,0.245,0.235,1062500,6100 / 357000,0.240 / 0.245,0.205 - 0.340,47.74,0.64,38.05,0.20,0.82%,0.31,23.23,1.05,242.9M
4065,PPB (4065) [s],PPB GROUP BHD,,15.120,+0.080 (+0.53%),0.6058,51,0,51,-25.22%,-4.90%,5/14/2015,5/29/2015,0.1600,Currency,Consumer Products - Main Market,15.260,14.920,498100,2200 / 600,15.060 / 15.120,13.460 - 16.200,5.70,17.83,84.81,24.00,1.59%,1.02,320.10,4.72,17924.8M
4081,PMCORP (4081),0.000 (0.00%),,0.185,0.000 (0.00%),0.1000,51,25,2,35.33%,49.65%,,,,,Consumer Products - Main Market,0.185,0.180,154000,640000 / 13000,0.180 / 0.190,0.165 - 0.365,0.16,231.25,0.08,0.00,0.00%,0.37,9.72,1.9,131.1M
4103,PMIND (4103),0.000 (0.00%),,0.035,0.000 (0.00%),,47,36,1,11.71%,66.32%,,,,,Properties - Main Market,0.035,0.035,-,0 / 0,- / -,,156.90,-1.28,-2.73,0.00,0.00%,-2.01,0.37,9.46,44.2M
4162,BAT (4162),+1.140 (+1.87%),,62.000,+1.140 (+1.87%),0.2089,51,0,51,4.61%,2.05%,5/14/2015,5/28/2015,0.7800,Currency,Consumer Products - Main Market,62.180,60.780,289200,2100 / 100,61.880 / 62.100,59.000 - 73.360,158.11,19.32,320.97,307.80,4.96%,30.54,1721.62,6200,17702.9M
4197,SIME (4197) [s],SIME DARBY BHD,,8.520,+0.030 (+0.35%),0.1517,50,2,19,5.58%,7.57%,4/21/2015,5/8/2015,0.0600,Currency,Trad/Serv - Main Market,8.630,8.350,4117600,608200 / 10000,8.490 / 8.520,8.300 - 9.750,8.68,21.03,40.52,35.83,4.21%,1.82,698.39,1.22,52919.1M
4219,BJLAND (4219),+0.005 (+0.70%),,0.715,+0.005 (+0.70%),0.0833,51,14,0,-65.15%,-84.81%,11/27/2014,12/18/2014,0.0100,Currency,Trad/Serv - Main Market,0.715,0.710,130000,10000 / 48000,0.660 / 0.715,0.700 - 0.880,-8.07,-8.95,-7.99,1.01,1.41%,0.72,118.60,0.6,3567.4M
4235,LIONIND (4235) [s],LION INDUSTRIES CORPORATION,,0.350,+0.005 (+1.45%),0.0106,51,20,0,-57.80%,-41.62%,12/27/2013,1/16/2014,1.0000,Percentage,Ind-Prod - Main Market,0.355,0.345,80200,50400 / 20000,0.350 / 0.355,0.345 - 0.815,-22.08,-0.45,-77.72,0.00,0.00%,0.10,494.55,0.07,250.3M
4243,WTK (4243) [s],WTK HOLDINGS BHD,,1.050,+0.030 (+2.94%),0.1648,51,3,20,7.41%,-11.66%,7/10/2015,8/3/2015,3.6600,Percentage,Ind-Prod - Main Market,1.050,1.010,168000,15000 / 29000,1.040 / 1.050,0.975 - 1.430,2.19,17.18,6.11,2.29,2.18%,0.38,139.81,0.75,501.4M
4251,IBHD (4251) [s],I-BHD,,0.565,+0.015 (+2.73%),0.0151,51,19,14,30.32%,14.63%,9/3/2014,9/29/2014,6.0000,Percentage,Properties - Main Market,0.570,0.555,470600,47400 / 600,0.560 / 0.565,0.515 - 3.820,5.68,9.56,5.91,0.70,1.24%,0.54,29.92,1.89,550.5M
4286,SEAL (4286) [s],SEAL INCORPORATED BHD,,0.560,+0.020 (+3.70%),0.0330,51,19,0,15.82%,24.73%,,,,,Properties - Main Market,0.560,0.560,10000,10000 / 15000,0.545 / 0.560,0.530 - 1.440,-1.72,-28.57,-1.96,0.00,0.00%,0.49,14.29,3.92,120.7M
4308,SUNWAY (4308),0.000 (0.00%),,,0.000 (0.00%),,10,0,10,NA,NA,4/20/2010,5/21/2010,0.0225,Currency,Construction - Main Market,-,-,-,0 / 0,- / -,,0.00,0,0,0,0.00%,0.00,0,,0.0M
4316,SHCHAN (4316) [s],SIN HENG CHAN (MALAYA) BHD,,0.700,0.000 (0.00%),0.1282,50,28,0,-104.80%,-18.42%,,,,,Plantation - Main Market,0.700,0.700,-,37000 / 29000,0.680 / 0.720,0.675 - 0.870,-6.32,-19.77,-3.54,0.00,0.00%,1.25,14.87,4.71,80.5M
4324,SHELL (4324),+0.090 (+1.89%),,4.840,+0.090 (+1.89%),0.1597,51,19,1,-59.90%,-50.70%,4/30/2013,5/16/2013,0.1500,Currency,Ind-Prod - Main Market,4.880,4.740,32900,100 / 1000,4.760 / 4.840,4.610 - 6.050,0.00,0,0.00,0,0.00%,3.55,4253.70,121,1452.0M
4359,TURIYA (4359) [s],TURIYA BHD,,0.160,0.000 (0.00%),0.0000,50,24,0,-35.83%,-7.44%,,,,,Ind-Prod - Main Market,0.160,0.160,-,32000 / 30000,0.160 / 0.170,0.160 - 0.280,1.05,27.59,0.58,0.00,0.00%,0.29,11.73,1.36,36.6M
4375,SMI (4375) [s],SOUTH MALAYSIA INDUSTRIES BHD,,0.180,+0.005 (+2.86%),0.4118,51,24,1,-36.65%,-26.35%,,,,,Properties - Main Market,0.180,0.175,298900,50000 / 36000,0.175 / 0.185,0.145 - 0.230,-4.19,-6.14,-2.93,0.00,0.00%,0.26,35.22,0.51,37.8M
4383,JTIASA (4383) [s],JAYA TIASA HOLDINGS BHD,,1.510,-0.010 (-0.66%),0.0088,51,3,1,-20.11%,1.49%,12/1/2014,12/17/2014,1.5000,Percentage,Ind-Prod - Main Market,1.530,1.500,35600,4800 / 1700,1.510 / 1.520,1.500 - 2.640,1.67,50,3.02,1.51,1.00%,0.83,110.03,1.37,1461.7M
4405,TCHONG (4405) [s],TAN CHONG MOTOR HOLDINGS BHD,,2.950,+0.200 (+7.27%),0.1053,51,0,51,-8.43%,3.47%,6/1/2015,6/23/2015,6.0000,Percentage,Consumer Products - Main Market,2.960,2.760,195700,77000 / 101000,2.950 / 2.960,2.650 - 5.500,3.26,21.22,13.90,8.96,3.04%,0.69,776.73,0.38,1925.4M
4421,TWS (4421),0.000 (0.00%),,9.240,0.000 (0.00%),,42,0,42,13.71%,NA,12/12/2012,12/27/2012,0.1500,Currency,Consumer Products - Main Market,9.240,9.240,-,0 / 0,- / -,,0.00,0,0,0,0.00%,1.12,0,,2739.3M
4448,TASEK (4448) [s],TASEK CORPORATION BHD,,16.080,+0.080 (+0.50%),0.5333,51,4,39,0.74%,8.35%,5/13/2015,5/29/2015,50.0000,Percentage,Ind-Prod - Main Market,16.080,15.980,6700,200 / 2400,16.000 / 16.080,14.800 - 17.200,13.12,18.79,85.60,180.50,11.23%,2.46,544.10,2.96,1947.9M
4456,DNEX (4456) [s],DAGANG NEXCHANGE BERHAD,,0.245,-0.005 (-2.00%),0.1250,51,25,5,-26.66%,45.25%,6/18/2013,7/12/2013,0.0400,Currency,Technology - Main Market,0.255,0.240,2538400,727500 / 532000,0.245 / 0.250,0.225 - 0.385,12.64,17.63,1.39,0.00,0.00%,2.23,11.63,2.11,189.9M
4464,NICORP (4464) [s],NAIM INDAH CORPORATION BHD,,0.105,0.000 (0.00%),0.3333,51,37,1,41.12%,-11.13%,,,,,Trad/Serv - Main Market,0.105,0.100,603200,1279800 / 1428100,0.105 / 0.110,0.090 - 0.135,-21.71,-6.91,-1.52,0.00,0.00%,1.50,0.62,16.94,81.1M
4502,MEDIA (4502),-0.040 (-2.67%),,1.460,-0.040 (-2.67%),0.0756,51,6,1,-19.32%,7.07%,6/3/2015,6/26/2015,0.0500,Currency,Trad/Serv - Main Market,1.490,1.450,561300,2800 / 3700,1.460 / 1.480,1.370 - 2.560,4.18,24.01,6.08,10.96,7.51%,1.00,133.63,1.09,1619.4M
4529,LEADER (4529),0.000 (0.00%),,0.745,0.000 (0.00%),,11,0,11,NA,NA,5/18/2012,6/6/2012,0.4670,Currency,Ind-Prod - Main Market,-,-,-,0 / 0,- / -,,0.00,0,0,0,0.00%,0.53,0,,324.8M
4537,UAC (4537),0.000 (0.00%),,4.340,0.000 (0.00%),,14,0,14,NA,NA,12/10/2012,12/20/2012,4.3000,Currency,Ind-Prod - Main Market,4.340,4.340,-,0 / 0,- / -,,4.74,21.68,20.02,22.01,5.07%,1.03,264.43,1.64,322.9M
4561,UMLAND (4561),0.000 (0.00%),,2.430,0.000 (0.00%),,13,1,11,NA,NA,9/3/2012,9/20/2012,0.0500,Currency,Properties - Main Market,-,-,-,0 / 0,- / -,,0.00,0,0,0,0.00%,0.80,0,,731.8M
4588,UMW (4588) [s],UMW HOLDINGS BHD,,10.140,+0.120 (+1.20%),0.0476,51,0,51,6.64%,7.32%,4/9/2015,4/24/2015,0.1600,Currency,Consumer Products - Main Market,10.200,9.960,1250600,357900 / 10000,10.140 / 10.160,10.020 - 12.540,8.89,20.17,50.27,34.00,3.35%,1.79,1251.05,1014,11846.5M
4596,SAPRES (4596) [s],SAPURA RESOURCES BHD,,0.875,+0.005 (+0.57%),0.2125,51,19,10,-41.05%,11.32%,6/11/2015,6/23/2015,0.0250,Currency,Properties - Main Market,0.875,0.875,100,200 / 10000,0.865 / 0.885,0.790 - 1.190,6.26,5.27,16.60,0.00,0.00%,0.33,28.62,3.06,122.2M
4634,POS (4634) [s],POS MALAYSIA BHD,,4.280,+0.030 (+0.71%),0.1324,51,3,25,11.77%,5.05%,9/10/2014,10/7/2014,0.0710,Currency,Trad/Serv - Main Market,4.320,4.250,491000,59500 / 2000,4.280 / 4.290,4.100 - 5.460,11.32,18.09,23.66,7.10,1.66%,2.05,278.21,1.54,2298.5M
4642,YHS (4642),0.000 (0.00%),,3.580,0.000 (0.00%),,13,4,7,NA,NA,6/20/2012,7/9/2012,0.0900,Currency,Consumer Products - Main Market,3.580,3.580,-,0 / 0,- / -,,0.00,0,0,0,0.00%,1.98,0,,549.7M
4677,YTL (4677),+0.040 (+2.65%),,1.550,+0.040 (+2.65%),0.1923,51,0,51,8.03%,4.33%,10/29/2014,11/14/2014,0.0950,Currency,Trad/Serv - Main Market,1.550,1.500,9087100,50500 / 880800,1.540 / 1.550,1.500 - 1.760,7.83,14.55,10.65,10.45,6.74%,1.14,165.58,0.94,16148.9M
4707,NESTLE (4707) [s],NESTLE (M) BHD,,71.500,+0.380 (+0.53%),0.5693,51,0,51,5.90%,6.27%,5/11/2015,5/27/2015,1.7500,Currency,Consumer Products - Main Market,71.500,71.500,76000,7000 / 200,71.500 / 71.540,66.240 - 75.480,57.56,30.22,236.56,235.01,3.29%,17.40,2052.86,3575,16766.8M
4715,GENM (4715),+0.090 (+2.19%),,4.200,+0.090 (+2.19%),0.4659,51,1,25,-0.02%,3.90%,6/26/2015,7/23/2015,0.0350,Currency,Trad/Serv - Main Market,4.480,4.110,11782100,348600 / 10000,4.200 / 4.210,3.790 - 4.670,6.92,19.97,21.03,6.90,1.64%,1.38,146.31,2.87,23815.8M
4723,JAKS (4723),+0.010 (+1.38%),,0.735,+0.010 (+1.38%),0.7889,50,11,14,59.63%,-448.59%,,,,,Construction - Main Market,0.745,0.720,8437900,464800 / 139900,0.730 / 0.735,0.380 - 0.830,3.48,19.92,3.69,0.00,0.00%,0.69,112.53,0.65,322.2M
4731,SCIENTX (4731) [s],SCIENTEX BERHAD,,6.890,+0.130 (+1.92%),0.6452,51,1,49,15.23%,10.67%,7/15/2015,8/7/2015,18.0000,Percentage,Ind-Prod - Main Market,6.890,6.820,23200,200 / 1100,6.850 / 6.890,5.690 - 7.550,18.57,9.84,70.01,20.83,3.02%,1.83,781.27,0.88,1556.2M
4758,ANCOM (4758),-0.005 (-1.23%),,0.400,-0.005 (-1.23%),0.0469,51,25,0,29.52%,-51.66%,1/9/2015,1/23/2015,0.0100,Currency,Ind-Prod - Main Market,0.400,0.400,3300,35700 / 24000,0.400 / 0.405,0.385 - 0.705,-1.03,-30.08,-1.33,1.00,2.50%,0.31,736.04,0.05,86.4M
4782,PACMAS (4782),0.000 (0.00%),,0.185,0.000 (0.00%),,13,0,13,NA,NA,6/13/2012,6/29/2012,2.4050,Currency,Finance - Main Market,-,-,-,0 / 0,- / -,,0.00,0,0,0,0.00%,0.18,0,,31.6M
4804,TWSCORP (4804),0.000 (0.00%),,1.090,0.000 (0.00%),,44,16,2,-157.68%,13.65%,7/5/2012,7/31/2012,0.0050,Currency,Trad/Serv - Main Market,1.090,1.090,-,0 / 0,- / -,,-2.19,-29.46,-3.70,0.50,0.46%,0.64,66.59,1.64,1205.6M
4839,LHH (4839),0.000 (0.00%),,1.790,0.000 (0.00%),,11,1,7,NA,NA,2/16/2012,3/6/2012,5.0000,Percentage,Consumer Products - Main Market,-,-,-,0 / 0,- / -,,0.00,0,0,0,0.00%,0.69,0,,316.7M
4847,KTB (4847) [s],KONSORTIUM TRANSNASIONAL BHD,,0.260,+0.010 (+4.00%),0.1212,51,29,6,232.66%,-13.32%,,,,,Trad/Serv - Main Market,0.260,0.245,666000,5100 / 296200,0.255 / 0.260,0.220 - 0.550,3.22,25.24,1.03,0.00,0.00%,0.81,51.92,0.5,104.7M
4863,TM (4863) [s],TELEKOM MALAYSIA BHD,,6.540,-0.020 (-0.30%),0.2365,51,2,26,-2.70%,-13.75%,5/15/2015,6/18/2015,0.1340,Currency,Trad/Serv - Main Market,6.600,6.510,9874800,2900 / 200000,6.540 / 6.560,6.190 - 7.670,9.72,32.42,20.17,25.16,3.85%,3.15,306.21,2.14,24324.7M
4871,PMCAP (4871),0.000 (0.00%),,,0.000 (0.00%),,46,27,0,-26.98%,-17.09%,,,,,Finance - Main Market,-,-,-,0 / 0,- / -,,-378.87,0,-2.69,0.00,0.00%,0.00,2.65,0,-M
4898,TA (4898),-0.005 (-0.73%),,0.680,-0.005 (-0.73%),0.0500,51,4,1,11.63%,-0.37%,7/31/2015,8/19/2015,1.8000,Percentage,Finance - Main Market,0.690,0.675,742700,97800 / 4300,0.680 / 0.685,0.660 - 1.060,7.36,8.1,8.39,2.80,4.12%,0.60,56.27,1.21,1164.1M
4901,NAMFATT (4901),0.000 (0.00%),,,0.000 (0.00%),,7,7,0,NA,NA,8/20/2008,9/17/2008,1.0000,Percentage,Construction - Main Market,-,-,-,0 / 0,- / -,,0.00,0,0,0,0.00%,0.00,0,,0.0M
4936,MALPAC (4936),0.000 (0.00%),,1.810,0.000 (0.00%),0.5102,51,13,0,-115.88%,-2,505.16%,,,,,Plantation - Main Market,1.810,1.810,14000,5000 / 40000,1.790 / 1.820,1.560 - 2.050,-2.42,-29.29,-6.18,0.00,0.00%,0.71,0.00,,135.8M
4944,NYLEX (4944) [s],NYLEX (M) BHD,,0.540,0.000 (0.00%),0.0976,51,6,0,-78.99%,-18.07%,12/3/2014,12/19/2014,0.0300,Currency,Ind-Prod - Main Market,0.540,0.520,12100,2000 / 3800,0.535 / 0.540,0.520 - 0.725,1.41,24.66,2.19,2.99,5.54%,0.35,687.51,0.08,104.1M
4952,AHP (4952),+0.040 (+3.85%),,1.080,+0.040 (+3.85%),0.2222,51,1,1,-15.22%,-2.28%,2/12/2015,2/27/2015,0.0370,Currency,Reits - Main Market,1.080,1.050,103000,15000 / 70300,1.060 / 1.080,1.040 - 1.220,2.16,32.93,3.28,7.41,6.86%,0.71,14.20,7.61,108.0M
4995,VERSATL (4995) [s],VERSATILE CREATIVE BHD,,0.765,0.000 (0.00%),0.6364,50,36,0,-34.02%,-3.24%,,,,,Ind-Prod - Main Market,0.765,0.765,-,4800 / 1700,0.690 / 0.765,0.450 - 0.945,-20.15,-7.3,-10.48,0.00,0.00%,1.47,42.48,1.8,89.8M
5000,HUMEIND (5000) [s],HUME INDUSTRIES BHD,,3.790,0.000 (0.00%),0.5305,51,16,3,34.21%,12.77%,5/15/2015,6/3/2015,0.0300,Currency,Ind-Prod - Main Market,3.790,3.720,223300,56700 / 14000,3.790 / 3.800,2.140 - 5.250,7.59,60.16,6.30,0.00,0.00%,4.57,65.14,5.82,1815.8M
5001,MIECO (5001) [s],MIECO CHIPBOARD BHD,,0.705,+0.035 (+5.22%),0.8608,51,21,4,-32.17%,-15.17%,,,,,Ind-Prod - Main Market,0.705,0.670,2000900,200 / 26900,0.700 / 0.705,0.365 - 0.760,8.90,6,11.75,0.00,0.00%,0.53,155.53,0.45,148.1M
5005,UNISEM (5005) [s],UNISEM (M) BHD,,2.330,+0.060 (+2.64%),0.7958,51,15,5,-8,434.66%,-24.64%,5/8/2015,5/28/2015,8.0000,Percentage,Technology - Main Market,2.350,2.250,4210000,5000 / 1900,2.320 / 2.340,1.200 - 2.620,7.56,19.18,12.15,3.96,1.70%,1.45,160.14,1.45,1586.4M
5006,MERGE (5006) [s],MERGE ENERGY BHD,,0.370,0.000 (0.00%),0.1923,51,10,2,34.41%,-25.61%,,,,,Construction - Main Market,0.370,0.370,-,10000 / 10000,0.340 / 0.370,0.320 - 0.580,5.44,7.72,4.79,0.00,0.00%,0.42,152.73,0.24,24.8M
5007,CHINWEL (5007) [s],CHIN WELL HOLDINGS BHD,,1.540,+0.020 (+1.32%),0.5385,50,2,25,7.77%,4.56%,3/27/2015,4/24/2015,4.0000,Percentage,Ind-Prod - Main Market,1.540,1.500,35000,1000 / 10000,1.530 / 1.540,1.330 - 1.720,9.37,11.33,13.59,4.39,2.85%,1.06,167.35,0.92,461.3M
5008,HARISON (5008),0.000 (0.00%),,3.530,0.000 (0.00%),0.4624,51,2,4,-32.53%,2.36%,7/16/2015,8/18/2015,0.1500,Currency,Trad/Serv - Main Market,3.530,3.530,-,5000 / 400,3.500 / 3.590,3.100 - 4.030,7.53,11.01,32.07,15.01,4.25%,0.83,2166.47,176.5,241.7M
5009,WTHORSE (5009) [s],WHITE HORSE BHD,,2.400,0.000 (0.00%),1.0000,51,0,51,-3.60%,-0.38%,6/22/2015,7/10/2015,0.0500,Currency,Ind-Prod - Main Market,2.400,2.400,-,5000 / 1000,2.200 / 2.420,1.990 - 2.400,8.05,9.03,26.57,10.00,4.17%,0.73,342.22,0.7,550.5M
5010,TONGHER (5010) [s],TONG HERR RESOURCES BHD,,1.920,-0.010 (-0.52%),0.0208,51,2,23,2.67%,-11.90%,6/12/2015,6/26/2015,0.0600,Currency,Ind-Prod - Main Market,1.970,1.910,52100,12900 / 5600,1.920 / 2.040,1.910 - 2.390,8.11,8.34,23.02,11.01,5.73%,0.68,465.50,0.41,242.4M
5011,MSNIAGA (5011) [s],MESINIAGA BHD,,1.100,-0.050 (-4.35%),0.0000,51,9,0,-63.19%,-43.50%,6/19/2014,7/9/2014,0.1000,Currency,Technology - Main Market,1.170,1.100,29900,12000 / 5000,1.110 / 1.160,1.100 - 2.000,-27.67,-1.93,-57.01,10.00,9.09%,0.53,407.42,0.27,66.4M
5012,TAANN (5012) [s],TA ANN HOLDINGS BHD,,3.810,0.000 (0.00%),0.4286,51,1,25,5.92%,2.03%,7/15/2015,8/17/2015,0.1000,Currency,Ind-Prod - Main Market,3.880,3.780,185000,1000 / 124800,3.800 / 3.810,3.300 - 4.490,11.14,11.68,32.63,20.01,5.25%,1.30,278.26,1.37,1411.8M
5014,AIRPORT (5014),+0.110 (+1.80%),,6.210,+0.110 (+1.80%),0.0458,51,2,3,9.88%,7.89%,5/19/2015,6/18/2015,0.0360,Currency,Trad/Serv - Main Market,6.320,6.100,848600,6200 / 10400,6.210 / 6.240,6.100 - 8.500,7.59,15.73,39.49,7.69,1.24%,1.19,208.18,2.98,10258.0M
5015,APM (5015) [s],APM AUTOMOTIVE HOLDINGS BHD,,4.780,0.000 (0.00%),0.2135,51,0,51,-0.40%,5.83%,6/3/2015,6/26/2015,0.1200,Currency,Ind-Prod - Main Market,4.780,4.780,-,200 / 10000,4.520 / 4.980,4.400 - 6.180,7.80,10.3,46.43,19.51,4.08%,0.80,632.86,0.76,935.1M
5016,WARISAN (5016) [s],WARISAN TC HOLDINGS BHD,,2.850,0.000 (0.00%),0.3519,51,2,1,6.40%,-0.82%,6/2/2015,6/25/2015,0.0450,Currency,Trad/Serv - Main Market,2.850,2.850,-,1000 / 500,2.210 / 3.090,2.470 - 3.550,-0.03,-1676.47,-0.17,8.99,3.15%,0.56,712.88,0.4,185.5M
5018,HUNZPTY (5018) [s],HUNZA PROPERTIES BHD,,2.340,+0.010 (+0.43%),0.9194,51,0,51,10.77%,9.40%,12/27/2013,1/16/2014,0.0560,Currency,Properties - Main Market,2.350,2.330,179000,9000 / 6000,2.330 / 2.340,1.770 - 2.390,6.14,10.99,21.29,0.00,0.00%,0.67,78.67,2.97,526.7M
5019,UNICO (5019),0.000 (0.00%),,,0.000 (0.00%),,45,1,4,-16.50%,2.20%,8/30/2013,9/18/2013,0.0250,Currency,Plantation - Main Market,-,-,-,0 / 0,- / -,,0.00,0,0,0,0.00%,0.00,0,,0.0M
5020,GLOMAC (5020) [s],GLOMAC BHD,,0.800,0.000 (0.00%),0.0476,51,0,51,11.18%,8.49%,6/11/2015,6/22/2015,0.0200,Currency,Properties - Main Market,0.820,0.795,609900,26400 / 451300,0.795 / 0.800,0.780 - 1.200,9.10,6.71,11.92,4.89,6.11%,0.61,64.97,1.23,581.4M
5021,AYS (5021) [s],AYS VENTURES BHD,,0.265,0.000 (0.00%),0.2500,51,3,1,-77.14%,0.34%,7/16/2015,8/10/2015,0.0100,Currency,Trad/Serv - Main Market,0.265,0.265,-,119800 / 76700,0.260 / 0.275,0.235 - 0.355,3.32,14.25,1.86,0.00,0.00%,0.47,148.20,0.18,100.8M
5022,PAOS (5022) [s],PAOS HOLDINGS BHD,,0.650,0.000 (0.00%),0.3158,50,6,1,-38.94%,8.92%,5/13/2015,5/29/2015,0.0125,Currency,Consumer Products - Main Market,0.650,0.650,-,100 / 7000,0.665 / 0.760,0.590 - 0.780,1.00,78.31,0.83,2.49,3.83%,0.78,49.99,1.3,78.5M
5024,HUPSENG (5024) [s],HUP SENG INDUSTRIES BHD,,1.190,0.000 (0.00%),0.9333,51,2,14,10.71%,10.40%,5/21/2015,6/10/2015,0.0150,Currency,Consumer Products - Main Market,1.190,1.160,901900,404600 / 36000,1.180 / 1.190,0.770 - 1.220,24.90,22.75,5.23,10.99,9.24%,5.67,33.61,3.54,952.0M
5025,NWP (5025) [s],NWP HOLDINGS BHD,,0.110,0.000 (0.00%),0.0000,50,34,2,190.94%,-0.52%,,,,,Ind-Prod - Main Market,0.110,0.110,-,55000 / 12000,0.100 / 0.150,0.110 - 0.170,-2.06,-36.67,-0.30,0.00,0.00%,0.76,5.10,2.16,35.2M
5026,MHC (5026) [s],MHC PLANTATIONS BHD,,0.950,-0.020 (-2.06%),0.2203,51,0,51,-20.46%,3.66%,6/16/2015,6/29/2015,2.0000,Percentage,Plantation - Main Market,0.950,0.930,11700,10000 / 5300,0.915 / 0.950,0.885 - 1.180,2.70,16.7,5.69,2.00,2.11%,0.45,158.62,0.6,186.7M
5027,KMLOONG (5027) [s],KIM LOONG RESOURCES BHD,,2.770,+0.050 (+1.84%),0.6447,51,0,51,1.42%,7.65%,8/10/2015,8/28/2015,10.0000,Percentage,Plantation - Main Market,2.800,2.750,79700,1000 / 800,2.760 / 2.770,2.280 - 3.040,10.45,13.95,19.85,14.97,5.40%,1.46,231.58,1.2,862.1M
5028,HTPADU (5028) [s],HEITECH PADU BHD,,0.685,+0.015 (+2.24%),0.6842,51,12,2,-53.22%,-47.10%,6/26/2015,7/29/2015,2.0000,Percentage,Technology - Main Market,0.690,0.670,385900,5100 / 5000,0.685 / 0.690,0.555 - 0.745,-0.66,-76.11,-0.90,0.00,0.00%,0.50,467.19,0.15,69.3M
5029,FAREAST (5029) [s],FAR EAST HOLDINGS BHD,,8.200,-0.100 (-1.20%),0.7692,51,0,51,0.44%,4.92%,6/29/2015,7/15/2015,0.2000,Currency,Plantation - Main Market,8.200,8.200,5000,1000 / 600,8.050 / 8.280,7.200 - 8.500,7.31,14.22,57.68,25.00,3.05%,1.04,278.55,2.94,1159.4M
5030,RANHILL (5030),0.000 (0.00%),,0.895,0.000 (0.00%),,9,2,0,NA,NA,2/2/2011,2/28/2011,0.0100,Currency,Construction - Main Market,-,-,-,0 / 0,- / -,,0.00,0,0,0,0.00%,0.75,0,,534.7M
5031,TIMECOM (5031) [s],TIME DOTCOM BHD,,6.760,+0.180 (+2.74%),1.0000,51,23,24,19.73%,32.11%,3/10/2015,3/31/2015,0.0560,Currency,IPC - Main Market,6.770,6.580,450800,7400 / 21600,6.760 / 6.770,4.500 - 6.760,8.34,19.29,35.04,5.60,0.83%,1.61,110.85,6.1,3879.3M
5032,BIPORT (5032) [s],BINTULU PORT HOLDINGS BHD,,6.900,0.000 (0.00%),0.4615,51,0,51,1.57%,2.38%,7/22/2015,8/11/2015,0.0600,Currency,Trad/Serv - Main Market,6.900,6.900,-,2800 / 2200,6.900 / 7.200,6.600 - 7.250,11.43,23.05,29.94,25.49,3.69%,2.63,120.62,5.72,3174.0M
5033,MHOUSE (5033),0.000 (0.00%),,,0.000 (0.00%),,8,3,1,NA,NA,3/11/2010,1/1/1970,1.0000,Ratio,Properties - Main Market,-,-,-,0 / 0,- / -,,0.00,0,0,0,0.00%,0.00,0,,0.0M
5035,KNUSFOR (5035) [s],KNUSFORD BHD,,1.860,+0.030 (+1.64%),0.7451,51,3,25,5.51%,12.01%,7/29/2015,8/18/2015,0.0500,Currency,Trad/Serv - Main Market,1.860,1.860,3000,3000 / 3000,1.720 / 1.850,1.480 - 1.990,9.23,6.82,27.26,5.00,2.69%,0.63,407.43,0.46,185.3M
5036,EDARAN (5036) [s],EDARAN BHD,,0.320,-0.010 (-3.03%),0.2889,51,30,1,10.79%,-7.08%,11/26/2010,12/27/2010,0.7800,Percentage,Trad/Serv - Main Market,0.320,0.280,54500,5000 / 11000,0.315 / 0.330,0.255 - 0.480,-1.55,-36.36,-0.88,0.00,0.00%,0.56,81.45,0.39,18.5M
5037,COMPUGT (5037) [s],COMPUGATES HOLDINGS BHD,,0.050,0.000 (0.00%),0.2000,51,36,0,82.23%,11.37%,,,,,Trad/Serv - Main Market,0.050,0.045,700000,57574700 / 28864300,0.045 / 0.050,0.045 - 0.070,-23.50,-3.55,-1.41,0.00,0.00%,0.83,6.11,0.82,106.7M
5038,KSL (5038) [s],KSL HOLDINGS BHD,,1.730,+0.010 (+0.58%),0.0095,51,1,5,19.78%,9.23%,1/27/2015,2/25/2015,10.0000,Percentage,Properties - Main Market,1.730,1.670,3255900,136900 / 14000,1.730 / 1.740,1.700 - 4.870,19.61,4.57,37.84,4.89,2.83%,0.90,89.68,1.93,1653.2M
5039,BANENG (5039),0.000 (0.00%),,0.015,0.000 (0.00%),,10,10,0,NA,NA,,,,,Consumer Products - Main Market,-,-,-,0 / 0,- / -,,0.00,0,0,0,0.00%,-0.02,0,,0.9M
5040,MEDAINC (5040) [s],MEDA INC. BHD,,0.590,+0.010 (+1.72%),0.1143,51,20,0,22.94%,56.25%,8/21/2014,9/19/2014,0.0100,Currency,Properties - Main Market,0.590,0.580,26800,4200 / 15900,0.580 / 0.590,0.570 - 0.745,-4.43,-30.26,-1.95,0.97,1.64%,1.34,27.50,2.15,285.1M
5041,PBA (5041) [s],PBA HOLDINGS BHD,,1.100,+0.030 (+2.80%),0.1282,51,1,1,-1.96%,-7.40%,7/1/2015,7/24/2015,4.0000,Percentage,Trad/Serv - Main Market,1.100,1.100,15100,4000 / 1900,1.070 / 1.100,1.050 - 1.440,2.49,20,5.50,3.75,3.41%,0.50,78.49,1.4,364.1M
5042,TSRCAP (5042) [s],TSR CAPITAL BHD,,0.770,0.000 (0.00%),0.0000,51,4,13,1,246.80%,-11.24%,8/19/2015,9/18/2015,0.0100,Currency,Construction - Main Market,0.770,0.770,-,6000 / 5000,0.760 / 0.800,0.770 - 1.130,4.27,15.4,5.00,0.91,1.18%,0.66,109.11,0.71,89.6M
5043,NADAYU (5043),0.000 (0.00%),,,0.000 (0.00%),,45,9,2,-2.20%,-1.15%,8/23/2013,9/17/2013,0.0100,Currency,Properties - Main Market,-,-,-,0 / 0,- / -,,0.00,0,0,0,0.00%,0.00,0,,0.0M
5046,HSLEONG (5046),0.000 (0.00%),,,0.000 (0.00%),,9,9,0,NA,NA,,,,,Trad/Serv - Main Market,-,-,-,0 / 0,- / -,,0.00,0,0,0,0.00%,0.00,0,,0.0M
5047,NPC (5047) [s],NPC RESOURCES BHD,,2.740,0.000 (0.00%),0.3846,51,2,0,-33.28%,-1.23%,8/1/2014,8/15/2014,0.0200,Currency,Plantation - Main Market,2.740,2.740,-,0 / 10000,0.000 / 2.760,2.640 - 2.900,4.42,25.7,10.66,2.00,0.73%,1.14,356.99,0.77,328.2M
5048,YILAI (5048) [s],YI-LAI BHD,,0.970,0.000 (0.00%),0.1325,51,0,51,-0.49%,-15.80%,4/8/2015,5/8/2015,0.0200,Currency,Ind-Prod - Main Market,0.970,0.960,29600,18900 / 20000,0.960 / 0.990,0.915 - 1.330,6.59,11.49,8.44,3.00,3.09%,0.76,101.09,0.96,154.8M
5049,CVIEW (5049) [s],COUNTRY VIEW BHD,,2.230,-0.010 (-0.45%),0.0175,50,15,17,29.74%,15.68%,5/15/2015,5/29/2015,0.0300,Currency,Properties - Main Market,2.240,2.230,3400,400 / 8200,2.230 / 2.250,2.210 - 3.350,19.82,3.93,56.68,28.00,12.56%,0.78,159.32,1.4,223.0M
5052,PLUS (5052),0.000 (0.00%),,4.430,0.000 (0.00%),,10,0,10,NA,NA,12/12/2011,12/28/2011,4.4500,Currency,Trad/Serv - Main Market,-,-,-,0 / 0,- / -,,0.00,0,0,0,0.00%,3.89,0,,22149.4M
5053,OSK (5053),0.000 (0.00%),,2.120,0.000 (0.00%),0.4267,51,4,13,12.14%,9.87%,4/16/2015,5/8/2015,0.0500,Currency,Finance - Main Market,2.130,2.100,947200,4900 / 71700,2.120 / 2.130,1.800 - 2.550,7.50,9.68,21.89,7.50,3.54%,0.73,6.17,34.36,2016.0M
5054,TRC (5054) [s],TRC SYNERGY BHD,,0.360,0.000 (0.00%),0.0000,51,11,1,-35.48%,0.21%,5/27/2015,6/15/2015,0.0018,Currency,Construction - Main Market,0.370,0.360,265800,45200 / 36200,0.360 / 0.370,0.360 - 0.535,1.90,27.48,1.31,0.50,1.39%,0.52,167.01,0.22,173.0M
5055,ATIS (5055),0.000 (0.00%),,1.290,0.000 (0.00%),,13,1,6,NA,NA,,,,,Trad/Serv - Main Market,1.290,1.290,-,0 / 0,- / -,,3.78,15.43,8.36,0.00,0.00%,0.58,519.35,0.25,206.2M
5056,ENGTEX (5056),+0.010 (+0.91%),,1.110,+0.010 (+0.91%),0.1200,51,3,9,8.40%,9.15%,6/11/2015,7/1/2015,2.0000,Percentage,Trad/Serv - Main Market,1.130,1.080,1151500,101100 / 90000,1.090 / 1.110,0.975 - 2.100,10.24,7.04,15.77,1.16,1.05%,0.72,413.39,0.27,328.8M
5058,HYTEXIN (5058),0.000 (0.00%),,0.080,0.000 (0.00%),NaN,50,29,0,-18.40%,-15.16%,,,,,Consumer Products - Main Market,0.080,0.080,-,0 / 0,0.000 / 0.000,0.080 - 0.080,85.04,-0.11,-69.73,0.00,0.00%,-0.10,17.26,0.46,12.0M
5059,PSPRING (5059),0.000 (0.00%),,0.815,0.000 (0.00%),,14,10,0,NA,NA,,,,,Trad/Serv - Main Market,0.815,0.815,-,0 / 0,- / -,,-1.93,-34.83,-2.34,0.00,0.00%,0.67,47.42,1.72,85.6M
5060,KINSTEL (5060),+0.005 (+3.33%),,0.155,+0.005 (+3.33%),0.2121,51,20,0,-25.38%,-25.59%,7/20/2011,8/19/2011,0.0100,Currency,Ind-Prod - Main Market,0.160,0.145,4079000,10000 / 527000,0.150 / 0.155,0.120 - 0.285,-28.20,-3.63,-4.27,0.00,0.00%,1.02,48.05,0.32,162.6M
5062,HUAYANG (5062) [s],HUA YANG BHD,,1.920,0.000 (0.00%),0.2267,51,0,51,22.14%,12.34%,2/27/2015,3/12/2015,5.0000,Percentage,Properties - Main Market,1.930,1.910,211600,36500 / 7500,1.910 / 1.920,1.750 - 2.500,23.80,4.58,41.88,17.00,8.85%,1.09,221.05,0.87,506.9M
5065,ORNA (5065) [s],ORNAPAPER BHD,,1.150,0.000 (0.00%),0.5140,50,12,17,13.22%,15.88%,6/10/2015,7/8/2015,2.5000,Percentage,Ind-Prod - Main Market,1.150,1.150,-,15000 / 2000,1.150 / 1.230,0.875 - 1.410,7.07,9.14,12.58,0.00,0.00%,0.65,359.35,0.32,85.3M
5066,NTPM (5066) [s],NTPM HOLDINGS BHD,,0.675,-0.015 (-2.17%),0.2941,51,0,51,-4.46%,4.86%,4/2/2015,4/16/2015,7.2500,Percentage,Consumer Products - Main Market,0.690,0.660,461100,56600 / 30000,0.675 / 0.685,0.600 - 0.855,11.88,17.76,3.80,2.19,3.24%,2.11,48.75,1.38,758.1M
5068,LUSTER (5068) [s],LUSTER INDUSTRIES BHD,,0.080,-0.005 (-5.88%),0.0909,48,29,0,65.92%,183.91%,,,,,Ind-Prod - Main Market,0.085,0.080,330000,17084100 / 5686300,0.080 / 0.085,0.075 - 0.130,-0.67,-133.33,-0.06,0.00,0.00%,0.89,6.22,1.29,135.5M
5069,BLDPLNT (5069) [s],BLD PLANTATION BHD,,8.000,0.000 (0.00%),0.3636,48,0,48,-10.33%,5.96%,7/2/2015,7/31/2015,0.0400,Currency,Plantation - Main Market,8.000,7.650,14000,1000 / 14000,8.000 / 8.150,7.600 - 8.700,3.52,26.55,30.13,5.00,0.63%,0.93,1597.82,800,748.0M
5070,PRTASCO (5070) [s],PROTASCO BHD,,1.820,+0.050 (+2.82%),0.7222,48,2,1,-116.21%,-16.30%,6/17/2015,7/1/2015,0.0400,Currency,Construction - Main Market,1.920,1.750,1068800,3000 / 5000,1.810 / 1.850,1.300 - 2.020,-13.19,-13.41,-13.57,11.02,6.05%,1.77,333.27,0.55,608.5M
5071,COASTAL (5071) [s],COASTAL CONTRACTS BHD,,2.740,0.000 (0.00%),0.1581,48,0,48,-0.53%,9.73%,3/10/2015,3/27/2015,19.0000,Percentage,Ind-Prod - Main Market,2.780,2.730,159200,8700 / 45000,2.730 / 2.740,2.250 - 5.350,13.51,7.01,39.07,7.20,2.63%,0.95,188.92,1.45,1455.4M
5072,HIAPTEK (5072),-0.025 (-6.02%),,0.390,-0.025 (-6.02%),0.0000,49,6,0,-55.70%,-14.35%,1/26/2015,2/13/2015,0.0060,Currency,Ind-Prod - Main Market,0.410,0.390,1364000,27000 / 1200,0.385 / 0.390,0.390 - 0.815,0.23,125.81,0.31,0.60,1.54%,0.30,172.22,0.23,278.0M
5073,NAIM (5073) [s],NAIM HOLDINGS BHD,,2.250,-0.070 (-3.02%),0.0000,47,0,47,16.42%,8.02%,3/23/2015,4/24/2015,0.0350,Currency,Properties - Main Market,2.310,2.250,953500,83300 / 81000,2.250 / 2.270,2.250 - 4.360,11.79,3.75,59.99,0.00,0.00%,0.44,265.51,0.85,533.1M
5074,DXN (5074),0.000 (0.00%),,1.720,0.000 (0.00%),,9,0,9,NA,NA,9/6/2011,9/22/2011,9.0000,Percentage,Consumer Products - Main Market,-,-,-,0 / 0,- / -,,0.00,0,0,0,0.00%,1.73,0,,387.6M
5075,PLENITU (5075),+0.030 (+1.49%),,2.040,+0.030 (+1.49%),0.0331,47,0,47,0.89%,3.92%,11/4/2014,11/14/2014,0.0600,Currency,Properties - Main Market,2.040,1.990,17100,10000 / 5900,2.030 / 2.040,1.990 - 3.500,5.77,9.31,21.91,4.75,2.33%,0.54,81.62,2.5,694.0M
5077,MAYBULK (5077) [s],MALAYSIAN BULK CARRIERS BHD,,1.020,0.000 (0.00%),0.0276,47,3,0,-305.90%,-144.54%,5/28/2015,6/18/2015,0.0100,Currency,Trad/Serv - Main Market,1.050,1.010,267600,61000 / 10000,1.010 / 1.020,0.995 - 1.900,-1.66,-30.36,-3.36,3.00,2.94%,0.50,23.58,4.33,1020.0M
5078,SILKHLD (5078) [s],SILK HOLDINGS BERHAD,,0.485,0.000 (0.00%),0.0467,47,33,0,-42.00%,289.32%,,,,,IPC - Main Market,0.485,0.475,249800,150000 / 7700,0.480 / 0.485,0.450 - 1.200,-0.25,-7.19,-6.75,0.00,0.00%,0.02,57.17,0.85,340.2M
5079,KBES (5079) [s],KBES BHD,,0.390,+0.010 (+2.63%),0.8750,47,25,0,-0.08%,-13.23%,,,,,Trad/Serv - Main Market,0.390,0.385,22000,10000 / 18000,0.385 / 0.390,0.215 - 0.415,-3.39,-26.17,-1.49,0.00,0.00%,0.89,29.26,1.33,49.1M
5080,POHKONG (5080) [s],POH KONG HOLDINGS BHD,,0.460,-0.010 (-2.13%),0.4286,46,0,46,-13.41%,3.28%,2/12/2015,3/9/2015,0.0100,Currency,Consumer Products - Main Market,0.470,0.460,118900,17900 / 47000,0.460 / 0.465,0.370 - 0.580,4.68,8.7,5.29,1.00,2.17%,0.41,202.12,0.23,188.8M
5081,EIG (5081) [s],ESTHETICS INTERNATIONAL GROUP,,0.960,0.000 (0.00%),0.0909,46,6,15,66.51%,-17.00%,12/11/2014,1/12/2015,3.0000,Percentage,Trad/Serv - Main Market,0.960,0.960,-,3000 / 4700,0.950 / 0.990,0.920 - 1.360,11.61,11.02,8.71,2.99,3.11%,1.28,81.28,1.18,178.1M
5082,CYMAO (5082) [s],CYMAO HOLDINGS BHD,,0.350,0.000 (0.00%),0.2857,46,26,0,-12.79%,-21.55%,,,,,Ind-Prod - Main Market,0.350,0.350,-,20000 / 1000,0.315 / 0.490,0.310 - 0.450,-18.66,-1.79,-19.59,0.00,0.00%,0.33,157.30,0.22,25.7M
5084,IBRACO (5084) [s],IBRACO BHD,,2.050,0.000 (0.00%),0.8354,45,14,18,28.78%,12.26%,12/4/2014,12/15/2014,0.1000,Currency,Properties - Main Market,2.050,2.050,-,3000 / 22200,1.980 / 2.290,1.390 - 2.180,16.23,6.56,31.27,10.00,4.88%,1.06,179.56,1.14,259.6M
5085,MUDAJYA (5085) [s],MUDAJAYA GROUP BHD,,1.370,+0.050 (+3.79%),0.0993,45,2,0,-63.58%,7.09%,8/6/2014,9/5/2014,15.0000,Percentage,Construction - Main Market,1.370,1.310,53300,5000 / 19100,1.290 / 1.370,1.230 - 2.640,-10.60,-6.42,-21.35,6.00,4.38%,0.68,156.32,0.88,737.6M
5087,MYCRON (5087) [s],MYCRON STEEL BHD,,0.285,0.000 (0.00%),0.1707,45,16,0,-69.71%,-34.04%,12/2/2010,12/28/2010,0.0350,Currency,Ind-Prod - Main Market,0.285,0.285,30000,437200 / 37500,0.285 / 0.330,0.250 - 0.455,-4.68,-4.35,-6.55,0.00,0.00%,0.20,162.21,0.18,80.5M
5088,APEX (5088),-0.030 (-2.11%),,1.390,-0.030 (-2.11%),0.2308,51,10,25,8.13%,21.87%,6/16/2015,6/30/2015,5.0000,Percentage,Finance - Main Market,1.420,1.390,14400,27700 / 4800,1.390 / 1.400,1.330 - 1.590,7.21,13.87,10.02,15.01,10.80%,1.00,31.68,4.39,281.7M
5089,KLCCP (5089),0.000 (0.00%),,7.250,0.000 (0.00%),,35,0,35,7.15%,NA,3/6/2013,3/20/2013,0.0450,Currency,Properties - Main Market,7.250,7.250,-,0 / 0,- / -,,0.00,0,0,0,0.00%,0.87,0,,6773.9M
5090,MEDIAC (5090) [s],MEDIA CHINESE INTERNATIONAL LT,,0.605,-0.005 (-0.82%),0.0000,44,1,24,-4.53%,7.40%,7/8/2015,7/31/2015,0.0182,Currency,Trad/Serv - Main Market,0.610,0.600,236200,223000 / 34000,0.600 / 0.605,0.605 - 0.960,13.62,9.65,6.27,3.61,5.97%,1.31,86.49,0.7,1020.8M
5091,EKOWOOD (5091) [s],EKOWOOD INTERNATIONAL BHD,,0.195,0.000 (0.00%),0.0588,43,26,0,14.49%,NA,6/26/2008,7/22/2008,0.0340,RM,Consumer Products - Main Market,0.200,0.195,21100,65000 / 8200,0.190 / 0.195,0.185 - 0.355,-6.56,-5.09,-3.83,0.00,0.00%,0.33,25.84,0.75,32.8M
5092,LCTH (5092),+0.015 (+3.06%),,0.505,+0.015 (+3.06%),0.9180,43,15,8,132.01%,NA,5/5/2010,5/21/2010,8.9000,Percentage,Ind-Prod - Main Market,0.505,0.485,2317800,95000 / 169600,0.500 / 0.505,0.225 - 0.530,8.22,11.58,4.36,0.00,0.00%,0.95,33.99,1.49,181.8M
5094,CSCSTEL (5094) [s],CSC STEEL HOLDINGS BERHAD,,1.020,-0.010 (-0.97%),0.2759,43,8,1,-558.80%,NA,6/26/2015,7/13/2015,3.0000,Percentage,Ind-Prod - Main Market,1.030,0.995,292600,33100 / 25000,1.000 / 1.020,0.940 - 1.230,-2.11,-24.46,-4.17,7.01,6.87%,0.52,289.18,0.35,378.6M
5095,HEVEA (5095) [s],HEVEABOARD BHD,,3.480,+0.070 (+2.05%),0.9505,43,6,14,6.40%,NA,7/2/2015,8/3/2015,0.0250,Currency,Ind-Prod - Main Market,3.500,3.350,153800,1000 / 3200,3.440 / 3.480,1.370 - 3.590,13.08,9.3,37.42,2.00,0.57%,1.22,436.44,0.8,346.1M
5096,KAF (5096),0.000 (0.00%),,1.760,0.000 (0.00%),0.3077,51,4,1,-26.71%,-0.15%,5/8/2015,5/21/2015,0.1000,Currency,Finance - Main Market,1.780,1.760,20000,4000 / 6000,1.760 / 1.850,1.640 - 2.030,2.75,31.37,5.61,7.47,4.24%,0.86,36.20,4.86,211.2M
5097,KSK (5097),0.000 (0.00%),,0.645,0.000 (0.00%),,35,10,0,44.23%,NA,12/7/2012,12/24/2012,0.0200,Currency,Finance - Main Market,0.645,0.645,-,0 / 0,- / -,,0.00,0,0,0,0.00%,0.83,0,,938.7M
5098,MASTEEL (5098) [s],MALAYSIA STEEL WORKS (KL)BHD,,0.620,0.000 (0.00%),0.0755,41,5,1,14.56%,NA,7/8/2014,7/25/2014,0.0050,Currency,Ind-Prod - Main Market,0.620,0.620,-,0 / 0,0.000 / 0.000,0.580 - 1.110,2.65,9.58,6.47,0.91,1.47%,0.25,594.96,0.1,151.3M
5099,AIRASIA (5099),+0.040 (+2.67%),,1.540,+0.040 (+2.67%),0.0278,43,3,1,-12.32%,NA,6/1/2015,7/2/2015,0.0300,Currency,Trad/Serv - Main Market,1.580,1.490,31581000,357000 / 1124900,1.540 / 1.550,1.500 - 2.940,2.00,45.83,3.36,3.88,2.52%,0.92,194.14,0.79,4285.8M
5100,BPPLAS (5100) [s],BP PLASTICS HOLDING BHD,,0.900,0.000 (0.00%),0.7174,41,0,41,-14.11%,NA,6/16/2015,7/2/2015,4.0000,Percentage,Ind-Prod - Main Market,0.900,0.900,-,10000 / 5000,0.880 / 0.930,0.735 - 0.965,6.56,16.33,5.51,5.89,6.54%,1.07,148.35,0.61,168.9M
5101,EVERGRN (5101) [s],EVERGREEN FIBREBOARD BHD,,1.350,+0.020 (+1.50%),0.9348,42,7,3,-370.45%,NA,10/19/2012,11/8/2012,0.0100,Currency,Ind-Prod - Main Market,1.370,1.320,4114700,126400 / 311400,1.340 / 1.350,0.490 - 1.410,2.61,30.41,4.44,0.00,0.00%,0.79,182.20,0.74,692.5M
5102,GCB (5102),-0.005 (-0.63%),,0.790,-0.005 (-0.63%),0.0000,42,5,0,-66.45%,NA,7/10/2013,7/26/2013,0.0200,Currency,Consumer Products - Main Market,0.790,0.790,80000,14000 / 3000,0.790 / 0.800,0.790 - 1.370,-7.34,-15.74,-5.02,0.00,0.00%,1.15,372.22,0.21,376.3M
5103,TITAN (5103),-2.340 (-100.00%),,,-2.340 (-100.00%),,5,0,5,NA,NA,5/10/2010,5/25/2010,0.0450,Currency,Ind-Prod - Main Market,-,-,-,0 / 0,- / -,,0.00,0,0,0,0.00%,0.00,0,,0.0M
5104,CNI (5104) [s],CNI HOLDINGS BHD,,0.085,0.000 (0.00%),0.2000,41,8,1,-75.32%,NA,3/17/2015,4/16/2015,0.0030,Currency,Trad/Serv - Main Market,0.085,0.085,-,602200 / 269800,0.080 / 0.090,0.075 - 0.125,-6.38,-10.24,-0.83,0.30,3.53%,0.65,13.11,0.65,60.6M
5105,CANONE (5105) [s],CAN-ONE BHD,,2.510,-0.020 (-0.79%),0.5876,40,0,40,10.62%,NA,5/18/2015,5/29/2015,10.0000,Percentage,Ind-Prod - Main Market,2.560,2.500,192500,12800 / 2000,2.510 / 2.520,1.940 - 2.910,12.67,5.59,44.91,5.00,1.99%,0.71,589.15,0.43,382.5M
5106,AXREIT (5106) [s],AXIS REITS,,3.450,+0.010 (+0.29%),0.3590,39,0,39,7.17%,NA,4/30/2015,5/29/2015,0.0410,Currency,Reits - Main Market,3.450,3.440,816800,1966600 / 1957700,3.440 / 3.450,3.310 - 3.700,8.29,16.97,20.33,17.51,5.08%,1.41,26.26,13.14,1889.8M
5107,IQGROUP (5107) [s],IQ GROUP HOLDINGS BHD,,2.440,-0.040 (-1.61%),0.6346,40,13,9,53.24%,NA,6/26/2015,7/29/2015,0.0400,Currency,Consumer Products - Main Market,2.460,2.430,44200,3000 / 25500,2.420 / 2.440,1.120 - 3.200,17.49,10.18,23.96,3.96,1.62%,1.78,221.42,1.1,213.8M
5108,ICAP (5108),-0.010 (-0.44%),,2.280,-0.010 (-0.44%),0.0833,39,4,23,18.18%,NA,9/17/2013,10/7/2013,0.0950,Currency,Closed/Fund - Main Market,2.280,2.280,3000,2000 / 7300,2.270 / 2.280,2.260 - 2.500,3.98,19.49,11.70,0.00,0.00%,0.78,19.44,11.73,319.2M
5109,YTLREIT (5109),-0.020 (-1.90%),,1.030,-0.020 (-1.90%),0.8519,32,0,32,-68.65%,NA,6/3/2015,6/26/2015,0.0186,Currency,Reits - Main Market,1.040,1.030,162000,89500 / 680400,1.030 / 1.040,0.915 - 1.050,3.45,25.75,4.00,8.26,8.02%,0.89,32.53,3.17,1364.1M
5110,UOAREIT (5110),-0.010 (-0.63%),,1.580,-0.010 (-0.63%),0.5526,38,0,38,2.65%,NA,2/4/2015,2/27/2015,0.0573,Currency,Reits - Main Market,1.580,1.580,15000,10000 / 55000,1.590 / 1.640,1.370 - 1.750,7.71,13.62,11.60,11.01,6.97%,1.05,21.55,7.33,668.1M
5111,TWRREIT (5111),-0.010 (-0.82%),,1.210,-0.010 (-0.82%),0.1429,36,0,36,5.52%,NA,2/11/2015,2/27/2015,0.0320,Currency,Reits - Main Market,1.220,1.200,154500,11000 / 20000,1.210 / 1.220,1.170 - 1.450,8.67,7.37,16.41,7.03,5.81%,0.64,14.95,8.09,339.4M
5112,THPLANT (5112) [s],TH PLANTATIONS BHD,,1.560,-0.040 (-2.50%),0.2462,37,0,37,-4.20%,NA,5/20/2015,6/12/2015,0.0200,Currency,Plantation - Main Market,1.560,1.560,5800,9200 / 39000,1.560 / 1.600,1.400 - 2.050,4.04,27.96,5.58,3.62,2.32%,1.13,50.57,3.08,1378.8M
5113,RSAWIT (5113) [s],RIMBUNAN SAWIT BHD,,0.510,+0.010 (+2.00%),0.0351,38,5,0,-93.13%,NA,7/29/2013,8/30/2013,0.0100,Currency,Plantation - Main Market,0.510,0.495,311100,87500 / 3000,0.500 / 0.510,0.500 - 0.785,-1.20,-78.46,-0.65,0.00,0.00%,0.94,15.11,3.38,723.4M
5115,ALAM (5115) [s],ALAM MARITIM RESOURCES BHD,,0.535,+0.010 (+1.90%),0.0090,24,3,13,9.46%,NA,9/2/2013,9/12/2013,1.0000,Percentage,Trad/Serv - Main Market,0.545,0.515,2721400,26000 / 90100,0.530 / 0.535,0.525 - 1.640,6.46,9.1,5.88,0.00,0.00%,0.59,42.33,1.26,494.6M
5116,ALAQAR (5116) [s],AL-AQAR HEALTHCARE REIT,,1.290,+0.010 (+0.78%),0.0370,24,0,24,5.43%,NA,3/25/2015,4/20/2015,0.0379,Currency,Reits - Main Market,1.290,1.280,39000,14200 / 70000,1.290 / 1.300,1.280 - 1.550,8.73,12.52,10.30,7.86,6.09%,1.09,15.67,8.23,898.1M
5119,SWEEJOO (5119),0.000 (0.00%),,,0.000 (0.00%),,7,7,0,NA,NA,4/7/2009,4/29/2009,0.0100,RM,Trad/Serv - Main Market,-,-,-,0 / 0,- / -,,,0,0,0,0.00%,,0,,0.0M
5120,AMFIRST (5120),+0.010 (+1.14%),,0.885,+0.010 (+1.14%),0.2500,24,0,24,-1.49%,NA,6/12/2015,6/30/2015,0.0244,Currency,Reits - Main Market,0.885,0.880,286600,298400 / 30000,0.880 / 0.885,0.850 - 0.990,4.56,15.83,5.59,6.78,7.66%,0.72,15.63,5.66,607.5M
5121,HEKTAR (5121),+0.010 (+0.67%),,1.500,+0.010 (+0.67%),0.6154,33,0,33,4.43%,NA,6/1/2015,6/17/2015,0.0260,Currency,Reits - Main Market,1.510,1.490,50500,22100 / 15000,1.500 / 1.530,1.420 - 1.550,8.21,11.77,12.74,10.51,7.01%,0.97,30.71,4.88,600.9M
5122,KENCANA (5122),0.000 (0.00%),,3.300,0.000 (0.00%),,11,0,11,NA,NA,1/24/2011,2/18/2011,5.0000,Percentage,Trad/Serv - Main Market,-,-,-,0 / 0,- / -,,0.00,0,0,0,0.00%,3.40,0,,6579.7M
5123,MQREIT (5123),+0.020 (+1.74%),,1.170,+0.020 (+1.74%),0.3684,34,0,34,1.19%,NA,3/19/2015,4/15/2015,0.0188,Currency,Reits - Main Market,1.170,1.130,67600,446400 / 11700,1.160 / 1.170,1.100 - 1.290,3.95,22.5,5.20,4.98,4.26%,0.89,10.84,10.79,773.8M
5124,BSDREIT (5124),0.000 (0.00%),,,0.000 (0.00%),,27,0,27,6.61%,NA,12/26/2013,1/28/2014,2.1000,Currency,Reits - Main Market,-,-,-,0 / 0,- / -,,0.00,0,0,0,0.00%,0.00,0,,0.0M
5125,PANTECH (5125) [s],PANTECH GROUP HOLDINGS BHD,,0.660,+0.005 (+0.76%),0.0400,34,0,34,3.99%,NA,3/17/2015,4/16/2015,0.0060,Currency,Trad/Serv - Main Market,0.665,0.660,171000,27000 / 3400,0.655 / 0.660,0.640 - 1.140,9.31,9.21,7.17,3.80,5.76%,0.86,86.21,0.77,402.5M
5126,SOP (5126) [s],SARAWAK OIL PALMS BHD,,4.660,0.000 (0.00%),0.1116,51,0,51,-10.22%,7.04%,6/26/2015,7/23/2015,5.0000,Percentage,Plantation - Main Market,4.700,4.660,12800,10700 / 1800,4.660 / 4.700,4.380 - 6.890,6.34,24.25,19.22,5.00,1.07%,1.54,667.89,0.7,2049.2M
5127,ARREIT (5127),+0.005 (+0.58%),,0.870,+0.005 (+0.58%),0.6207,33,1,5,35.15%,NA,6/10/2015,7/7/2015,0.0140,Currency,Reits - Main Market,0.880,0.865,389400,262500 / 167800,0.870 / 0.880,0.780 - 0.925,15.16,5.02,17.32,6.43,7.39%,0.76,10.52,8.27,498.7M
5128,OGAWA (5128),0.000 (0.00%),,,0.000 (0.00%),,27,11,6,53.13%,NA,11/30/2011,12/16/2011,0.0300,Currency,Trad/Serv - Main Market,-,-,-,0 / 0,- / -,,0.00,0,0,0,0.00%,0.00,0,,0.0M
5129,MELATI (5129) [s],MELATI EHSAN HOLDINGS BHD,,1.030,-0.040 (-3.74%),0.0000,33,0,33,11.80%,NA,2/27/2015,3/19/2015,0.0275,Currency,Construction - Main Market,1.030,1.020,120500,2500 / 4500,1.030 / 1.060,1.030 - 1.510,7.56,8.96,11.49,2.50,2.43%,0.68,239.91,0.43,123.1M
5130,ATRIUM (5130),-0.010 (-0.87%),,1.140,-0.010 (-0.87%),0.0000,32,0,32,10.03%,NA,5/8/2015,5/29/2015,0.0170,Currency,Reits - Main Market,1.140,1.140,5000,5500 / 10700,1.140 / 1.160,1.140 - 1.280,8.42,9.79,11.64,8.40,7.37%,0.82,12.73,8.96,138.9M
5131,ZHULIAN (5131) [s],ZHULIAN CORPORATION BHD,,2.030,-0.020 (-0.98%),0.0000,33,0,33,-4.97%,NA,4/28/2015,5/27/2015,0.0150,Currency,Consumer Products - Main Market,2.030,2.000,23000,8000 / 117000,2.020 / 2.050,2.030 - 2.900,8.69,21.97,9.24,14.99,7.38%,1.91,50.60,4.01,933.8M
5132,DELEUM (5132) [s],DELEUM BHD,,1.400,0.000 (0.00%),0.0000,33,0,33,14.64%,NA,3/11/2015,3/26/2015,0.0500,Currency,Trad/Serv - Main Market,1.410,1.390,223800,15200 / 7200,1.390 / 1.400,1.400 - 2.480,21.89,9.69,14.45,7.49,5.35%,2.12,173.35,0.81,560.0M
5133,PENERGY (5133) [s],PETRA ENERGY BHD,,1.190,-0.010 (-0.83%),0.0052,33,7,5,20.98%,NA,4/15/2015,5/15/2015,0.0200,Currency,Trad/Serv - Main Market,1.190,1.190,69000,64000 / 50000,1.190 / 1.200,1.180 - 3.100,6.65,11.11,10.71,1.00,0.84%,0.74,199.26,0.6,382.9M
5134,SAB (5134) [s],SOUTHERN ACIDS (M) BHD,,3.700,-0.030 (-0.80%),0.0394,51,7,12,11.87%,9.21%,10/8/2014,10/31/2014,0.0500,Currency,Ind-Prod - Main Market,3.700,3.700,5000,2000 / 1000,3.710 / 3.750,3.620 - 5.650,5.46,18.83,19.65,5.00,1.35%,1.03,410.45,0.9,506.6M
5135,SWKPLNT (5135) [s],SARAWAK PLANTATION BHD,,1.980,-0.110 (-5.26%),0.0000,32,1,9,-0.58%,NA,3/10/2015,4/9/2015,0.0300,Currency,Plantation - Main Market,2.060,1.980,68100,6000 / 3000,1.990 / 2.050,1.980 - 2.830,8.34,10.79,18.35,6.00,3.03%,0.90,127.63,1.55,553.5M
5136,COMPLET (5136) [s],COMPLETE LOGISTIC SERVICES BHD,,0.800,0.000 (0.00%),0.4030,32,5,0,40.07%,NA,9/11/2014,10/3/2014,0.0300,Currency,Trad/Serv - Main Market,0.880,0.800,77200,15000 / 200,0.790 / 0.800,0.665 - 1.000,0.89,106.67,0.75,2.97,3.71%,0.95,104.88,0.76,97.1M
5138,HSPLANT (5138) [s],HAP SENG PLANTATIONS HOLDINGS,,2.500,0.000 (0.00%),0.2258,31,0,31,-8.92%,NA,3/6/2015,3/25/2015,0.0500,Currency,Plantation - Main Market,2.500,2.500,-,2000 / 1000,2.450 / 2.530,2.430 - 2.740,5.58,18.59,13.45,11.01,4.40%,1.04,58.89,4.25,1999.3M
5139,AEONCR (5139),-0.260 (-1.90%),,13.440,-0.260 (-1.90%),0.3854,32,0,32,16.21%,NA,6/29/2015,7/15/2015,0.2960,Currency,Finance - Main Market,13.600,13.360,16300,2500 / 10000,13.440 / 13.600,10.580 - 18.000,23.18,11.37,118.23,28.27,2.10%,2.64,481.82,2.79,1935.4M
5140,TASCO (5140) [s],TASCO BERHAD,,3.970,+0.100 (+2.58%),0.7413,30,0,30,3.92%,NA,2/27/2015,3/18/2015,0.0400,Currency,Trad/Serv - Main Market,3.970,3.870,2000,800 / 6100,3.880 / 3.970,2.480 - 4.490,10.26,12.94,30.68,9.00,2.27%,1.33,494.31,0.8,397.0M
5141,DAYANG (5141) [s],DAYANG ENTERPRISE HOLDINGS BHD,,2.250,+0.070 (+3.21%),0.0643,29,0,29,17.13%,NA,3/16/2015,4/14/2015,0.0350,Currency,Trad/Serv - Main Market,2.250,2.160,201300,4600 / 65600,2.210 / 2.250,2.140 - 3.850,18.31,11.07,20.32,6.80,3.02%,2.03,101.46,2.22,1972.8M
5142,WASEONG (5142) [s],WAH SEONG CORPORATION BHD,,1.380,+0.060 (+4.55%),0.2632,51,2,8,-1.45%,4.09%,3/12/2015,4/3/2015,0.0250,Currency,Ind-Prod - Main Market,1.380,1.310,500500,87900 / 39800,1.380 / 1.390,1.180 - 1.940,12.01,8.09,17.05,4.51,3.27%,0.97,321.70,0.43,1063.4M
5143,LUXCHEM (5143),0.000 (0.00%),,1.000,0.000 (0.00%),0.1917,28,0,28,-1.47%,NA,5/29/2015,6/30/2015,0.0300,Currency,Trad/Serv - Main Market,1.000,0.995,86000,10000 / 400,0.995 / 1.000,0.770 - 1.970,11.06,14.12,7.08,3.95,3.95%,1.56,240.11,0.42,263.5M
5145,SEALINK (5145),+0.010 (+3.13%),,0.330,+0.010 (+3.13%),0.0250,28,1,9,-160.37%,NA,9/3/2014,9/18/2014,0.0100,Currency,Ind-Prod - Main Market,0.330,0.330,20000,140000 / 88000,0.320 / 0.330,0.320 - 0.720,1.22,28.7,1.15,1.03,3.12%,0.35,25.33,1.3,165.0M
5146,PERWAJA (5146),+0.005 (+2.04%),,0.250,+0.005 (+2.04%),0.9111,28,20,0,-24.65%,NA,,,,,Ind-Prod - Main Market,0.270,0.235,14418600,5900 / 521700,0.250 / 0.255,0.045 - 0.270,47.43,-0.28,-89.16,0.00,0.00%,-0.13,34.48,0.73,140.0M
5147,SAMCHEM (5147),+0.080 (+12.90%),,0.700,+0.080 (+12.90%),0.5294,25,1,1,-22.98%,NA,6/10/2015,7/10/2015,0.0250,Currency,Trad/Serv - Main Market,0.700,0.660,73200,35200 / 57400,0.670 / 0.700,0.610 - 0.780,5.59,14.74,4.75,2.49,3.56%,0.82,466.58,0.15,95.2M
5148,UEMS (5148) [s],UEM SUNRISE BERHAD,,0.975,-0.025 (-2.50%),0.0000,27,0,27,16.22%,NA,5/27/2015,6/22/2015,0.0300,Currency,Properties - Main Market,1.010,0.975,9301600,125800 / 62700,0.975 / 0.985,0.975 - 2.140,7.42,9.38,10.39,4.01,4.11%,0.70,59.01,1.65,4424.0M
5149,TAS (5149) [s],TAS OFFSHORE BERHAD,,0.610,-0.005 (-0.81%),0.0000,24,1,17,14.60%,NA,5/12/2014,6/12/2014,0.0200,Currency,Ind-Prod - Main Market,0.610,0.610,124100,37000 / 30000,0.610 / 0.615,0.610 - 1.630,6.97,8.37,7.29,2.00,3.28%,0.58,149.76,0.41,107.2M
5150,MSPORTS (5150),+0.005 (+4.55%),,0.115,+0.005 (+4.55%),0.0714,24,1,6,-23.09%,NA,8/13/2012,9/12/2012,0.0311,Currency,Consumer Products - Main Market,0.115,0.115,100000,763000 / 21000,0.110 / 0.115,0.105 - 0.245,5.56,1.98,5.82,0.00,0.00%,0.11,76.76,0.15,59.5M
5151,HALEX (5151) [s],HALEX HOLDINGS BERHAD,,0.550,+0.010 (+1.85%),0.0789,24,0,24,-15.75%,NA,6/6/2014,6/17/2014,5.0000,Percentage,Ind-Prod - Main Market,0.550,0.530,63300,6000 / 24200,0.540 / 0.550,0.520 - 0.900,2.67,22.63,2.43,2.35,4.27%,0.60,101.93,0.54,58.3M
5152,MBL (5152),0.000 (0.00%),,0.755,0.000 (0.00%),0.0465,23,0,23,NA,NA,5/18/2015,6/3/2015,0.0200,Currency,Ind-Prod - Main Market,0.755,0.750,11000,1000 / 4000,0.755 / 0.775,0.745 - 0.960,4.93,16.82,4.49,4.01,5.31%,0.83,53.73,1.41,69.5M
5155,XINQUAN (5155),+0.015 (+3.09%),,0.500,+0.015 (+3.09%),0.3580,25,0,25,0.65%,NA,2/26/2015,3/25/2015,0.0200,Currency,Consumer Products - Main Market,0.500,0.480,214800,3900 / 11800,0.490 / 0.500,0.355 - 0.760,10.43,1.43,34.94,163.29,326.58%,0.15,215.52,0.23,169.0M
5156,XDL (5156) [s],XIDELANG HOLDINGS LTD,,0.135,0.000 (0.00%),0.4286,23,0,23,NA,NA,6/21/2013,7/18/2013,0.0050,Currency,Consumer Products - Main Market,0.135,0.130,1278500,30000 / 1193000,0.130 / 0.135,0.090 - 0.195,3.02,7.22,1.87,0.00,0.00%,0.22,24.54,0.55,155.2M
5157,SAUDEE (5157) [s],SAUDEE GROUP BERHAD,,0.500,+0.005 (+1.01%),0.6000,22,5,1,NA,NA,12/6/2011,12/28/2011,0.0100,Currency,Consumer Products - Main Market,0.510,0.480,827800,19900 / 40600,0.495 / 0.500,0.380 - 0.580,0.47,192.31,0.26,0.00,0.00%,0.91,181.14,0.28,45.0M
5158,TAGB (5158),+0.005 (+1.61%),,0.315,+0.005 (+1.61%),0.1935,23,3,1,NA,NA,7/1/2014,7/25/2014,1.5000,Percentage,Properties - Main Market,0.315,0.310,680700,236800 / 94900,0.310 / 0.315,0.285 - 0.440,5.10,12.35,2.55,0.75,2.38%,0.63,13.91,2.26,1676.3M
5159,YOCB (5159) [s],YOONG ONN CORPORATION BERHAD,,1.000,0.000 (0.00%),0.4545,23,0,23,NA,NA,7/6/2015,7/28/2015,0.0200,Currency,Consumer Products - Main Market,1.000,0.970,94900,8700 / 900,0.970 / 1.000,0.800 - 1.240,11.22,8.57,11.67,4.01,4.01%,0.96,125.40,0.8,159.9M
5160,HOMERIZ (5160) [s],HOMERITZ CORPORATION BERHAD,,1.430,0.000 (0.00%),0.9379,22,0,22,NA,NA,1/28/2015,2/16/2015,0.0310,Currency,Consumer Products - Main Market,1.450,1.400,984100,39800 / 3200,1.420 / 1.430,0.675 - 1.480,21.52,13.84,10.33,7.84,5.48%,2.98,67.03,2.13,286.0M
5161,JCY (5161) [s],JCY INTERNATIONAL BERHAD,,0.705,-0.005 (-0.70%),0.6912,22,6,6,NA,NA,6/17/2015,7/8/2015,0.0125,Currency,Technology - Main Market,0.710,0.690,2027400,243600 / 106400,0.700 / 0.705,0.470 - 0.810,12.58,9.41,7.49,4.23,6.00%,1.18,93.53,0.75,1441.3M
5162,ECS (5162) [s],ECS ICT BERHAD,,1.570,+0.010 (+0.64%),0.7162,21,0,21,NA,NA,6/3/2015,6/19/2015,0.0300,Currency,Technology - Main Market,1.570,1.520,61400,16500 / 4900,1.540 / 1.570,1.040 - 1.780,14.55,8.3,18.91,5.47,3.48%,1.21,975.70,0.16,282.6M
5163,SEB (5163) [s],SEREMBAN ENGINEERING BERHAD,,0.430,0.000 (0.00%),0.0244,21,3,0,NA,NA,5/19/2014,6/5/2014,4.0000,Percentage,Ind-Prod - Main Market,0.430,0.430,-,900 / 133400,0.390 / 0.530,0.420 - 0.830,-24.51,-2.54,-16.91,2.00,4.65%,0.62,161.39,0.27,34.3M
5165,HOKHENG (5165) [s],HOCK HENG STONE INDUSTRIES BHD,,0.340,0.000 (0.00%),0.1739,21,1,9,NA,NA,7/11/2012,8/8/2012,0.0100,Currency,Ind-Prod - Main Market,0.340,0.340,-,10000 / 9000,0.295 / 0.340,0.320 - 0.435,2.07,24.82,1.37,0.00,0.00%,0.51,53.73,0.63,27.2M
5166,AEGB (5166) [s],MASTERSKILL EDUCATION GROUP,,0.565,0.000 (0.00%),0.5000,21,13,0,NA,NA,7/10/2015,7/28/2015,0.0500,Currency,Trad/Serv - Main Market,0.580,0.560,3279300,113300 / 557300,0.555 / 0.565,0.340 - 0.790,-22.12,-5.01,-11.28,0.00,0.00%,1.11,8.82,6.41,212.5M
5167,TURBO (5167),+0.080 (+7.84%),,1.100,+0.080 (+7.84%),0.4186,21,0,21,NA,NA,6/5/2015,6/26/2015,0.0500,Currency,Trad/Serv - Main Market,1.100,1.030,28000,5200 / 2600,1.060 / 1.120,0.920 - 1.350,15.49,8.55,12.86,4.99,4.54%,1.33,41.65,2.64,118.8M
5168,HARTA (5168) [s],HARTALEGA HOLDINGS BHD,,8.510,+0.120 (+1.43%),0.8538,30,0,30,6.34%,NA,5/19/2015,6/18/2015,0.0300,Currency,Ind-Prod - Main Market,8.660,8.360,835500,137200 / 50000,8.510 / 8.650,6.290 - 8.890,16.24,33.1,25.71,12.72,1.49%,5.38,140.48,6.06,6941.9M
5169,HOHUP (5169) [s],HO HUP CONSTRUCTION COMPANY,,1.220,+0.030 (+2.52%),0.2143,51,33,10,52.75%,37.48%,,,,,Construction - Main Market,1.220,1.180,414500,81600 / 24400,1.190 / 1.220,1.130 - 1.550,42.54,5.52,22.12,0.00,0.00%,2.35,100.57,1.21,420.4M
5170,SCABLE (5170) [s],SARAWAK CABLE BERHAD,,1.370,+0.030 (+2.24%),0.3125,21,2,5,NA,NA,7/1/2015,7/27/2015,0.0250,Currency,Ind-Prod - Main Market,1.370,1.350,73200,3000 / 1400,1.360 / 1.370,1.270 - 1.590,10.94,12.78,10.72,1.31,0.96%,1.40,180.53,0.76,434.4M
5171,KIMLUN (5171) [s],KIMLUN CORPORATION BERHAD,,1.300,0.000 (0.00%),0.2708,21,0,21,NA,NA,7/21/2015,8/19/2015,0.0380,Currency,Construction - Main Market,1.310,1.300,63000,65000 / 3100,1.290 / 1.300,1.170 - 1.650,9.58,9.83,13.22,3.00,2.31%,0.94,401.52,0.32,390.7M
5172,KSTAR (5172) [s],K-STAR SPORTS LIMITED,,0.105,0.000 (0.00%),0.1111,21,11,0,NA,NA,8/22/2011,9/23/2011,0.0160,Currency,Consumer Products - Main Market,0.105,0.105,50000,190300 / 35000,0.105 / 0.110,0.100 - 0.145,-13.74,-1.17,-8.96,0.00,0.00%,0.16,60.97,0.17,28.0M
5173,SYSCORP (5173) [s],SHIN YANG SHIPPING CORP BHD,,0.410,0.000 (0.00%),0.1071,21,4,2,NA,NA,1/16/2013,2/5/2013,0.0100,Currency,Trad/Serv - Main Market,0.410,0.410,-,15000 / 13000,0.415 / 0.440,0.380 - 0.660,1.25,34.45,1.19,0.00,0.00%,0.43,85.99,0.48,492.0M
5175,IVORY (5175) [s],IVORY PROPERTIES GROUP BERHAD,,0.400,0.000 (0.00%),0.1091,21,1,9,NA,NA,,,,,Properties - Main Market,0.405,0.400,320300,44400 / 57000,0.400 / 0.405,0.370 - 0.645,4.78,9.3,4.30,0.00,0.00%,0.44,47.31,0.85,178.2M
5176,SUNREIT (5176),-0.040 (-2.53%),,1.540,-0.040 (-2.53%),0.4000,19,0,19,NA,NA,5/14/2015,6/2/2015,0.0213,Currency,Reits - Main Market,1.580,1.540,6479100,374600 / 561600,1.540 / 1.560,1.400 - 1.750,11.55,10.81,14.25,8.66,5.62%,1.25,15.24,10.1,4524.0M
5177,DFZ (5177),-3.840 (-100.00%),,,-3.840 (-100.00%),,6,0,6,NA,NA,12/17/2010,12/31/2010,5.0000,Percentage,Trad/Serv - Main Market,-,-,-,0 / 0,- / -,,0.00,0,0,0,0.00%,0.00,0,,0.0M
5178,TATGIAP (5178),0.000 (0.00%),,0.140,0.000 (0.00%),0.0313,18,12,0,NA,NA,,,,,Ind-Prod - Main Market,0.140,0.140,10000,56400 / 10000,0.120 / 0.175,0.135 - 0.295,-47.00,-0.84,-16.59,0.00,0.00%,0.40,199.51,0.07,17.4M
5179,BJRTAIL (5179),-0.645 (-100.00%),,,-0.645 (-100.00%),,3,0,3,NA,NA,,,,,Trad/Serv - Main Market,-,-,-,0 / 0,- / -,,0.00,0,0,0,0.00%,0.00,0,,0.0M
5180,CMMT (5180),-0.030 (-2.19%),,1.340,-0.030 (-2.19%),0.0000,19,0,19,NA,NA,7/6/2015,8/7/2015,0.0461,Currency,Reits - Main Market,1.370,1.340,1844900,561400 / 917700,1.340 / 1.350,1.340 - 1.640,10.71,10.08,13.29,8.90,6.64%,1.08,17.84,7.51,2383.8M
5181,SIGGAS (5181) [s],SIG GASES BERHAD,,0.475,0.000 (0.00%),0.1471,20,0,20,NA,NA,5/27/2015,6/18/2015,0.0070,Currency,Ind-Prod - Main Market,0.475,0.475,-,14000 / 3000,0.440 / 0.475,0.425 - 0.765,8.10,9.62,4.94,0.48,1.01%,0.78,35.11,1.35,89.1M
5182,MCT (5182) [s],GW PLASTICS HLDG BHD,,1.250,+0.040 (+3.31%),0.8630,20,4,0,NA,NA,3/9/2015,4/8/2015,0.0080,Currency,Properties - Main Market,1.250,1.210,96800,40000 / 6000,1.180 / 1.240,0.620 - 1.350,-11.50,-543.48,-0.23,0.00,0.00%,62.50,0.00,,1668.5M
5183,PCHEM (5183) [s],PETRONAS CHEMICALS GROUP BHD,,6.320,+0.240 (+3.95%),0.7725,19,0,19,NA,NA,3/5/2015,3/24/2015,0.0800,Currency,Ind-Prod - Main Market,6.330,6.080,4979400,22300 / 47100,6.260 / 6.320,4.690 - 6.800,10.18,21.79,29.01,15.83,2.50%,2.22,174.14,3.63,50560.0M
5184,CYPARK (5184) [s],CYPARK RESOURCES BERHAD,,1.690,0.000 (0.00%),0.0000,20,0,20,NA,NA,5/18/2015,6/19/2015,0.0500,Currency,Trad/Serv - Main Market,1.690,1.650,651600,23000 / 20000,1.660 / 1.690,1.690 - 2.870,13.17,8.17,20.68,4.50,2.66%,1.08,123.92,1.36,340.2M
5185,AFFIN (5185),+0.040 (+1.50%),,2.700,+0.040 (+1.50%),0.0417,51,2,47,4.87%,7.43%,12/11/2014,12/30/2014,0.1500,Currency,Finance - Main Market,2.720,2.640,195800,224300 / 400,2.700 / 2.710,2.660 - 3.620,6.12,10.65,25.35,14.99,5.55%,0.65,142.44,1.9,5246.0M
5186,MHB (5186) [s],MALAYSIA MARINE AND HEAVY ENG,,1.210,-0.010 (-0.82%),0.0511,19,0,19,NA,NA,5/22/2014,6/16/2014,0.0500,Currency,Trad/Serv - Main Market,1.230,1.200,219800,16000 / 9900,1.200 / 1.230,1.070 - 3.810,4.92,14.74,8.21,4.97,4.11%,0.72,171.78,0.7,1936.0M
5187,HBGLOB (5187),+0.005 (+11.11%),,0.050,+0.005 (+11.11%),0.0769,19,9,0,NA,NA,8/29/2012,9/28/2012,0.0380,Currency,Consumer Products - Main Market,0.050,0.050,500,155500 / 188700,0.045 / 0.050,0.045 - 0.110,-8.60,-0.68,-7.31,0.00,0.00%,0.06,28.42,0.18,23.4M
5188,CNOUHUA (5188),0.000 (0.00%),,0.065,0.000 (0.00%),0.1538,19,11,0,NA,NA,7/27/2011,8/24/2011,0.0072,Currency,Consumer Products - Main Market,0.065,0.065,320000,111400 / 364000,0.065 / 0.070,0.055 - 0.120,-56.15,-0.45,-14.60,0.00,0.00%,0.25,0.82,7.93,43.4M
5189,MAXWELL (5189),0.000 (0.00%),,0.110,0.000 (0.00%),0.0357,19,1,0,NA,NA,8/9/2012,9/12/2012,0.0175,Currency,Consumer Products - Main Market,0.115,0.105,597800,864000 / 118900,0.105 / 0.110,0.105 - 0.245,2.89,2.91,3.78,0.00,0.00%,0.08,56.76,0.19,43.9M
5190,BENALEC (5190) [s],BENALEC HOLDINGS BERHAD,,0.575,-0.005 (-0.86%),0.0661,19,3,0,NA,NA,1/26/2015,2/23/2015,0.0030,Currency,Construction - Main Market,0.580,0.570,739600,411600 / 95000,0.575 / 0.580,0.535 - 1.140,-1.62,-50,-1.15,0.31,0.54%,0.81,19.10,3.01,459.5M
5191,TAMBUN (5191) [s],TAMBUN INDAH LAND BERHAD,,1.660,+0.010 (+0.61%),0.1795,18,0,18,NA,NA,9/1/2015,9/18/2015,0.0670,Currency,Properties - Main Market,1.670,1.630,102900,60500 / 48500,1.660 / 1.670,1.450 - 2.620,25.04,6.56,25.29,7.47,4.50%,1.64,114.93,1.44,700.8M
5192,KSSC (5192) [s],K. SENG SENG CORPORATION BHD,,0.485,+0.015 (+3.19%),0.1733,19,0,19,NA,NA,5/29/2015,6/19/2015,4.0000,Percentage,Ind-Prod - Main Market,0.485,0.485,2000,55000 / 5000,0.460 / 0.485,0.420 - 0.795,6.60,9.55,5.08,3.96,8.16%,0.63,112.97,0.43,46.6M
5194,APFT (5194) [s],APFT BERHAD,,0.215,+0.010 (+4.88%),1.0000,17,10,0,NA,NA,,,,,Trad/Serv - Main Market,0.215,0.205,29115400,553300 / 1888800,0.210 / 0.215,0.110 - 0.215,-77.44,-3.08,-6.97,0.00,0.00%,2.39,24.31,0.88,74.9M
5195,CENSOF (5195),-0.005 (-1.49%),,0.330,-0.005 (-1.49%),0.0694,18,1,5,NA,NA,9/12/2013,9/27/2013,0.0100,Currency,Technology - Main Market,0.340,0.325,1764600,504800 / 140900,0.330 / 0.335,0.305 - 0.665,5.13,20.89,1.58,0.00,0.00%,1.07,31.22,1.06,160.6M
5196,BJFOOD (5196),+0.100 (+3.89%),,2.670,+0.100 (+3.89%),0.6358,18,0,18,NA,NA,7/9/2015,7/28/2015,0.0200,Currency,Trad/Serv - Main Market,2.670,2.650,2000,2000 / 1000,2.550 / 2.660,1.570 - 3.300,46.05,5.42,49.27,5.45,2.04%,2.50,100.68,2.65,1000.7M
5197,FLBHD (5197) [s],FOCUS LUMBER BERHAD,,1.330,+0.020 (+1.53%),0.5254,17,0,17,NA,NA,12/18/2014,12/31/2014,0.0800,Currency,Ind-Prod - Main Market,1.330,1.280,269700,24000 / 10000,1.300 / 1.330,1.020 - 1.610,11.38,8.99,14.79,7.99,6.01%,1.02,138.21,0.96,137.3M
5198,AFUJIYA (5198) [s],ABM FUJIYA BERHAD,,0.430,+0.015 (+3.61%),0.1250,9,1,0,NA,NA,,,,,Ind-Prod - Main Market,0.430,0.400,20400,1000 / 1600,0.400 / 0.430,0.410 - 0.570,2.00,27.56,1.56,0.00,0.00%,0.55,60.67,0.71,77.4M
5199,HIBISCS (5199),0.000 (0.00%),,0.745,0.000 (0.00%),0.0757,14,10,0,NA,NA,,,,,Ind-Prod - Main Market,0.745,0.735,647200,111000 / 50000,0.740 / 0.745,0.675 - 1.600,-7.45,-17.25,-4.32,0.00,0.00%,1.28,0.95,78.42,686.0M
5200,UOADEV (5200) [s],UOA DEVELOPMENT BERHAD,,2.100,+0.050 (+2.44%),0.4063,16,0,16,NA,NA,6/15/2015,7/14/2015,0.1300,Currency,Properties - Main Market,2.100,2.040,832400,32300 / 2900,2.100 / 2.110,1.970 - 2.290,12.35,8.59,24.46,12.84,6.11%,1.06,85.02,2.47,3005.1M
5201,OLDTOWN (5201) [s],OLDTOWN BERHAD,,1.600,0.000 (0.00%),0.1842,16,0,16,NA,NA,3/20/2015,4/16/2015,0.0300,Currency,Trad/Serv - Main Market,1.610,1.600,241600,12300 / 35500,1.580 / 1.620,1.460 - 2.220,14.32,14.9,10.74,6.12,3.83%,2.13,89.96,1.78,707.4M
5202,MSM (5202) [s],MSM MALAYSIA HOLDINGS BERHAD,,5.050,-0.100 (-1.94%),0.4416,17,0,17,NA,NA,6/16/2015,7/2/2015,0.1400,Currency,Consumer Products - Main Market,5.050,4.880,2400,500 / 1000,5.080 / 5.150,4.710 - 5.480,13.52,13.02,38.79,24.01,4.75%,1.76,326.00,1.55,3550.0M
5204,PRESBHD (5204) [s],PRESTARIANG BERHAD,,2.600,+0.060 (+2.36%),0.9203,17,0,17,NA,NA,6/9/2015,7/2/2015,0.0075,Currency,Trad/Serv - Main Market,2.620,2.480,695600,8900 / 67800,2.590 / 2.600,1.330 - 2.710,10.50,70.27,3.70,4.07,1.57%,7.38,20.31,12.8,1258.4M
5205,SENDAI (5205) [s],EVERSENDAI CORPORATION BERHAD,,0.900,+0.005 (+0.56%),0.7431,17,1,5,NA,NA,7/8/2015,7/24/2015,0.0125,Currency,Construction - Main Market,0.920,0.885,2081300,3000 / 10000,0.900 / 0.910,0.495 - 1.040,4.70,15.2,5.92,0.99,1.10%,0.71,151.81,0.59,696.5M
5207,SBCCORP (5207) [s],SBC CORPORATION BHD,,0.900,+0.010 (+1.12%),0.0325,51,3,44,12.48%,12.33%,10/14/2014,11/3/2014,0.0475,Currency,Properties - Main Market,0.905,0.890,251800,100 / 27200,0.895 / 0.905,0.855 - 2.240,4.89,11.42,7.88,1.92,2.13%,0.56,63.62,1.41,211.3M
5208,EITA (5208) [s],EITA RESOURCES BERHAD,,1.160,-0.020 (-1.69%),0.1304,14,0,14,NA,NA,4/8/2015,4/28/2015,0.0200,Currency,Trad/Serv - Main Market,1.170,1.160,13500,10000 / 6500,1.170 / 1.180,1.100 - 1.560,12.01,10.06,11.53,5.00,4.31%,1.21,164.78,0.7,150.8M
5209,GASMSIA (5209) [s],GAS MALAYSIA BERHAD,,2.510,-0.040 (-1.57%),0.0087,12,0,12,NA,NA,5/20/2015,6/12/2015,0.0406,Currency,Trad/Serv - Main Market,2.560,2.500,86600,15800 / 700,2.510 / 2.530,2.500 - 3.650,15.60,20.86,12.03,13.35,5.32%,3.26,230.10,1.09,3222.8M
5210,ARMADA (5210) [s],BUMI ARMADA BERHAD,,1.140,+0.020 (+1.79%),0.0583,16,1,1,NA,NA,6/11/2015,7/3/2015,0.0163,Currency,Trad/Serv - Main Market,1.150,1.120,9129000,1261500 / 1315600,1.130 / 1.150,1.000 - 3.400,3.21,29.61,3.85,2.62,2.30%,0.95,42.63,2.67,6687.5M
5211,SUNWAY (5211) [s],SUNWAY BERHAD,,3.440,-0.010 (-0.29%),0.5000,17,0,17,NA,NA,5/6/2015,1/1/1970,1.0000,Ratio,Properties - Main Market,3.550,3.430,5172100,111500 / 222300,3.440 / 3.520,3.000 - 3.880,12.74,7.67,44.84,9.85,2.86%,0.98,278.23,1.24,6028.7M
5212,PAVREIT (5212),-0.010 (-0.67%),,1.490,-0.010 (-0.67%),0.5556,14,0,14,NA,NA,1/27/2015,2/27/2015,0.0412,Currency,Reits - Main Market,1.500,1.480,2604100,23200 / 196500,1.480 / 1.490,1.340 - 1.610,13.71,8.74,17.05,7.95,5.34%,1.20,13.46,11.07,4493.7M
5213,SNTORIA (5213),0.000 (0.00%),,1.060,0.000 (0.00%),0.2571,14,0,14,NA,NA,5/13/2015,6/11/2015,0.0100,Currency,Properties - Main Market,1.060,1.030,25000,6000 / 29000,1.030 / 1.060,0.880 - 1.580,9.09,15.34,6.91,1.89,1.78%,1.39,49.84,2.13,502.6M
5214,CSL (5214),0.000 (0.00%),,0.085,0.000 (0.00%),0.1538,14,1,3,NA,NA,8/15/2013,9/9/2013,0.0160,Currency,Consumer Products - Main Market,0.085,0.085,613400,2127200 / 2262200,0.085 / 0.090,0.075 - 0.140,-13.35,-0.5,-17.09,0.00,0.00%,0.07,16.33,0.52,104.8M
5215,IJMLAND (5215) [s],IJM LAND BERHAD,,3.500,0.000 (0.00%),0.5522,50,2,31,19.11%,13.17%,6/10/2014,7/1/2014,0.0600,Currency,Properties - Main Market,3.500,3.500,-,0 / 0,0.000 / 0.000,3.130 - 3.800,14.74,10.79,32.43,6.01,1.72%,1.59,136.76,2.56,5455.9M
5216,DSONIC (5216) [s],DATASONIC GROUP BERHAD,,1.070,+0.020 (+1.90%),0.0612,12,0,12,NA,NA,6/12/2015,6/25/2015,0.0100,Currency,Trad/Serv - Main Market,1.070,1.040,646300,500 / 114800,1.060 / 1.070,1.010 - 1.990,26.71,24.26,4.41,3.01,2.81%,6.48,17.28,6.19,1444.5M
5218,SKPETRO (5218) [s],SAPURAKENCANA PETROLEUM BHD,,2.360,+0.010 (+0.43%),0.1186,12,0,12,NA,NA,7/29/2015,8/28/2015,0.0135,Currency,Trad/Serv - Main Market,2.390,2.320,9025700,701500 / 26600,2.360 / 2.370,2.080 - 4.440,9.73,11.94,19.76,4.34,1.84%,1.16,162.84,1.45,14141.5M
5219,PESTECH (5219) [s],PESTECH INTERNATIONAL BERHAD,,4.920,+0.050 (+1.03%),0.5586,13,0,13,NA,NA,4/14/2015,5/14/2015,0.0400,Currency,Trad/Serv - Main Market,4.920,4.820,22500,5000 / 1400,4.870 / 4.910,2.870 - 6.540,15.75,33.06,14.88,4.59,0.93%,5.21,143.58,3.43,914.1M
5220,GLOTEC (5220) [s],GLOBALTEC FORMATION BERHAD,,0.060,0.000 (0.00%),0.0714,13,5,2,NA,NA,,,,,Ind-Prod - Main Market,0.060,0.055,930600,46971000 / 11145800,0.055 / 0.060,0.055 - 0.125,-8.64,-10.53,-0.57,0.00,0.00%,0.91,6.68,0.9,322.9M
5222,FGV (5222) [s],FELDA GLOBAL VENTURES HLDG BHD,,1.630,0.000 (0.00%),0.0000,13,1,2,NA,NA,6/26/2015,7/10/2015,0.0400,Currency,Plantation - Main Market,1.660,1.620,1753000,31100 / 63700,1.630 / 1.640,1.630 - 4.210,2.61,35.75,4.56,13.64,8.37%,0.93,429.60,0.38,5946.5M
5223,MENTIGA (5223) [s],MENTIGA CORPORATION BHD,,0.700,0.000 (0.00%),0.0200,51,23,2,27.45%,11.10%,6/25/2014,7/25/2014,0.0400,Currency,Ind-Prod - Main Market,0.700,0.700,5000,4000 / 3000,0.685 / 0.700,0.690 - 1.190,5.10,9.6,7.29,3.87,5.53%,0.49,20.98,3.34,49.0M
5225,IHH (5225) [s],IHH HEALTHCARE BERHAD,,5.660,+0.080 (+1.43%),0.7840,12,0,12,NA,NA,7/1/2015,7/22/2015,0.0300,Currency,Trad/Serv - Main Market,5.690,5.580,6448600,708300 / 53800,5.660 / 5.690,4.390 - 6.010,3.84,60.66,9.33,1.99,0.35%,2.33,92.37,6.13,46503.1M
5226,GBGAQRS (5226) [s],GABUNGAN AQRS BERHAD,,1.120,0.000 (0.00%),0.0000,13,0,13,NA,NA,7/13/2015,1/1/1970,1.0000,Ratio,Construction - Main Market,1.120,1.110,170500,41900 / 10000,1.100 / 1.110,1.120 - 1.880,13.94,9.23,12.13,1.81,1.62%,1.29,127.11,0.88,433.4M
5227,IGBREIT (5227),-0.020 (-1.48%),,1.330,-0.020 (-1.48%),0.6875,11,0,11,NA,NA,2/10/2015,2/27/2015,0.0390,Currency,Reits - Main Market,1.350,1.330,334000,2800 / 90200,1.330 / 1.350,1.220 - 1.380,8.80,13.96,9.53,7.74,5.82%,1.23,13.68,9.72,4600.9M
5228,ELKDESA (5228),+0.010 (+0.71%),,1.420,+0.010 (+0.71%),0.1724,11,0,11,NA,NA,9/7/2015,9/23/2015,0.0750,Currency,Finance - Main Market,1.420,1.420,5600,41400 / 17400,1.420 / 1.430,1.370 - 1.660,7.24,9.44,15.05,7.51,5.29%,0.68,46.12,3.08,177.4M
5229,CAP (5229),+0.025 (+7.69%),,0.350,+0.025 (+7.69%),0.4828,10,0,10,NA,NA,8/4/2014,9/5/2014,0.0152,Currency,Ind-Prod - Main Market,0.365,0.320,17932700,260000 / 190000,0.345 / 0.350,0.210 - 0.500,14.46,3.18,10.99,1.52,4.34%,0.46,60.03,0.58,210.2M
5230,TUNEINS (5230),-0.020 (-1.20%),,1.640,-0.020 (-1.20%),0.0947,10,0,10,NA,NA,6/3/2015,7/3/2015,0.0404,Currency,Finance - Main Market,1.670,1.630,1033800,37600 / 160500,1.640 / 1.650,1.550 - 2.500,16.30,17.65,9.29,3.86,2.35%,2.88,58.64,2.8,1232.9M
5231,PELIKAN (5231) [s],PELIKAN INT.CORPORATION BHD,,1.110,0.000 (0.00%),0.2571,51,24,0,-62.40%,-49.36%,8/23/2012,9/24/2012,0.0100,Currency,Consumer Products - Main Market,1.110,1.090,37000,18000 / 10000,1.090 / 1.100,0.975 - 1.500,-7.43,-18.44,-6.02,0.00,0.00%,1.37,246.47,0.45,608.7M
5232,LEONFB (5232),+0.015 (+2.73%),,0.565,+0.015 (+2.73%),0.5000,9,0,9,NA,NA,7/9/2015,8/5/2015,0.0200,Currency,Ind-Prod - Main Market,0.565,0.545,267400,47000 / 39900,0.555 / 0.565,0.490 - 0.640,13.04,5.85,9.65,2.50,4.42%,0.76,167.14,0.34,175.2M
5234,CLIQ (5234),-0.005 (-0.76%),,0.655,-0.005 (-0.76%),0.6429,5,5,0,NA,NA,,,,,SPAC - Main Market,0.655,0.650,376200,2188100 / 1133000,0.650 / 0.655,0.610 - 0.680,-227.00,-14.43,-4.54,0.00,0.00%,32.75,0.94,69.68,413.3M
5236,MATRIX (5236) [s],MATRIX CONCEPTS HOLDINGS BHD,,3.100,+0.050 (+1.64%),0.3953,9,0,9,NA,NA,6/24/2015,7/9/2015,0.0425,Currency,Properties - Main Market,3.180,3.060,488000,22400 / 5000,3.100 / 3.130,2.250 - 4.400,34.24,5.52,56.15,15.34,4.95%,1.89,169.02,1.83,1432.8M
5237,MPHBCAP (5237),-0.010 (-0.58%),,1.700,-0.010 (-0.58%),0.0000,9,0,9,NA,NA,,,,,Finance - Main Market,1.710,1.680,180400,33600 / 7900,1.690 / 1.700,1.700 - 2.730,19.36,4.7,36.20,0.00,0.00%,0.91,52.24,3.25,1215.5M
5238,AAX (5238),+0.005 (+2.44%),,0.210,+0.005 (+2.44%),0.0074,8,7,0,NA,NA,,,,,Trad/Serv - Main Market,0.215,0.205,6460900,6838500 / 6501700,0.210 / 0.215,0.205 - 0.880,-63.67,-1.37,-15.28,0.00,0.00%,0.88,71.48,0.29,871.1M
5239,TITIJYA (5239) [s],TITIJAYA LAND BERHAD,,1.990,+0.110 (+5.85%),0.3306,7,0,7,NA,NA,12/1/2014,12/23/2014,0.0400,Currency,Properties - Main Market,1.990,1.870,23000,5000 / 9900,1.970 / 1.990,1.590 - 2.800,18.13,8.51,23.39,4.00,2.01%,1.54,101.03,1.97,703.1M
5241,SONA (5241) [s],SONA PETROLEUM BERHAD,,0.420,0.000 (0.00%),0.1563,4,3,0,NA,NA,,,,,SPAC - Main Market,0.425,0.420,1369200,2405400 / 1958100,0.420 / 0.425,0.395 - 0.555,-123.50,-17,-2.47,0.00,0.00%,21.00,0.00,,592.5M
5242,SOLID (5242) [s],SOLID AUTOMOTIVE BHD,,1.640,+0.020 (+1.23%),0.9302,8,0,8,NA,NA,5/25/2015,6/17/2015,0.0100,Currency,Trad/Serv - Main Market,1.650,1.620,120500,67500 / 3500,1.620 / 1.640,0.840 - 1.700,9.77,25.83,6.35,3.99,2.43%,2.52,88.85,1.85,246.0M
5243,UMWOG (5243) [s],UMW OIL & GAS CORPORATION BHD,,1.710,+0.040 (+2.40%),0.0195,7,0,7,NA,NA,12/26/2014,1/15/2015,0.0100,Currency,Trad/Serv - Main Market,1.730,1.670,1811900,13500 / 164600,1.700 / 1.710,1.660 - 4.220,6.84,16.09,10.63,1.00,0.58%,1.10,52.42,3.26,3697.0M
5245,CARING (5245) [s],CARING PHARMACY GROUP BERHAD,,1.070,+0.030 (+2.88%),0.0569,6,0,6,NA,NA,11/18/2014,12/17/2014,0.0150,Currency,Trad/Serv - Main Market,1.070,1.030,458000,25000 / 12500,1.070 / 1.080,1.000 - 2.230,9.80,20.23,5.29,2.99,2.79%,1.98,165.33,0.65,232.9M
5246,WPRTS (5246) [s],WESTPORTS HOLDINGS BERHAD,,4.230,+0.020 (+0.48%),0.8508,7,0,7,NA,NA,2/26/2015,3/11/2015,0.0615,Currency,Trad/Serv - Main Market,4.290,4.190,7017900,10000 / 176500,4.190 / 4.230,2.690 - 4.500,31.26,27.56,15.35,11.26,2.66%,8.61,46.85,9.03,14424.3M
5247,KAREX (5247),+0.010 (+0.33%),,3.070,+0.010 (+0.33%),0.1850,7,1,6,NA,NA,12/10/2014,12/22/2014,0.0250,Currency,Consumer Products - Main Market,3.090,3.030,441800,20100 / 10000,3.070 / 3.090,2.700 - 4.700,8.82,37.44,8.20,1.52,0.50%,3.30,42.15,7.28,2051.5M
5248,BJAUTO (5248) [s],BERJAYA AUTO BERHAD,,2.700,0.000 (0.00%),0.2147,7,0,7,NA,NA,7/6/2015,7/22/2015,0.0325,Currency,Trad/Serv - Main Market,2.740,2.680,2274900,5000 / 161500,2.680 / 2.700,2.290 - 4.200,45.21,10.19,26.49,12.05,4.46%,4.61,225.00,1.2,2195.8M
5249,IOIPG (5249) [s],IOI PROPERTIES GROUP BERHAD,,1.850,0.000 (0.00%),0.0106,7,0,7,NA,NA,9/26/2014,10/29/2014,0.0800,Currency,Properties - Main Market,1.900,1.820,3884600,98700 / 99000,1.850 / 1.880,1.840 - 2.780,7.03,7.74,23.91,6.87,3.71%,0.54,45.30,4.08,6980.1M
5250,SEM (5250),-0.030 (-1.84%),,1.600,-0.030 (-1.84%),0.5429,4,0,4,NA,NA,3/13/2015,3/31/2015,0.0250,Currency,Trad/Serv - Main Market,1.630,1.600,626800,95200 / 5000,1.600 / 1.620,1.220 - 1.920,35.09,29.96,5.34,5.08,3.18%,10.51,157.75,1.01,1973.4M
5251,TMAKMUR (5251) [s],TANAH MAKMUR BERHAD,,1.420,+0.010 (+0.71%),0.1538,5,0,5,NA,NA,5/11/2015,5/29/2015,0.0600,Currency,Plantation - Main Market,1.420,1.400,210900,100 / 3000,1.410 / 1.420,1.260 - 2.300,12.78,10.29,13.80,5.60,3.94%,1.31,95.17,1.49,565.4M
5252,SASBADI (5252) [s],SASBADI HOLDINGS BHD,,2.350,+0.040 (+1.73%),0.8455,4,0,4,NA,NA,2/25/2015,3/23/2015,0.0300,Currency,Consumer Products - Main Market,2.410,2.270,378600,14800 / 40000,2.350 / 2.390,1.310 - 2.540,14.16,21,11.19,0.00,0.00%,2.97,66.08,3.56,298.5M
5253,ECONBHD (5253) [s],ECONPILE HOLDINGS BHD,,1.040,+0.020 (+1.96%),0.7209,5,0,5,NA,NA,6/4/2015,6/23/2015,0.0150,Currency,Construction - Main Market,1.070,1.020,535700,24600 / 10000,1.040 / 1.050,0.730 - 1.160,20.28,14.25,7.30,1.00,0.96%,2.89,79.44,1.31,556.4M
5254,BPLANT (5254) [s],BOUSTEAD PLANTATIONS BHD,,1.400,+0.020 (+1.45%),0.2308,5,1,1,NA,NA,6/3/2015,6/30/2015,0.0200,Currency,Plantation - Main Market,1.400,1.370,287100,15500 / 33600,1.380 / 1.400,1.310 - 1.700,1.51,65.12,2.15,6.01,4.29%,0.99,40.66,3.44,2240.0M
5255,ICON (5255) [s],ICON OFFSHORE BERHAD,,0.430,+0.005 (+1.18%),0.0035,5,0,5,NA,NA,,,,,Trad/Serv - Main Market,0.440,0.420,6364900,61700 / 154000,0.430 / 0.440,0.425 - 1.870,3.93,11.88,3.62,0.00,0.00%,0.47,25.69,1.67,506.2M
5256,REACH (5256) [s],REACH ENERGY BHD,,0.595,0.000 (0.00%),0.1667,2,1,1,NA,NA,,,,,SPAC - Main Market,0.600,0.595,290000,1856600 / 202300,0.595 / 0.600,0.575 - 0.695,-4.06,-24.79,-2.40,0.00,0.00%,1.01,0.98,60.71,760.3M
5257,CARIMIN (5257) [s],CARIMIN PETROLEUM BERHAD,,0.960,0.000 (0.00%),0.3433,3,0,3,NA,NA,3/4/2015,3/27/2015,0.0100,Currency,Trad/Serv - Main Market,0.960,0.960,-,35100 / 65000,0.920 / 0.970,0.845 - 1.180,6.63,16.52,5.81,1.00,1.04%,1.10,63.84,1.5,224.5M
5258,BIMB (5258) [s],BIMB HOLDINGS BHD,,4.040,0.000 (0.00%),0.3455,51,6,35,18.20%,18.38%,12/12/2014,1/13/2015,14.7000,Percentage,Finance - Main Market,4.090,4.010,940300,198400 / 1000,4.040 / 4.070,3.850 - 4.400,16.58,11.44,35.31,22.87,5.66%,1.90,197.75,2.04,6230.5M
5259,EATECH (5259) [s],E.A.TECHNIQUE (M) BERHAD,,1.060,0.000 (0.00%),0.8451,3,0,3,NA,NA,6/26/2015,7/13/2015,0.0100,Currency,Trad/Serv - Main Market,1.100,1.020,1205800,21200 / 139300,1.050 / 1.060,0.460 - 1.170,5.73,33.65,3.15,0.00,0.00%,1.93,30.30,3.5,534.2M
5260,OWG (5260),-0.040 (-1.47%),,2.690,-0.040 (-1.47%),0.8835,3,0,3,NA,NA,,,,,Trad/Serv - Main Market,2.740,2.670,291200,9100 / 2500,2.690 / 2.730,0.870 - 2.930,7.91,44.17,6.09,0.00,0.00%,3.49,35.94,7.48,497.7M
5264,MALAKOF (5264) [s],,,1.750,-0.050 (-2.78%),0.2941,1,0,1,NA,NA,6/10/2015,7/8/2015,0.0300,Currency,Trad/Serv - Main Market,1.800,1.750,5568200,973700 / 10000,1.750 / 1.770,1.700 - 1.870,0.19,84.13,2.08,0.00,0.00%,0.16,26.93,6.5,8750.0M
5265,DOLPHIN (5265),+0.015 (+1.84%),,0.830,+0.015 (+1.84%),0.7297,1,0,1,NA,NA,,,,,Ind-Prod - Main Market,0.845,0.800,7919100,206300 / 73300,0.830 / 0.835,0.695 - 0.880,0.00,0,0,0,0.00%,2.69,0,,9.8M
5266,EONCAP (5266),0.000 (0.00%),,,0.000 (0.00%),,8,0,8,NA,NA,6/9/2011,6/21/2011,5.1600,Currency,Finance - Main Market,-,-,-,0 / 0,- / -,,0.00,0,0,0,0.00%,0.00,0,,0.0M
5267,XINHWA (5267) [s],,,0.860,+0.160 (+22.86%),,1,0,1,NA,NA,,,,,-,0.900,0.755,76322300,59900 / 123900,0.855 / 0.860,,0.00,0,0,0,0.00%,1.34,0,,122.4M
5274,HLCAP (5274),0.000 (0.00%),,10.200,0.000 (0.00%),0.3171,51,5,24,21.86%,11.34%,11/3/2014,11/19/2014,0.1500,Currency,Finance - Main Market,10.200,10.200,-,0 / 0,0.000 / 0.000,8.250 - 14.400,15.58,25.08,40.67,14.65,1.44%,3.91,112.16,9.09,2518.4M
5282,MAMEE (5282),0.000 (0.00%),,4.320,0.000 (0.00%),,10,0,10,NA,NA,6/28/2011,7/27/2011,0.0850,Currency,Consumer Products - Main Market,-,-,-,0 / 0,- / -,,0.00,0,0,0,0.00%,2.45,0,,628.6M
5304,PROTON (5304),0.000 (0.00%),,5.480,0.000 (0.00%),,11,2,0,NA,NA,9/21/2011,10/20/2011,0.1000,Currency,Consumer Products - Main Market,-,-,-,0 / 0,- / -,,0.00,0,0,0,0.00%,0.57,0,,3002.3M
5339,NILAI (5339),0.000 (0.00%),,1.490,0.000 (0.00%),,14,7,0,NA,NA,6/29/2012,7/31/2012,2.5000,Percentage,Properties - Main Market,1.490,1.490,-,0 / 0,- / -,,6.01,6.83,21.82,2.48,1.66%,0.41,260.74,0.57,174.9M
5347,TENAGA (5347) [s],TENAGA NASIONAL BHD,,12.640,+0.040 (+0.32%),0.2115,50,6,13,17.26%,8.56%,5/18/2015,5/29/2015,0.1000,Currency,Trad/Serv - Main Market,12.660,12.580,10204600,640700 / 793700,12.620 / 12.640,11.980 - 15.100,16.22,9.42,134.21,29.00,2.29%,1.53,795.07,1.59,71335.2M
5355,DAIMAN (5355) [s],DAIMAN DEVELOPMENT BHD,,2.460,0.000 (0.00%),0.0065,51,3,25,0.33%,3.82%,12/5/2014,12/30/2014,8.0000,Percentage,Properties - Main Market,2.460,2.460,-,3000 / 7500,2.430 / 2.550,2.450 - 4.000,2.65,18.06,13.62,8.00,3.25%,0.48,102.36,2.4,518.0M
5371,KIMHIN (5371) [s],KIM HIN INDUSTRY BHD,,1.840,+0.030 (+1.66%),0.9487,51,5,7,1.50%,-2.77%,6/22/2015,7/23/2015,3.0000,Percentage,Ind-Prod - Main Market,1.860,1.780,370500,11100 / 10500,1.830 / 1.840,1.100 - 1.880,6.76,8.1,22.72,5.97,3.24%,0.55,237.36,0.78,258.0M
5398,GAMUDA (5398) [s],GAMUDA BHD,,4.670,0.000 (0.00%),0.0000,51,0,51,14.49%,8.93%,7/13/2015,7/29/2015,0.0600,Currency,Construction - Main Market,4.780,4.630,7215000,120400 / 90200,4.660 / 4.670,4.670 - 5.350,11.92,15.18,30.76,11.71,2.51%,1.81,99.23,4.71,11147.5M
5401,TROP (5401) [s],TROPICANA CORPORATION BERHAD,,1.010,+0.010 (+1.00%),0.0727,51,4,14,25.13%,12.83%,6/23/2015,7/15/2015,1.0000,Ratio,Properties - Main Market,1.020,1.000,333400,300 / 109300,1.010 / 1.020,0.970 - 1.520,11.37,4.27,23.65,3.91,3.87%,0.49,144.89,0.7,1438.9M
5436,PERSTIM (5436) [s],PSAHAAN SADUR TIMAH MSIA,,4.600,-0.020 (-0.43%),0.6207,51,0,51,-20.14%,-0.22%,11/12/2014,12/5/2014,0.1500,Currency,Ind-Prod - Main Market,4.600,4.600,1000,2000 / 1700,4.610 / 4.700,3.700 - 5.150,12.11,10.73,42.88,35.00,7.61%,1.30,661.56,0.7,456.8M
5509,NCB (5509) [s],NCB HOLDINGS BHD,,3.520,+0.010 (+0.28%),1.0000,51,3,2,-44.06%,-5.69%,5/27/2015,6/17/2015,0.0500,Currency,Trad/Serv - Main Market,3.660,3.510,803300,33400 / 1300,3.520 / 3.640,2.110 - 3.520,1.50,77.88,4.52,6.44,1.83%,1.17,176.92,1.99,1655.3M
5517,SHANG (5517),+0.120 (+1.90%),,6.450,+0.120 (+1.90%),0.2336,51,3,27,11.50%,6.77%,6/3/2015,6/30/2015,0.0900,Currency,Hotels - Main Market,6.460,6.440,46000,1000 / 2000,6.320 / 6.440,6.130 - 7.500,7.85,36.88,17.49,18.00,2.79%,2.89,113.03,5.71,2838.0M
5533,OCB (5533) [s],OCB BHD,,0.750,-0.050 (-6.25%),0.2632,51,9,9,29.02%,-41.86%,6/9/2015,6/26/2015,2.0000,Percentage,Trad/Serv - Main Market,0.750,0.750,5000,12000 / 8000,0.750 / 0.860,0.650 - 1.030,2.96,11.18,6.71,1.50,2.00%,0.33,278.48,0.27,77.1M
5568,APB (5568) [s],APB RESOURCES BHD,,1.230,+0.030 (+2.50%),0.4107,52,7,44,-3.66%,-2.28%,6/24/2015,7/7/2015,3.5000,Percentage,Ind-Prod - Main Market,1.230,1.200,66600,1000 / 900,1.210 / 1.230,1.000 - 1.560,5.45,13.61,9.04,6.48,5.27%,0.74,106.39,1.16,136.3M
5576,MINHO (5576) [s],MINHO (M) BHD,,1.350,+0.150 (+12.50%),1.0000,51,18,4,25.84%,6.27%,,,,,Ind-Prod - Main Market,1.360,1.150,4203900,5100 / 42900,1.350 / 1.360,0.700 - 1.350,5.05,8.82,15.30,0.00,0.00%,0.45,237.99,0.57,148.3M
5584,YEELEE (5584) [s],YEE LEE CORPORATION BHD,,1.750,+0.010 (+0.57%),0.4948,51,0,51,6.28%,9.99%,7/16/2015,8/4/2015,0.0300,Currency,Consumer Products - Main Market,1.770,1.750,122300,16700 / 1000,1.750 / 1.760,1.270 - 2.240,6.90,12.66,13.82,2.94,1.68%,0.87,380.30,0.46,320.0M
5592,GCE (5592),0.000 (0.00%),,0.705,0.000 (0.00%),0.0000,51,8,0,-30.91%,-10.17%,4/28/2015,5/25/2015,2.0000,Percentage,Hotels - Main Market,0.705,0.705,-,2000 / 2000,0.720 / 0.800,0.705 - 0.990,-0.18,-306.52,-0.23,4.01,5.69%,0.55,16.25,4.34,138.9M
5606,GOLDIS (5606),0.000 (0.00%),,2.230,0.000 (0.00%),0.0526,51,1,17,9.57%,8.91%,3/12/2014,3/27/2014,3.0000,Ratio,Consumer Products - Main Market,2.230,2.220,145000,90000 / 3000,2.220 / 2.230,2.200 - 2.770,5.01,11.66,19.13,0.00,0.00%,0.58,219.37,1.02,1355.0M
5614,ILB (5614) [s],INTEGRATED LOGISTICS BHD,,0.820,+0.005 (+0.61%),0.4500,51,13,0,8.49%,4.39%,3/10/2015,3/27/2015,3.5000,Percentage,Trad/Serv - Main Market,0.820,0.805,30900,19300 / 14300,0.810 / 0.820,0.640 - 1.040,-13.73,-3.49,-23.48,3.61,4.40%,0.48,23.73,3.46,144.0M
5622,TRIPLC (5622),0.000 (0.00%),,1.020,0.000 (0.00%),0.0164,50,9,39,20.54%,14.63%,,,,,Construction - Main Market,1.020,1.020,-,2000 / 10000,1.010 / 1.120,1.010 - 1.620,8.23,5.65,18.05,0.00,0.00%,0.47,74.51,1.37,66.3M
5649,GPHAROS (5649) [s],GOLDEN PHAROS BHD,,0.410,0.000 (0.00%),0.0519,51,29,0,147.12%,72.64%,9/15/2008,9/30/2008,0.0185,RM,Ind-Prod - Main Market,0.410,0.410,-,5000 / 5000,0.380 / 0.400,0.375 - 1.050,-8.67,-7.51,-5.46,0.00,0.00%,0.65,56.05,0.73,55.2M
5657,PARKSON (5657) [s],PARKSON HOLDINGS BHD,,1.550,-0.020 (-1.27%),0.0000,51,6,31,-36.28%,6.53%,6/23/2015,7/2/2015,3.0000,Ratio,Trad/Serv - Main Market,1.580,1.550,747300,84200 / 65300,1.550 / 1.570,1.550 - 3.130,5.87,10.01,15.49,0.00,0.00%,0.59,355.92,0.44,1608.2M
5665,SSTEEL (5665),-0.015 (-1.55%),,0.950,-0.015 (-1.55%),0.0274,51,13,0,-218.09%,-62.85%,5/16/2014,5/30/2014,0.0200,Currency,Ind-Prod - Main Market,0.950,0.940,17000,5000 / 36400,0.950 / 0.965,0.930 - 1.660,-11.36,-3.87,-24.54,2.00,2.11%,0.44,630.07,0.15,398.4M
5673,IPMUDA (5673) [s],IPMUDA BHD,,1.260,+0.040 (+3.28%),0.6184,51,4,29,5.15%,11.52%,7/23/2014,8/20/2014,3.0000,Percentage,Trad/Serv - Main Market,1.260,1.230,18500,1000 / 2000,1.250 / 1.280,0.790 - 1.550,10.02,5.38,23.44,3.00,2.38%,0.54,874.79,0.14,91.3M
5681,PETDAG (5681) [s],PETRONAS DAGANGAN BHD,,20.580,+0.120 (+0.59%),0.6471,51,3,38,-6.04%,4.46%,5/25/2015,6/25/2015,0.1200,Currency,Trad/Serv - Main Market,20.620,20.100,660100,601600 / 538900,20.500 / 20.580,14.640 - 23.820,11.63,37.02,55.59,61.48,2.99%,4.31,3034.74,686,20445.2M
5703,MUHIBAH (5703) [s],MUHIBBAH ENGINEERING (M) BHD,,2.270,+0.010 (+0.44%),0.3731,51,5,9,22.36%,4.42%,9/1/2015,9/11/2015,8.0000,Percentage,Construction - Main Market,2.280,2.250,310800,41200 / 65800,2.260 / 2.270,1.550 - 3.480,11.46,12.54,18.10,4.08,1.80%,1.44,355.28,0.64,1061.9M
5711,TSTORE (5711) [s],THE STORE CORPORATION BHD,,2.810,0.000 (0.00%),0.3556,51,4,14,17.02%,-15.14%,5/19/2015,6/19/2015,3.7500,Percentage,Trad/Serv - Main Market,2.810,2.810,-,11700 / 3300,2.610 / 2.980,2.650 - 3.100,4.45,9.18,30.62,3.79,1.35%,0.41,2549.40,140.5,192.5M
5738,CHHB (5738),0.000 (0.00%),,1.200,0.000 (0.00%),0.2545,51,20,0,7.85%,6.57%,,,,,Properties - Main Market,1.200,1.180,23300,5000 / 3200,1.160 / 1.200,1.060 - 1.610,1.62,24.79,4.84,0.00,0.00%,0.40,83.30,1.44,330.7M
5754,UTUSAN (5754) [s],UTUSAN MELAYU (M) BHD,,0.630,0.000 (0.00%),0.3898,51,19,0,-39.56%,-23.09%,7/8/2009,7/24/2009,1.0000,Percentage,Trad/Serv - Main Market,0.630,0.630,-,2000 / 7400,0.580 / 0.630,0.515 - 0.810,-46.56,-0.86,-73.20,0.00,0.00%,0.40,256.26,0.25,69.8M
5789,LBS (5789) [s],LBS BINA GROUP BHD,,1.600,0.000 (0.00%),0.4400,51,6,21,27.32%,12.99%,7/9/2015,8/10/2015,0.0325,Currency,Properties - Main Market,1.600,1.600,-,10000 / 13600,1.580 / 1.600,1.490 - 1.740,7.03,12.31,13.00,8.56,5.35%,0.86,121.04,1.32,866.9M
5797,CHOOBEE (5797) [s],CHOO BEE METAL INDUSTRIES BHD,,1.620,0.000 (0.00%),0.2128,51,4,18,-21.81%,-15.05%,7/21/2015,8/18/2015,6.0000,Percentage,Ind-Prod - Main Market,1.620,1.620,-,4000 / 0,1.500 / 0.000,1.520 - 1.990,3.00,13.49,12.01,5.99,3.70%,0.41,480.22,0.34,176.5M
5819,HLBANK (5819),0.000 (0.00%),,13.400,0.000 (0.00%),0.0405,51,0,51,13.19%,9.53%,3/10/2015,3/26/2015,0.1500,Currency,Finance - Main Market,13.400,13.400,-,0 / 300,0.000 / 13.660,13.340 - 14.820,13.57,11.18,119.85,40.25,3.00%,1.52,224.18,5.98,24104.1M
5827,OIB (5827) [s],ORIENTAL INTEREST BHD,,2.720,0.000 (0.00%),0.7429,51,3,15,28.22%,-30.59%,11/28/2014,12/12/2014,5.0000,Percentage,Properties - Main Market,2.720,2.720,-,0 / 0,0.000 / 0.000,2.200 - 2.900,7.06,12.35,22.03,5.00,1.84%,0.87,216.21,1.26,246.3M
5835,DOLMITE (5835),0.000 (0.00%),,0.315,0.000 (0.00%),0.0811,51,23,2,76.19%,66.74%,,,,,Ind-Prod - Main Market,0.315,0.315,-,20000 / 7000,0.280 / 0.395,0.300 - 0.485,4.85,10.94,2.88,0.00,0.00%,0.53,34.02,0.93,83.0M
5843,KPS (5843) [s],KUMPULAN PERANGSANG SELANGOR,,1.410,0.000 (0.00%),0.4048,51,9,5,18.19%,13.40%,7/20/2015,8/21/2015,0.0200,Currency,Trad/Serv - Main Market,1.410,1.410,-,5000 / 4000,1.380 / 1.420,1.070 - 1.910,9.32,6.23,22.64,3.99,2.83%,0.58,62.38,2.26,703.6M
5878,KPJ (5878) [s],KPJ HEALTHCARE BHD,,4.220,0.000 (0.00%),0.8163,51,0,51,3.16%,7.93%,6/26/2015,7/14/2015,0.0175,Currency,Trad/Serv - Main Market,4.220,4.220,-,0 / 2000,0.000 / 4.300,3.420 - 4.400,10.74,30.94,13.64,4.87,1.15%,3.32,261.48,1.61,4435.1M
5886,MINTYE (5886) [s],MINTYE INDUSTRIES BHD,,1.220,0.000 (0.00%),0.4194,51,3,9,-11.17%,-9.87%,7/21/2015,8/6/2015,3.0000,Percentage,Consumer Products - Main Market,1.220,1.220,-,5000 / 1600,1.050 / 1.500,1.090 - 1.400,3.07,22.34,5.46,3.01,2.47%,0.69,77.97,1.56,74.2M
5908,DKSH (5908) [s],DKSH HOLDINGS(M)BHD,,5.000,0.000 (0.00%),0.0031,51,5,27,18.73%,12.80%,7/17/2015,8/20/2015,0.0950,Currency,Trad/Serv - Main Market,5.000,5.000,-,5000 / 4700,4.720 / 5.250,4.990 - 8.260,12.07,13.44,37.19,22.50,4.50%,1.62,3470.51,166.67,788.3M
5916,MSC (5916),0.000 (0.00%),,2.460,0.000 (0.00%),0.0000,51,15,0,-6.80%,-34.49%,5/21/2012,6/8/2012,0.1800,Currency,Ind-Prod - Main Market,2.460,2.460,-,0 / 0,0.000 / 0.000,2.460 - 3.430,-11.64,-8.96,-27.47,0.00,0.00%,1.04,1867.72,246,246.0M
5924,MTDACPI (5924) [s],MTD ACPI ENGINEERING BHD,,0.370,0.000 (0.00%),0.6061,51,32,0,-19.60%,7.82%,10/8/2013,10/31/2013,0.0100,Currency,Construction - Main Market,0.370,0.370,-,12000 / 10000,0.265 / 0.550,0.270 - 0.435,-53.33,-2.57,-14.40,0.00,0.00%,1.37,151.31,0.24,85.7M
5932,BPURI (5932),0.000 (0.00%),,0.535,0.000 (0.00%),0.1190,50,1,13,-12.76%,1.61%,7/8/2015,7/31/2015,0.0200,Currency,Construction - Main Market,0.535,0.535,-,20000 / 30000,0.520 / 0.555,0.510 - 0.720,2.80,18.64,2.87,0.61,1.14%,0.52,522.64,0.1,115.7M
5959,A&M (5959) [s],A & M REALTY BHD,,0.910,0.000 (0.00%),0.1618,51,1,48,14.58%,8.03%,7/22/2015,8/18/2015,0.0150,Currency,Properties - Main Market,0.910,0.910,-,10000 / 30000,0.900 / 1.180,0.800 - 1.480,5.95,9.56,9.52,1.50,1.65%,0.57,41.40,2.2,332.2M
5975,ASAS (5975),0.000 (0.00%),,1.710,0.000 (0.00%),,45,2,18,17.63%,8.14%,7/1/2013,7/19/2013,5.0000,Percentage,Properties - Main Market,1.710,1.710,-,0 / 0,- / -,,0.00,0,0,0,0.00%,0.78,0,,326.2M
5983,MBMR (5983) [s],MBM RESOURCES BHD,,3.480,0.000 (0.00%),0.9565,51,0,51,2.35%,4.84%,3/12/2015,3/25/2015,0.0400,Currency,Trad/Serv - Main Market,3.480,3.480,-,0 / 3300,0.000 / 3.700,2.600 - 3.520,7.94,10.85,32.08,8.00,2.30%,0.86,527.02,0.66,1359.7M
6009,P&O (6009),0.000 (0.00%),,1.400,0.000 (0.00%),0.4545,51,18,0,4.32%,16.12%,6/26/2015,7/15/2015,0.0180,Currency,Finance - Main Market,1.400,1.400,-,20000 / 5000,1.250 / 1.530,1.300 - 1.520,4.73,19.36,7.23,10.10,7.21%,0.92,213.51,0.66,336.0M
6012,MAXIS (6012) [s],MAXIS BERHAD,,6.370,0.000 (0.00%),0.1600,23,0,23,NA,NA,5/27/2015,6/26/2015,0.0500,Currency,Trad/Serv - Main Market,6.370,6.370,-,1000 / 6300,6.350 / 6.400,6.210 - 7.210,36.48,29.1,21.89,48.10,7.55%,10.62,112.12,5.68,47831.3M
6017,SHL (6017),0.000 (0.00%),,3.300,0.000 (0.00%),0.6728,51,0,51,21.29%,6.33%,6/11/2015,6/30/2015,0.1000,Currency,Properties - Main Market,3.300,3.300,-,4000 / 3000,3.260 / 3.360,2.210 - 3.830,15.00,7.64,43.19,19.00,5.76%,1.15,95.12,3.47,799.0M
6025,BJMEDIA (6025),0.000 (0.00%),,0.430,0.000 (0.00%),0.3636,52,28,0,-19.93%,3.50%,12/31/2008,1/1/1970,1.0000,Ratio,Trad/Serv - Main Market,0.430,0.430,-,10000 / 8000,0.380 / 0.430,0.330 - 0.605,-44.17,-3.25,-13.25,0.00,0.00%,1.43,22.90,1.88,101.1M
6033,PETGAS (6033) [s],PETRONAS GAS BHD,,21.260,0.000 (0.00%),0.0973,51,0,51,10.58%,6.14%,5/26/2015,6/16/2015,0.1400,Currency,Ind-Prod - Main Market,21.260,21.260,-,1000 / 200,21.200 / 20.400,20.900 - 24.600,17.52,22.44,94.76,94.99,4.47%,3.93,224.32,9.48,42067.8M
6041,FARLIM (6041) [s],FARLIM GROUP (M) BHD,,0.635,0.000 (0.00%),0.6875,51,29,0,17.96%,18.58%,7/6/2015,7/28/2015,0.0500,Currency,Properties - Main Market,0.635,0.635,-,15000 / 14300,0.630 / 0.640,0.470 - 0.710,-0.31,-192.42,-0.33,0.00,0.00%,0.59,17.78,3.57,89.1M
6068,PCCS (6068) [s],PCCS GROUP BHD,,0.370,0.000 (0.00%),0.0125,51,16,0,-46.97%,-25.57%,,,,,Consumer Products - Main Market,0.370,0.370,-,7000 / 10000,0.350 / 0.430,0.365 - 0.765,-16.28,-1.29,-28.75,0.00,0.00%,0.21,595.01,0.06,22.2M
6076,ENCORP (6076),0.000 (0.00%),,1.090,0.000 (0.00%),0.1932,50,19,0,14.87%,17.10%,6/26/2014,7/10/2014,0.0300,Currency,Properties - Main Market,1.090,1.090,-,10000 / 2000,1.030 / 1.180,0.920 - 1.800,0.87,89.34,1.22,3.00,2.75%,0.78,110.82,0.98,303.3M
6084,STAR (6084) [s],STAR PUBLICATIONS (M) BHD,,2.470,0.000 (0.00%),0.4426,51,0,51,-6.74%,-0.01%,3/27/2015,4/17/2015,0.0900,Currency,Trad/Serv - Main Market,2.470,2.470,-,2000 / 14900,2.420 / 2.470,2.200 - 2.810,10.99,14.98,16.49,18.00,7.29%,1.65,138.22,1.79,1822.8M
6106,SINDORA (6106),0.000 (0.00%),,3.070,0.000 (0.00%),,9,0,9,NA,NA,6/28/2011,8/5/2011,5.0000,Percentage,Ind-Prod - Main Market,-,-,-,0 / 0,- / -,,0.00,0,0,0,0.00%,1.22,0,,294.5M
6114,MKH (6114) [s],MKH BERHAD,,2.130,0.000 (0.00%),0.0134,51,0,51,16.03%,6.50%,10/29/2014,11/11/2014,0.0800,Currency,Properties - Main Market,2.130,2.130,-,24800 / 100,2.100 / 2.140,2.100 - 4.340,7.27,11.77,18.09,8.00,3.76%,0.86,208.21,1.02,893.3M
6139,TAKAFUL (6139) [s],SYARIKAT TAKAFUL MALAYSIA BHD,,3.800,0.000 (0.00%),0.0534,51,4,19,14.57%,11.08%,4/30/2015,5/25/2015,35.0000,Percentage,Finance - Main Market,3.800,3.800,-,4100 / 10900,3.800 / 3.850,3.090 - 16.380,4.78,20.42,18.61,3.20,0.84%,0.98,218.77,1.74,3097.1M
6149,METROD (6149),0.000 (0.00%),,1.950,0.000 (0.00%),0.5714,51,5,1,-26.54%,-6.69%,6/26/2015,7/16/2015,0.0600,Currency,Ind-Prod - Main Market,1.950,1.950,-,100 / 2400,1.710 / 2.000,1.750 - 2.100,3.78,15.79,12.35,6.00,3.08%,0.60,1375.74,195,234.0M
6157,KONSORT (6157),0.000 (0.00%),,,0.000 (0.00%),,45,13,0,-86.60%,14.03%,1/3/2013,1/28/2013,0.1000,Currency,Trad/Serv - Main Market,-,-,-,0 / 0,- / -,,0.00,0,0,0,0.00%,0.00,0,,0.0M
6165,SUNRISE (6165),-3.120 (-100.00%),,,-3.120 (-100.00%),,6,0,6,NA,NA,11/18/2010,12/16/2010,0.2667,Currency,Properties - Main Market,-,-,-,0 / 0,- / -,,0.00,0,0,0,0.00%,0.00,0,,0.0M
6173,BDB (6173) [s],BINA DARULAMAN BHD,,0.820,0.000 (0.00%),0.0595,51,2,29,8.37%,6.94%,4/21/2015,5/20/2015,0.0350,Currency,Construction - Main Market,0.820,0.820,-,15000 / 10000,0.815 / 0.855,0.715 - 2.480,4.61,10.98,7.47,1.68,2.05%,0.51,98.07,0.84,249.2M
6181,MALTON (6181) [s],MALTON BHD,,0.820,0.000 (0.00%),0.1268,51,6,27,5.68%,13.31%,12/29/2014,1/30/2015,3.0000,Percentage,Properties - Main Market,0.820,0.820,-,12100 / 19400,0.815 / 0.815,0.775 - 1.130,5.05,10.49,7.82,3.01,3.67%,0.53,101.93,0.8,367.7M
6203,KHEESAN (6203) [s],KHEE SAN BHD,,0.690,+0.010 (+1.47%),0.6719,51,13,28,4.47%,11.33%,1/11/2011,2/10/2011,2.0000,Percentage,Consumer Products - Main Market,0.690,0.690,6300,10000 / 9700,0.665 / 0.690,0.475 - 0.795,3.14,14.29,4.83,0.00,0.00%,0.45,142.81,0.48,61.5M
6211,KIALIM (6211) [s],KIA LIM BHD,,0.570,0.000 (0.00%),0.5102,51,20,2,27.09%,18.19%,,,,,Ind-Prod - Main Market,0.570,0.570,-,17000 / 2000,0.570 / 0.600,0.445 - 0.690,9.00,4.81,11.86,0.00,0.00%,0.43,110.49,0.52,35.3M
6238,HSL (6238) [s],HOCK SENG LEE BHD,,1.850,0.000 (0.00%),0.6053,51,0,51,3.99%,7.92%,6/5/2015,6/23/2015,8.0000,Percentage,Construction - Main Market,1.850,1.850,-,2100 / 14400,1.850 / 1.890,1.620 - 2.000,13.02,12.68,14.59,3.00,1.62%,1.65,122.86,1.51,1016.6M
6246,KHSB (6246),0.000 (0.00%),,,0.000 (0.00%),,44,21,0,-11.62%,16.89%,,,,,Properties - Main Market,-,-,-,0 / 0,- / -,,0.00,0,0,0,0.00%,0.00,0,,0.0M
6254,PDZ (6254) [s],PDZ HOLDINGS BHD,,0.105,0.000 (0.00%),0.0182,50,23,0,-38.07%,-31.46%,12/31/2008,1/14/2009,3.5000,Percentage,Trad/Serv - Main Market,0.105,0.105,-,918600 / 1724600,0.105 / 0.110,0.100 - 0.375,-4.40,-23.86,-0.44,0.00,0.00%,1.05,18.71,0.56,91.3M
6262,INNO (6262) [s],INNOPRISE PLANTATIONS BERHAD,,1.500,0.000 (0.00%),0.2727,51,15,7,1.68%,-5.85%,,,,,Plantation - Main Market,1.500,1.500,-,4000 / 9500,1.360 / 1.500,1.350 - 1.900,3.51,35.29,4.25,0.00,0.00%,1.24,33.67,4.46,286.9M
6289,SUNCITY (6289),0.000 (0.00%),,,0.000 (0.00%),,8,0,8,NA,NA,9/7/2010,10/7/2010,0.3100,Currency,Properties - Main Market,-,-,-,0 / 0,- / -,,0.00,0,0,0,0.00%,0.00,0,,0.0M
6297,BOXPAK (6297) [s],BOX-PAK (MALAYSIA) BHD,,2.390,0.000 (0.00%),0.8864,51,5,33,-2.30%,10.70%,4/22/2014,5/6/2014,7.5000,Percentage,Ind-Prod - Main Market,2.390,2.390,-,0 / 3500,0.000 / 2.480,2.000 - 2.440,6.30,14.54,16.44,7.50,3.14%,0.92,615.55,0.39,143.4M
6327,TWSPLNT (6327),0.000 (0.00%),,4.980,0.000 (0.00%),,42,10,14,12.24%,NA,12/21/2012,1/8/2013,0.0500,Currency,Plantation - Main Market,4.980,4.980,-,0 / 0,- / -,,0.00,0,0,0,0.00%,1.39,0,,3126.7M
6351,AMWAY (6351) [s],AMWAY (M) HOLDINGS BHD,,10.720,0.000 (0.00%),0.3021,50,0,50,8.11%,5.06%,6/2/2015,6/17/2015,0.1000,Currency,Trad/Serv - Main Market,10.720,10.720,-,900 / 600,10.720 / 10.800,10.140 - 12.060,49.01,15.85,67.64,54.96,5.13%,7.77,586.71,1.83,1762.3M
6378,TEKALA (6378),0.000 (0.00%),,0.265,0.000 (0.00%),0.0435,51,21,0,23.20%,-18.42%,10/14/2011,10/28/2011,2.0000,Percentage,Ind-Prod - Main Market,0.265,0.265,-,25000 / 10000,0.260 / 0.270,0.255 - 0.485,-16.29,-2.91,-9.12,0.00,0.00%,0.47,38.04,0.7,37.1M
6394,JERNEH (6394),0.000 (0.00%),,1.440,0.000 (0.00%),,10,1,0,NA,NA,7/19/2011,8/4/2011,1.8900,Currency,Finance - Main Market,-,-,-,0 / 0,- / -,,0.00,0,0,0,0.00%,0.91,0,,351.5M
6399,ASTRO (6399),-0.030 (-0.97%),,3.050,-0.030 (-0.97%),0.2899,11,0,11,NA,NA,6/29/2015,7/15/2015,0.0275,Currency,Trad/Serv - Main Market,3.070,2.980,24800,10400 / 2300,3.030 / 3.050,2.850 - 3.540,78.70,28.37,10.75,10.00,3.28%,22.33,102.04,2.99,15865.3M
6432,APOLLO (6432) [s],APOLLO FOOD HOLDINGS BHD,,4.700,0.000 (0.00%),0.5370,51,0,51,6.06%,4.14%,12/10/2014,1/9/2015,25.0000,Percentage,Consumer Products - Main Market,4.700,4.700,200,800 / 2000,4.700 / 4.760,4.120 - 5.200,10.17,14.86,31.62,24.99,5.32%,1.51,265.78,1.77,376.0M
6459,MNRB (6459),0.000 (0.00%),,3.840,0.000 (0.00%),0.2276,51,9,1,11.35%,1.95%,9/26/2014,10/29/2014,16.5000,Percentage,Finance - Main Market,3.840,3.840,-,3400 / 1000,3.820 / 4.100,3.560 - 4.790,9.47,6.41,59.87,16.55,4.31%,0.61,1119.34,384,818.2M
6483,KENANGA (6483),0.000 (0.00%),,0.690,0.000 (0.00%),0.5185,51,18,7,48.99%,-46.45%,6/12/2015,6/25/2015,0.0100,Currency,Finance - Main Market,0.690,0.690,288400,498100 / 700,0.690 / 0.715,0.550 - 0.820,3.34,17.38,3.97,0.00,0.00%,0.58,83.50,0.83,499.5M
6491,KFIMA (6491) [s],KUMPULAN FIMA BHD,,1.990,0.000 (0.00%),0.4000,51,0,51,-0.55%,4.39%,10/8/2014,10/15/2014,8.0000,Percentage,Trad/Serv - Main Market,1.990,1.990,-,6600 / 10000,1.990 / 2.010,1.750 - 2.350,8.66,8.61,23.11,7.96,4.00%,0.75,197.37,1.01,549.5M
6505,DELLOYD (6505) [s],DELLOYD VENTURES BHD,,5.130,0.000 (0.00%),1.0000,50,3,5,-10.25%,3.61%,10/1/2014,10/17/2014,5.0000,Percentage,Ind-Prod - Main Market,5.130,5.130,-,0 / 0,0.000 / 0.000,4.540 - 5.130,6.40,17.47,29.37,8.02,1.56%,1.12,452.92,1.13,495.5M
6521,SURIA (6521) [s],SURIA CAPITAL HOLDINGS BHD,,2.330,0.000 (0.00%),0.3043,51,3,17,-0.95%,-0.45%,7/8/2015,7/31/2015,0.0400,Currency,Trad/Serv - Main Market,2.330,2.330,-,1000 / 1900,2.310 / 2.490,2.050 - 2.970,6.24,12.28,18.98,7.00,3.00%,0.77,93.40,2.49,660.2M
6548,MPCORP (6548),0.000 (0.00%),,0.185,0.000 (0.00%),0.0299,52,45,0,-159.01%,-10.68%,,,,,Properties - Main Market,0.185,0.185,-,68000 / 20000,0.180 / 0.205,0.175 - 0.510,-10.28,-2.12,-8.74,0.00,0.00%,0.22,6.28,2.95,53.2M
6556,ANNJOO (6556),0.000 (0.00%),,0.950,0.000 (0.00%),0.0000,51,10,1,-226.46%,-29.81%,6/3/2015,6/23/2015,0.0100,Currency,Ind-Prod - Main Market,0.950,0.950,-,5000 / 9000,0.960 / 0.980,0.950 - 1.470,1.50,29.5,3.22,1.99,2.09%,0.44,424.81,0.22,475.6M
6572,KWANTAS (6572) [s],KWANTAS CORPORATION BHD,,1.750,0.000 (0.00%),0.1273,51,6,0,-384.48%,-29.62%,2/24/2015,3/20/2015,0.0500,Currency,Plantation - Main Market,1.750,1.750,-,10000 / 10000,1.700 / 1.890,1.680 - 2.230,-6.84,-6.14,-28.52,5.00,2.86%,0.42,504.88,0.35,545.4M
6599,AEON (6599) [s],AEON CO. (M) BHD,,3.100,0.000 (0.00%),0.2908,51,0,51,7.06%,7.84%,6/8/2015,7/8/2015,0.0500,Currency,Trad/Serv - Main Market,3.100,3.070,20500,25000 / 11000,3.090 / 3.100,2.690 - 4.100,11.79,20.22,15.33,11.01,3.55%,2.38,275.43,1.13,4352.4M
6602,BCB (6602),-0.010 (-0.98%),,1.010,-0.010 (-0.98%),0.2000,51,1,27,27.00%,10.88%,1/16/2015,2/16/2015,0.0300,Currency,Properties - Main Market,1.010,1.010,500,5000 / 1000,1.030 / 1.050,0.890 - 1.490,9.29,5.33,18.95,3.00,2.97%,0.50,194.10,0.52,202.2M
6637,PNEPCB (6637) [s],PNE PCB BHD,,1.040,0.000 (0.00%),0.7333,51,31,2,80.12%,483.04%,3/14/2013,4/15/2013,0.0100,Currency,Ind-Prod - Main Market,1.040,1.040,-,8000 / 58000,0.950 / 1.040,0.930 - 1.080,-1.13,-100,-1.04,0.00,0.00%,1.13,105.35,0.99,68.4M
6645,LITRAK (6645) [s],LINGKARAN TRANS KOTA HOLDINGS,,4.250,0.000 (0.00%),0.9247,51,1,12,9.14%,4.86%,3/16/2015,3/25/2015,0.1000,Currency,IPC - Main Market,4.250,4.250,-,10000 / 14000,4.150 / 4.250,3.390 - 4.320,25.65,15.91,26.72,19.98,4.70%,4.08,73.79,5.76,2193.0M
6653,KASSETS (6653),0.000 (0.00%),,0.070,0.000 (0.00%),,42,1,34,32.47%,NA,1/16/2013,2/6/2013,2.6000,Currency,Properties - Main Market,0.070,0.070,-,0 / 0,- / -,,182.13,0.01,482.65,41.56,593.71%,0.03,53.27,0.13,36.5M
6661,OSKPROP (6661) [s],OSK PROPERTY HOLDINGS BHD,,1.900,0.000 (0.00%),0.1204,51,5,22,28.09%,14.25%,4/16/2015,5/8/2015,0.0500,Currency,Properties - Main Market,1.900,1.900,-,10000 / 5200,1.900 / 1.910,1.770 - 2.850,23.36,3.66,51.86,9.89,5.21%,0.86,331.10,0.57,466.5M
6688,HWANG (6688),+0.010 (+0.50%),,2.010,+0.010 (+0.50%),0.7857,51,5,25,17.58%,10.83%,11/28/2014,12/18/2014,0.0250,Currency,Finance - Main Market,2.010,2.010,21000,15000 / 11000,2.010 / 2.020,1.790 - 2.070,6.13,10.21,19.69,252.90,125.82%,0.63,25.44,7.9,512.9M
6718,CRESNDO (6718) [s],CRESCENDO CORPORATION BHD,,2.330,0.000 (0.00%),0.1235,51,0,51,20.52%,11.44%,8/10/2015,8/28/2015,5.0000,Percentage,Properties - Main Market,2.330,2.330,-,9000 / 4600,2.330 / 2.360,2.230 - 3.040,14.59,4.27,54.57,16.00,6.87%,0.62,120.07,1.94,530.0M
6742,YTLPOWR (6742),0.000 (0.00%),,1.600,0.000 (0.00%),0.7500,51,0,51,2.40%,3.19%,10/29/2014,11/14/2014,0.1000,Currency,IPC - Main Market,1.610,1.590,178900,155400 / 238500,1.600 / 1.610,1.420 - 1.660,11.29,9.7,16.49,9.93,6.21%,1.10,176.55,0.91,11255.0M
6769,KELADI (6769),0.000 (0.00%),,0.290,0.000 (0.00%),0.1750,51,0,51,10.46%,6.48%,7/7/2015,7/30/2015,2.0000,Percentage,Properties - Main Market,0.290,0.290,10000,30000 / 40000,0.285 / 0.295,0.255 - 0.455,8.47,9.01,3.22,0.50,1.72%,0.76,9.15,3.17,219.9M
6807,PUNCAK (6807),+0.060 (+2.29%),,2.680,+0.060 (+2.29%),0.2813,51,4,16,12.53%,6.09%,7/11/2013,8/6/2013,0.0500,Currency,IPC - Main Market,2.700,2.660,484400,64700 / 8400,2.680 / 2.690,2.320 - 3.600,12.52,4.16,64.36,0.00,0.00%,0.52,227.33,1.18,1114.8M
6815,EUPE (6815) [s],EUPE CORPORATION BHD,,0.810,-0.005 (-0.61%),0.2459,50,1,44,18.23%,6.12%,11/11/2014,12/12/2014,0.0150,Currency,Properties - Main Market,0.810,0.810,11500,3500 / 62000,0.810 / 0.850,0.735 - 1.040,4.54,8.04,10.07,1.50,1.85%,0.36,131.01,0.62,103.7M
6831,UBG (6831),-2.480 (-100.00%),,,-2.480 (-100.00%),,6,0,6,NA,NA,,,,,-,-,-,-,0 / 0,- / -,,0.00,0,0,0,0.00%,0.00,0,,0.0M
6866,BERNAS (6866),0.000 (0.00%),,,0.000 (0.00%),,46,8,20,16.77%,6.71%,1/4/2013,1/29/2013,12.0000,Percentage,Consumer Products - Main Market,-,-,-,0 / 0,- / -,,0.00,0,0,0,0.00%,0.00,0,,0.0M
6874,KUB (6874) [s],KUB MALAYSIA BHD,,0.385,+0.005 (+1.32%),0.0741,51,26,1,-59.41%,119.73%,6/28/2011,7/20/2011,0.0240,Currency,Trad/Serv - Main Market,0.385,0.385,87000,35000 / 4600,0.380 / 0.385,0.365 - 0.635,4.26,18.08,2.13,0.00,0.00%,0.77,108.40,0.36,214.2M
6888,AXIATA (6888) [s],AXIATA GROUP BERHAD,,6.470,+0.070 (+1.09%),0.1837,29,2,17,3.08%,NA,6/2/2015,7/2/2015,0.1400,Currency,Trad/Serv - Main Market,6.470,6.400,1402000,103200 / 195600,6.460 / 6.470,6.290 - 7.270,10.37,24.66,26.24,22.02,3.40%,2.56,220.14,2.94,55687.3M
6904,SUBUR (6904) [s],SUBUR TIASA HOLDINGS BHD,,1.680,0.000 (0.00%),0.0686,51,1,1,-8.85%,-31.88%,2/4/2015,3/4/2015,5.0000,Percentage,Ind-Prod - Main Market,1.680,1.680,-,5000 / 1200,1.650 / 1.780,1.610 - 2.630,2.52,18.3,9.18,5.00,2.98%,0.46,461.04,0.36,316.0M
6912,PASDEC (6912) [s],PASDEC HOLDINGS BHD,,0.410,0.000 (0.00%),0.0842,51,26,0,27.10%,3.30%,8/27/2014,9/18/2014,0.0400,Currency,Properties - Main Market,0.410,0.410,-,30000 / 6300,0.390 / 0.420,0.370 - 0.845,0.59,42.71,0.96,3.99,9.73%,0.25,94.34,0.43,84.5M
6939,FIAMMA (6939) [s],FIAMMA HOLDINGS BHD,,1.860,0.000 (0.00%),0.1000,51,7,39,12.66%,11.61%,3/12/2015,4/10/2015,0.0600,Currency,Trad/Serv - Main Market,1.860,1.860,1000,5300 / 3000,1.780 / 1.860,1.800 - 2.400,11.65,6.47,28.77,7.96,4.28%,0.75,252.85,0.74,255.7M
6947,DIGI (6947) [s],DIGI.COM BHD,,5.580,+0.220 (+4.10%),0.1947,51,0,51,11.52%,8.11%,5/13/2015,6/5/2015,0.0610,Currency,IPC - Main Market,5.590,5.380,4831600,79000 / 10300,5.570 / 5.580,5.360 - 6.490,325.63,21.42,26.05,26.01,4.66%,69.75,91.22,6.12,43384.5M
6963,VS (6963) [s],V.S INDUSTRY BHD,,4.630,+0.010 (+0.22%),0.9802,51,6,15,22.93%,6.21%,7/13/2015,7/28/2015,0.0600,Currency,Ind-Prod - Main Market,4.660,4.630,129300,11500 / 9000,4.620 / 4.640,1.660 - 4.690,18.37,8.18,56.58,12.15,2.62%,1.50,954.24,0.49,953.2M
6971,KOBAY (6971) [s],KOBAY TECHNOLOGY BHD,,1.180,0.000 (0.00%),0.7931,51,14,7,17.52%,4.04%,12/29/2014,1/20/2015,0.0300,Currency,Ind-Prod - Main Market,1.180,1.180,-,10000 / 5900,1.160 / 1.210,0.950 - 1.240,5.59,10.61,11.12,3.00,2.54%,0.59,165.82,0.71,79.5M
6998,BINTAI (6998),+0.010 (+3.45%),,0.300,+0.010 (+3.45%),0.3778,51,20,2,-15.64%,25.70%,,,,,Trad/Serv - Main Market,0.315,0.300,1843000,115500 / 18600,0.300 / 0.305,0.215 - 0.440,4.34,10.64,2.82,0.00,0.00%,0.46,221.03,0.14,64.3M
7000,TRANMIL (7000),0.000 (0.00%),,,0.000 (0.00%),,7,6,0,NA,NA,,,,,Trad/Serv - Main Market,-,-,-,0 / 0,- / -,,0.00,0,0,0,0.00%,0.00,0,,0.0M
7002,NAKA (7002),0.000 (0.00%),,0.125,0.000 (0.00%),NaN,43,32,0,215.78%,NA,,,,,Ind-Prod - Main Market,0.125,0.125,-,0 / 0,0.000 / 0.000,0.125 - 0.125,-8.46,-3.21,-3.89,0.00,0.00%,0.27,16.55,0.76,6.9M
7003,Y&G (7003) [s],Y&G CORPORATION BHD,,1.500,0.000 (0.00%),0.6981,51,24,17,28.77%,18.67%,6/11/2015,6/24/2015,0.0500,Currency,Properties - Main Market,1.500,1.500,-,42000 / 600,1.500 / 1.650,0.760 - 1.820,10.32,11.18,13.42,5.00,3.33%,1.15,89.03,1.68,299.1M
7004,MULTICO (7004) [s],MULTI-CODE ELECTRONICS INDS,,1.120,0.000 (0.00%),0.0333,51,7,2,1.16%,11.06%,10/15/2014,11/7/2014,0.0500,Currency,Ind-Prod - Main Market,1.120,1.120,9000,2000 / 22000,1.120 / 1.140,1.100 - 1.700,1.76,29.79,3.76,8.00,7.14%,0.52,215.08,0.52,49.7M
7005,BIG (7005) [s],B.I.G. INDUSTRIES BHD,,0.420,+0.020 (+5.00%),0.0769,51,11,0,28.13%,-18.22%,,,,,Ind-Prod - Main Market,0.420,0.410,16800,23000 / 11000,0.390 / 0.420,0.380 - 0.900,-19.25,-2.57,-16.36,0.00,0.00%,0.49,154.17,0.27,20.2M
7006,LATITUD (7006) [s],LATITUDE TREE HOLDINGS BHD,,5.860,+0.010 (+0.17%),0.8281,51,4,12,19.99%,10.31%,12/29/2014,1/29/2015,0.0850,Currency,Consumer Products - Main Market,5.860,5.860,600,5000 / 1000,5.900 / 5.950,2.970 - 6.460,18.53,7.89,74.31,8.50,1.45%,1.46,692.53,0.85,569.7M
7007,ARK (7007) [s],ARK RESOURCES BHD,,0.440,0.000 (0.00%),0.2308,51,21,1,-29.32%,6.53%,,,,,Construction - Main Market,0.440,0.440,-,10000 / 4800,0.380 / 0.440,0.380 - 0.640,1.37,65.67,0.67,0.00,0.00%,0.90,24.93,1.76,18.9M
7008,AUTOV (7008),0.000 (0.00%),,2.050,0.000 (0.00%),,9,0,9,NA,NA,6/13/2011,6/22/2011,0.0250,Currency,Ind-Prod - Main Market,-,-,-,0 / 0,- / -,,0.00,0,0,0,0.00%,1.74,0,,122.0M
7010,HOOVER (7010) [s],GRAND HOOVER BHD,,0.560,+0.015 (+2.75%),0.2400,51,29,1,-94.00%,38.94%,,,,,Properties - Main Market,0.560,0.510,9100,5000 / 9400,0.520 / 0.560,0.500 - 0.750,5.23,9.23,6.07,0.00,0.00%,0.48,161.72,0.35,22.4M
7013,HUBLINE (7013) [s],HUBLINE BHD,,0.020,0.000 (0.00%),0.1250,51,8,0,-34.15%,-18.67%,5/13/2010,5/31/2010,0.0020,Currency,Trad/Serv - Main Market,0.020,0.015,885600,12394500 / 53658700,0.015 / 0.020,0.015 - 0.055,-581.50,-0.17,-11.63,0.00,0.00%,1.00,8.65,0.23,64.8M
7014,YLI (7014) [s],YLI HOLDINGS BHD,,0.725,-0.005 (-0.68%),0.0000,51,14,0,130.07%,-29.85%,11/19/2010,12/8/2010,0.0100,Currency,Ind-Prod - Main Market,0.730,0.720,100000,15000 / 22000,0.720 / 0.730,0.725 - 1.030,-0.36,-131.82,-0.55,0.00,0.00%,0.47,122.80,0.59,73.5M
7016,CHUAN (7016),0.000 (0.00%),,0.500,0.000 (0.00%),0.0678,51,7,1,-0.09%,7.49%,7/29/2015,8/12/2015,0.0056,Currency,Trad/Serv - Main Market,0.500,0.500,-,6000 / 10000,0.500 / 0.590,0.480 - 0.775,8.51,4.02,12.43,1.14,2.28%,0.34,443.63,0.11,83.6M
7017,KOMARK (7017),0.000 (0.00%),,0.420,0.000 (0.00%),0.1020,51,9,0,-36.11%,-18.05%,11/14/2013,12/13/2013,0.0050,Currency,Ind-Prod - Main Market,0.420,0.420,-,10000 / 23000,0.420 / 0.450,0.395 - 0.640,-11.12,-4.24,-9.90,0.00,0.00%,0.47,111.89,0.38,52.3M
7018,CME (7018) [s],CME GROUP BHD,,0.070,0.000 (0.00%),0.2500,51,22,0,35.00%,11.87%,,,,,Ind-Prod - Main Market,0.070,0.070,400000,688000 / 1195000,0.070 / 0.075,0.055 - 0.115,3.61,10.61,0.66,0.00,0.00%,0.38,4.33,1.62,30.9M
7020,YKGI (7020) [s],YKGI HOLDINGS BERHAD,,0.220,0.000 (0.00%),0.1000,51,18,0,-42.58%,-21.09%,6/26/2014,7/21/2014,0.0100,Currency,Ind-Prod - Main Market,0.220,0.220,-,20000 / 105500,0.205 / 0.220,0.200 - 0.400,-15.43,-2.34,-9.41,1.00,4.55%,0.36,165.15,0.13,76.6M
7022,GTRONIC (7022) [s],GLOBETRONICS TECHNOLOGY BHD,,6.070,+0.120 (+2.02%),0.8647,51,0,51,16.73%,6.94%,6/16/2015,7/2/2015,4.0000,Percentage,Technology - Main Market,6.100,5.970,61800,1300 / 4000,6.060 / 6.070,3.770 - 6.430,23.98,25.31,23.98,22.97,3.78%,6.07,128.11,4.74,1707.2M
7023,BGYEAR (7023),0.000 (0.00%),,0.070,0.000 (0.00%),0.1818,48,22,0,-14.67%,-15.41%,12/31/2008,1/19/2009,3.0000,Percentage,Construction - Main Market,0.070,0.070,-,0 / 0,- / -,0.050 - 0.160,-4.20,0.91,7.73,0.00,0.00%,-0.04,7.37,0.95,3.6M
7025,WOODLAN (7025) [s],WOODLANDOR HOLDINGS BHD,,0.500,0.000 (0.00%),0.1176,51,19,1,7.37%,36.29%,,,,,Ind-Prod - Main Market,0.500,0.500,-,5000 / 4700,0.450 / 0.500,0.480 - 0.650,3.90,12.56,3.98,0.00,0.00%,0.49,80.40,0.62,20.0M
7027,PETONE (7027),0.000 (0.00%),,0.055,0.000 (0.00%),NaN,51,33,4,-13.72%,-11.65%,,,,,Trad/Serv - Main Market,0.055,0.055,-,0 / 0,0.000 / 0.000,0.055 - 0.055,-4.30,0.66,8.29,0.00,0.00%,-0.03,25.81,0.21,2.8M
7028,ZECON (7028) [s],ZECON BHD,,0.765,0.000 (0.00%),0.0714,51,24,1,-38.61%,-24.64%,,,,,Construction - Main Market,0.765,0.765,-,4900 / 5000,0.725 / 0.755,0.740 - 1.090,-22.16,-5.57,-13.74,0.00,0.00%,1.23,134.58,0.57,91.1M
7029,MASTER (7029) [s],MASTER-PACK GROUP BERHAD,,0.715,-0.005 (-0.69%),0.1000,51,26,9,2.33%,27.33%,4/24/2015,5/18/2015,0.0150,Currency,Ind-Prod - Main Market,0.715,0.715,1000,10000 / 21500,0.660 / 0.750,0.695 - 0.895,6.08,9.19,7.78,0.00,0.00%,0.56,138.65,0.52,39.1M
7031,AMTEL (7031),0.000 (0.00%),,0.820,0.000 (0.00%),0.4706,50,23,0,-42.15%,24.99%,6/5/2014,6/23/2014,0.0400,Currency,Technology - Main Market,0.820,0.820,-,3000 / 2000,0.700 / 0.820,0.660 - 1.000,1.92,49.4,1.66,3.96,4.83%,0.95,69.58,1.18,40.4M
7033,HIGHTEC (7033) [s],KUMPULAN H&L HIGH-TECH BHD,,1.160,0.000 (0.00%),0.6296,50,15,0,23.33%,13.17%,5/18/2015,5/28/2015,0.0200,Currency,Ind-Prod - Main Market,1.160,1.160,-,3000 / 3700,1.030 / 1.260,0.820 - 1.360,7.99,6.98,16.61,1.50,1.29%,0.56,60.79,1.91,42.4M
7034,TGUAN (7034) [s],THONG GUAN INDUSTRIES BHD,,1.930,+0.020 (+1.05%),0.1260,51,2,1,0.84%,0.92%,7/27/2015,8/18/2015,4.0000,Percentage,Ind-Prod - Main Market,1.930,1.930,2000,2000 / 12000,1.920 / 1.970,1.770 - 3.040,3.81,15.15,12.74,11.00,5.70%,0.58,680.18,0.28,203.1M
7035,CCK (7035) [s],CCK CONSOLIDATED HOLDINGS BHD,,0.770,-0.010 (-1.28%),0.0000,51,0,51,-9.02%,5.53%,6/3/2015,6/30/2015,0.0200,Currency,Consumer Products - Main Market,0.770,0.770,5000,5000 / 55000,0.770 / 0.850,0.770 - 1.030,6.44,11.96,6.44,1.49,1.94%,0.77,306.06,0.25,119.6M
7036,BORNOIL (7036),0.000 (0.00%),,0.660,0.000 (0.00%),0.1795,51,42,4,-92.09%,25.57%,,,,,Trad/Serv - Main Market,0.665,0.655,5292900,328700 / 14000,0.655 / 0.660,0.590 - 0.980,3.04,27.5,2.40,0.00,0.00%,0.84,24.36,2.71,246.1M
7040,MMM (7040),-0.015 (-100.00%),,,-0.015 (-100.00%),,7,7,0,NA,NA,,,,,Trad/Serv - Main Market,-,-,-,0 / 0,- / -,,0.00,0,0,0,0.00%,0.00,0,,0.0M
7042,PATIMAS (7042),0.000 (0.00%),,,0.000 (0.00%),,45,32,1,-18.12%,-13.06%,,,,,Technology - Main Market,-,-,-,0 / 0,- / -,,21.29,0,-1.49,0.00,0.00%,0.00,1.65,0,-M
7043,JMR (7043) [s],JMR CONGLOMERATION BHD,,1.160,0.000 (0.00%),0.5862,51,17,0,73.54%,51.26%,3/26/2015,4/27/2015,0.0300,Currency,Ind-Prod - Main Market,1.160,1.160,-,15000 / 20000,1.020 / 1.150,0.990 - 1.280,0.87,168.12,0.69,0.00,0.00%,1.47,44.82,2.59,147.1M
7044,AUTOAIR (7044) [s],AUTOAIR HOLDINGS BHD,,0.020,0.000 (0.00%),0.0270,49,30,1,21.85%,-9.89%,,,,,Ind-Prod - Main Market,0.020,0.020,-,0 / 0,0.000 / 0.000,0.015 - 0.200,-66.14,-0.14,-14.55,0.00,0.00%,0.09,13.91,0.14,0.9M
7045,SCOMIES (7045) [s],SCOMI ENERGY SERVICES BHD,,0.370,+0.010 (+2.78%),0.0476,51,6,10,120.34%,-47.03%,12/11/2009,12/23/2009,0.7500,Percentage,Trad/Serv - Main Market,0.370,0.370,38000,47000 / 73000,0.370 / 0.375,0.335 - 1.070,9.97,11.25,3.29,0.00,0.00%,1.12,66.62,0.56,866.4M
7047,FAJAR (7047) [s],FAJARBARU BUILDER GRP BHD,,0.425,0.000 (0.00%),0.2373,51,7,11,-415.72%,-29.18%,7/1/2015,7/31/2015,2.5000,Percentage,Construction - Main Market,0.425,0.425,4000,51000 / 10000,0.425 / 0.435,0.355 - 0.650,1.81,35.71,1.19,0.00,0.00%,0.65,113.76,0.37,139.8M
7048,ATLAN (7048),0.000 (0.00%),,4.700,0.000 (0.00%),0.3333,50,4,16,8.01%,14.45%,5/21/2015,6/8/2015,0.1000,Currency,Trad/Serv - Main Market,4.700,4.700,-,2000 / 18100,4.500 / 4.700,4.500 - 5.100,11.67,25.66,18.32,55.03,11.71%,2.99,288.26,1.63,1192.2M
7049,OCI (7049),-0.200 (-100.00%),,,-0.200 (-100.00%),,7,7,0,NA,NA,,,,,Ind-Prod - Main Market,-,-,-,0 / 0,- / -,,0.00,0,0,0,0.00%,0.00,0,,0.0M
7050,WONG (7050) [s],WONG ENGINEERING CORPORATION,,0.595,+0.010 (+1.71%),0.3396,51,27,0,-13.38%,-11.71%,4/28/2010,5/10/2010,0.0100,Currency,Ind-Prod - Main Market,0.595,0.590,6100,1000 / 26700,0.590 / 0.595,0.505 - 0.770,-7.50,-13.22,-4.50,0.00,0.00%,0.99,32.62,1.82,54.5M
7051,AMTEK (7051) [s],AMTEK HOLDINGS BHD,,0.510,0.000 (0.00%),0.7222,51,37,1,-135.28%,59.71%,,,,,Consumer Products - Main Market,0.510,0.510,-,5000 / 0,0.250 / 0.000,0.250 - 0.610,-5.85,-18.15,-2.81,0.00,0.00%,1.06,85.76,0.59,25.5M
7052,PADINI (7052) [s],PADINI HOLDINGS BHD,,1.350,+0.020 (+1.50%),0.0294,51,2,43,5.45%,8.80%,6/3/2015,6/22/2015,0.0250,Currency,Consumer Products - Main Market,1.350,1.330,463000,241900 / 10200,1.330 / 1.350,1.330 - 2.010,18.78,11.73,11.51,10.00,7.41%,2.20,144.70,0.93,888.2M
7053,SEEHUP (7053) [s],SEE HUP CONSOLIDATED BHD,,1.080,0.000 (0.00%),0.6981,51,19,1,5.80%,-22.59%,4/14/2011,5/4/2011,5.4000,Percentage,Trad/Serv - Main Market,1.080,1.080,-,9000 / 3000,1.030 / 1.160,0.710 - 1.240,0.69,136.71,0.79,0.00,0.00%,0.94,171.81,0.63,55.2M
7054,AASIA (7054) [s],ASTRAL ASIA BHD,,1.040,-0.060 (-5.45%),0.1304,51,19,0,17.44%,19.37%,8/21/2014,9/15/2014,0.0200,Currency,Plantation - Main Market,1.050,1.040,5000,17500 / 16700,1.040 / 1.090,1.010 - 1.240,-1.75,-35.14,-2.96,2.00,1.92%,0.61,21.58,4.82,124.8M
7055,PLB (7055) [s],PLB ENGINEERING BHD,,1.490,0.000 (0.00%),0.0000,50,7,20,24.96%,9.23%,2/25/2015,3/19/2015,10.0000,Percentage,Construction - Main Market,1.490,1.490,-,2000 / 5000,1.410 / 1.500,1.490 - 1.790,7.19,12.18,12.23,5.00,3.36%,0.88,185.36,0.8,122.4M
7059,METALR (7059),0.000 (0.00%),,0.500,0.000 (0.00%),0.3450,51,25,0,-35.14%,-20.09%,,,,,Ind-Prod - Main Market,0.500,0.500,-,2000 / 0,0.260 / 0.000,0.105 - 1.250,-82.88,-2.04,-24.45,0.00,0.00%,1.69,34.91,1.43,23.9M
7060,NHFATT (7060) [s],NEW HOONG FATT HOLDINGS BHD,,2.420,0.000 (0.00%),0.1228,51,3,5,-11.86%,-3.56%,6/11/2015,7/9/2015,0.0700,Currency,Consumer Products - Main Market,2.420,2.420,-,192800 / 800,2.420 / 2.720,2.350 - 2.920,4.34,13.12,18.44,12.01,4.96%,0.57,269.88,0.9,181.9M
7061,ABRIC (7061) [s],ABRIC BHD,,0.535,-0.010 (-1.83%),0.3377,51,18,5,34.62%,20.37%,1/21/2015,2/6/2015,0.3000,Currency,Ind-Prod - Main Market,0.550,0.535,433500,120300 / 102800,0.535 / 0.545,0.405 - 0.790,74.35,1.09,49.07,23.48,43.89%,0.81,13.95,3.84,75.2M
7062,KHIND (7062) [s],KHIND HOLDINGS BHD,,2.280,+0.180 (+8.57%),0.3878,51,4,0,7.97%,9.20%,10/14/2014,10/29/2014,0.1000,Currency,Consumer Products - Main Market,2.280,2.200,1000,12100 / 7800,2.010 / 2.280,1.900 - 2.880,9.04,8.88,25.68,9.99,4.38%,0.80,810.31,0.28,91.3M
7064,LATEXX (7064),0.000 (0.00%),,2.140,0.000 (0.00%),,43,10,1,-94.40%,NA,6/27/2012,7/16/2012,0.0150,Currency,Ind-Prod - Main Market,2.140,2.140,-,0 / 0,- / -,,0.00,0,0,0,0.00%,2.43,0,,485.1M
7066,YONGTAI (7066),-0.005 (-1.08%),,0.460,-0.005 (-1.08%),-0.0060,51,34,1,-18.16%,-1.85%,,,,,Trad/Serv - Main Market,0.470,0.460,966000,427200 / 10700,0.455 / 0.460,0.465 - 1.300,-8.50,-12.89,-3.57,0.00,0.00%,1.10,84.79,0.54,55.4M
7068,AKN (7068),0.000 (0.00%),,,0.000 (0.00%),,8,2,6,NA,NA,,,,,Technology - Main Market,-,-,-,0 / 0,- / -,,0.00,0,0,0,0.00%,0.00,0,,0.0M
7070,ASUPREM (7070) [s],ASTRAL SUPREME BHD,,0.170,0.000 (0.00%),0.5625,51,32,0,-2.14%,-4.77%,,,,,Ind-Prod - Main Market,0.170,0.165,56000,218000 / 255000,0.165 / 0.170,0.125 - 0.205,3.00,94.44,0.18,0.00,0.00%,2.83,29.85,0.57,49.6M
7071,TAKASO (7071) [s],TAKASO RESOURCES BHD,,0.480,+0.010 (+2.13%),0.4946,51,39,0,-18.80%,2.43%,,,,,Consumer Products - Main Market,0.480,0.480,11000,70000 / 69900,0.480 / 0.485,0.250 - 0.715,-11.54,-16,-3.00,0.00,0.00%,1.85,18.77,2.56,98.1M
7073,SEACERA (7073) [s],SEACERA GROUP BERHAD,,0.710,+0.015 (+2.16%),0.0833,51,9,8,13.66%,14.92%,9/8/2015,9/25/2015,0.0300,Currency,Ind-Prod - Main Market,0.710,0.695,3800,5000 / 1000,0.700 / 0.705,0.650 - 1.370,3.44,18.44,3.85,2.95,4.15%,0.63,49.87,1.42,128.8M
7075,MAEMODE (7075),0.000 (0.00%),,0.090,0.000 (0.00%),NaN,43,4,0,-45.89%,NA,1/21/2013,2/22/2013,1.0000,Percentage,Ind-Prod - Main Market,0.090,0.090,-,0 / 0,- / -,0.090 - 0.090,0.00,0,0,0,0.00%,0.23,0,,9.6M
7076,CBIP (7076) [s],CB INDUSTRIAL PRODUCT HOLDING,,2.020,+0.020 (+1.00%),0.0644,51,0,51,9.40%,10.27%,6/11/2015,7/2/2015,0.0300,Currency,Ind-Prod - Main Market,2.030,2.020,19900,10200 / 13300,2.010 / 2.020,1.810 - 5.070,14.97,11.74,17.21,5.50,2.72%,1.76,105.84,1.91,1072.5M
7077,GSB (7077),0.000 (0.00%),,0.095,0.000 (0.00%),0.1818,51,27,2,-138.24%,373.64%,,,,,Ind-Prod - Main Market,0.095,0.095,71600,108400 / 290000,0.095 / 0.100,0.085 - 0.140,-2.53,-32.76,-0.29,0.00,0.00%,0.83,4.30,2.21,41.8M
7078,AZRB (7078) [s],AHMAD ZAKI RESOURCES BHD,,0.670,+0.015 (+2.29%),0.4250,51,3,17,53.51%,-9.19%,7/15/2015,8/14/2015,0.0200,Currency,Construction - Main Market,0.670,0.665,80000,22900 / 10000,0.670 / 0.675,0.585 - 0.785,3.49,27.8,2.41,0.00,0.00%,0.97,135.84,0.49,323.0M
7079,TIGER (7079) [s],TIGER SYNERGY BERHAD,,0.105,0.000 (0.00%),0.0000,51,25,0,1,151.16%,130.80%,,,,,Properties - Main Market,0.105,0.100,4590100,14907400 / 1472700,0.100 / 0.105,0.105 - 0.155,-1.82,-26.25,-0.40,0.00,0.00%,0.48,2.48,4.23,83.9M
7080,PERMAJU (7080) [s],PERMAJU INDUSTRIES BHD,,0.200,0.000 (0.00%),0.0000,51,32,0,-12.80%,-10.78%,,,,,Trad/Serv - Main Market,0.200,0.200,40000,42000 / 18000,0.200 / 0.205,0.200 - 0.315,-4.43,-5.93,-3.37,0.00,0.00%,0.26,86.98,0.23,37.5M
7081,PHARMA (7081) [s],PHARMANIAGA BHD,,7.230,+0.100 (+1.40%),0.9262,51,3,9,10.68%,6.58%,6/1/2015,6/25/2015,0.0700,Currency,Trad/Serv - Main Market,7.240,7.130,149600,11100 / 100,7.200 / 7.220,4.220 - 7.470,18.82,18.83,38.40,34.20,4.73%,3.54,821.29,0.88,1871.7M
7082,SYF (7082) [s],SYF RESOURCES BHD,,0.400,0.000 (0.00%),0.0115,51,22,15,28.37%,21.50%,,,,,Consumer Products - Main Market,0.400,0.400,37000,120000 / 169000,0.395 / 0.400,0.390 - 1.260,8.68,12.12,3.30,0.00,0.00%,1.05,43.38,0.92,244.5M
7083,ANALABS (7083) [s],ANALABS RESOURCES BHD,,1.750,0.000 (0.00%),0.2895,51,2,36,-21.67%,4.60%,2/25/2015,3/19/2015,0.0300,Currency,Trad/Serv - Main Market,1.750,1.750,-,10000 / 22000,1.660 / 1.700,1.640 - 2.020,3.31,14.31,12.23,2.99,1.71%,0.47,256.38,0.68,98.5M
7084,QL (7084) [s],QL RESOURCES BHD,,4.070,+0.120 (+3.04%),0.9479,51,0,51,9.26%,8.76%,8/28/2014,9/12/2014,0.0350,Currency,Consumer Products - Main Market,4.090,3.980,677100,40200 / 19800,4.060 / 4.070,3.160 - 4.120,13.30,26.62,15.29,3.50,0.86%,3.54,216.70,1.88,5079.5M
7085,LTKM (7085) [s],LTKM BHD,,2.100,-0.040 (-1.87%),-0.0078,51,5,14,19.80%,10.16%,3/16/2015,4/8/2015,10.0000,Percentage,Consumer Products - Main Market,2.170,2.100,221200,100 / 3000,2.090 / 2.100,2.140 - 7.250,20.82,1.97,106.37,9.00,4.29%,0.41,444.17,0.47,91.1M
7086,ABLEGRP (7086),0.000 (0.00%),,0.140,0.000 (0.00%),0.2500,51,37,4,101.82%,-0.95%,,,,,Ind-Prod - Main Market,0.140,0.140,-,55000 / 99200,0.135 / 0.140,0.120 - 0.200,2.50,31.11,0.45,0.00,0.00%,0.78,9.01,1.55,36.9M
7087,MAGNI (7087) [s],MAGNI-TECH INDUSTRIES BHD,,3.770,+0.040 (+1.07%),0.8839,51,0,51,16.94%,12.52%,3/30/2015,4/20/2015,0.0500,Currency,Consumer Products - Main Market,3.860,3.730,277300,1500 / 500,3.770 / 3.780,2.400 - 3.950,19.14,7.85,48.03,13.00,3.45%,1.50,660.32,0.57,409.0M
7088,POHUAT (7088) [s],POH HUAT RESOURCES HOLDINGS,,2.140,+0.030 (+1.42%),0.7886,51,5,12,22.00%,9.10%,7/20/2015,8/12/2015,3.0000,Percentage,Consumer Products - Main Market,2.140,2.130,115000,8000 / 7100,2.130 / 2.140,1.170 - 2.400,14.63,8.26,25.90,8.02,3.75%,1.21,373.40,0.57,228.4M
7089,LIIHEN (7089) [s],LII HEN INDUSTRIES BHD,,4.800,+0.070 (+1.48%),1.0000,51,6,28,9.65%,12.15%,7/8/2015,7/27/2015,4.0000,Percentage,Consumer Products - Main Market,4.850,4.750,30400,500 / 600,4.750 / 4.800,2.350 - 4.800,15.69,9.21,52.11,18.00,3.75%,1.45,691.11,0.69,288.0M
7090,AHEALTH (7090) [s],APEX HEALTHCARE BHD,,4.020,0.000 (0.00%),0.8598,51,0,51,3.06%,7.36%,5/29/2015,6/17/2015,0.0600,Currency,Consumer Products - Main Market,4.020,4.020,-,5000 / 7400,4.010 / 4.150,3.100 - 4.170,12.28,14.29,28.13,9.54,2.37%,1.76,433.95,0.93,470.9M
7091,UNIMECH (7091) [s],UNIMECH GROUP BHD,,1.410,0.000 (0.00%),0.0278,51,0,51,3.41%,7.26%,7/7/2015,7/23/2015,0.0450,Currency,Trad/Serv - Main Market,1.410,1.410,2000,30000 / 20000,1.390 / 1.410,1.400 - 1.760,7.12,10.33,13.65,6.09,4.32%,0.74,206.24,0.68,167.0M
7092,JPK (7092),0.000 (0.00%),,,0.000 (0.00%),,9,8,0,NA,NA,,,,,Ind-Prod - Main Market,-,-,-,0 / 0,- / -,,0.00,0,0,0,0.00%,0.00,0,,0.0M
7094,EUROSP (7094) [s],EUROSPAN HOLDINGS BHD,,0.830,0.000 (0.00%),0.3409,50,11,0,58.77%,-255.99%,1/6/2011,1/24/2011,0.4000,Currency,Consumer Products - Main Market,0.830,0.830,-,1000 / 5500,0.785 / 0.850,0.680 - 1.120,2.94,26.43,3.14,0.00,0.00%,0.78,125.75,0.66,36.9M
7095,PIE (7095) [s],P.I.E. INDUSTRIAL BHD,,5.700,+0.170 (+3.07%),0.1180,51,0,51,8.60%,5.61%,5/27/2015,6/16/2015,0.1300,Currency,Ind-Prod - Main Market,5.830,5.600,4100,3000 / 600,5.600 / 5.700,5.490 - 7.270,12.24,10.78,52.88,20.00,3.51%,1.32,671.02,0.85,437.8M
7096,GPA (7096) [s],GPA HOLDINGS BHD,,0.105,+0.005 (+5.00%),0.2857,51,17,0,-28.12%,-20.02%,10/6/2011,10/21/2011,2.0000,Percentage,Ind-Prod - Main Market,0.105,0.100,67100,2115900 / 2260400,0.100 / 0.105,0.075 - 0.180,-5.36,-17.8,-0.59,0.00,0.00%,0.95,14.66,0.72,103.0M
7097,TAWIN (7097),0.000 (0.00%),,0.280,0.000 (0.00%),0.0000,51,21,0,-42.02%,-17.58%,7/10/2008,8/8/2008,0.0500,RM,Ind-Prod - Main Market,0.280,0.280,-,47000 / 10000,0.280 / 0.320,0.280 - 0.540,-10.08,-3.02,-9.27,0.00,0.00%,0.30,710.95,0.04,18.0M
7098,HLSCORP (7098),0.000 (0.00%),,0.005,0.000 (0.00%),,42,28,2,-24.03%,NA,,,,,Consumer Products - Main Market,0.005,0.005,-,0 / 0,- / -,,-21.56,0.16,3.17,0.00,0.00%,-0.03,5.20,0.1,0.5M
7099,SMPC (7099) [s],SMPC CORPORATION BHD,,0.580,0.000 (0.00%),0.0417,51,26,2,31.08%,63.82%,12/9/2014,1/5/2015,1.0000,Ratio,Ind-Prod - Main Market,0.580,0.580,-,4000 / 5000,0.580 / 0.620,0.560 - 1.040,3.26,10.16,5.71,0.00,0.00%,0.33,188.88,0.31,41.9M
7100,UCHITEC (7100) [s],UCHI TECHNOLOGIES BHD,,1.610,+0.030 (+1.90%),0.7209,51,0,51,-1.12%,-10.31%,6/26/2015,7/23/2015,0.0500,Currency,Ind-Prod - Main Market,1.610,1.580,154100,500 / 16200,1.600 / 1.610,1.300 - 1.730,19.13,15.03,10.71,10.89,6.76%,2.88,26.12,6.16,604.2M
7103,SPRITZER (7103) [s],SPRITZER BHD,,1.930,0.000 (0.00%),0.2500,50,0,50,13.73%,10.59%,12/2/2014,12/18/2014,0.0400,Currency,Consumer Products - Main Market,2.000,1.930,104000,2000 / 500,1.930 / 1.970,1.780 - 2.380,10.84,12.21,15.81,3.93,2.04%,1.32,176.85,1.09,273.0M
7104,JOTECH (7104),0.000 (0.00%),,0.160,0.000 (0.00%),,11,0,11,NA,NA,,,,,Ind-Prod - Main Market,-,-,-,0 / 0,- / -,,0.00,0,0,0,0.00%,1.13,0,,179.4M
7105,HCK (7105) [s],HCK CAPITAL GROUP BERHAD,,3.160,0.000 (0.00%),0.3739,51,27,6,33.24%,17.94%,7/9/2012,7/31/2012,0.0150,Currency,Ind-Prod - Main Market,3.160,3.160,-,4000 / 10000,3.120 / 3.400,2.730 - 3.880,15.66,12.15,26.00,0.00,0.00%,1.90,133.17,2.37,175.2M
7106,SUPERMX (7106) [s],SUPERMAX CORPORATION BHD,,2.100,+0.030 (+1.45%),0.6049,51,0,51,-8.90%,7.77%,6/22/2015,7/8/2015,6.0000,Percentage,Ind-Prod - Main Market,2.120,2.090,304500,100 / 5100,2.100 / 2.100,1.610 - 2.420,10.29,14.28,14.71,5.03,2.40%,1.47,147.47,1.42,1421.8M
7107,OFI (7107) [s],ORIENTAL FOOD INDUSTRIES HLDG,,5.880,+0.020 (+0.34%),0.9405,51,1,28,11.70%,7.62%,6/4/2015,6/29/2015,0.0500,Currency,Consumer Products - Main Market,5.960,5.880,3000,3900 / 8000,5.860 / 5.890,2.400 - 6.100,14.06,15.9,36.98,9.49,1.61%,2.24,395.05,1.49,352.8M
7108,PERDANA (7108),0.000 (0.00%),,1.520,0.000 (0.00%),0.5532,51,9,9,59.14%,-15.65%,12/10/2014,12/22/2014,0.0200,Currency,Trad/Serv - Main Market,1.530,1.520,60200,1000 / 380500,1.530 / 1.530,1.000 - 1.940,10.62,15.23,9.98,1.98,1.30%,1.62,44.02,3.45,1137.7M
7109,OCTAGON (7109),0.000 (0.00%),,0.070,0.000 (0.00%),NaN,49,25,0,-4.46%,-17.29%,5/6/2008,5/23/2008,0.0400,RM,Ind-Prod - Main Market,0.070,0.070,-,0 / 0,0.000 / 0.000,0.070 - 0.070,11.96,-0.5,-13.87,0.00,0.00%,-0.06,18.07,0.39,11.7M
7110,HAISAN (7110),0.000 (0.00%),,0.065,0.000 (0.00%),NaN,24,20,0,41.39%,NA,,,,,Trad/Serv - Main Market,0.065,0.065,-,0 / 0,0.000 / 0.000,0.065 - 0.065,14.33,-0.76,-8.60,0.00,0.00%,-0.11,41.88,0.16,5.2M
7111,WEIDA (7111) [s],WEIDA (M) BHD,,1.540,+0.030 (+1.99%),0.3721,51,0,51,4.45%,8.23%,11/4/2014,11/21/2014,0.0300,Currency,Ind-Prod - Main Market,1.540,1.540,10000,18000 / 10000,1.550 / 1.580,1.220 - 2.080,4.59,11.22,13.73,3.00,1.95%,0.52,263.09,0.59,195.4M
7112,INGRESS (7112),0.000 (0.00%),,1.840,0.000 (0.00%),,43,7,17,46.64%,NA,7/6/2012,7/16/2012,0.0400,Currency,Ind-Prod - Main Market,1.840,1.840,-,0 / 0,- / -,,0.00,0,0,0,0.00%,0.66,0,,155.3M
7113,TOPGLOV (7113) [s],TOP GLOVE CORPORATION BHD,,6.750,+0.100 (+1.50%),0.9803,50,0,50,0.38%,7.38%,6/30/2015,7/15/2015,0.0800,Currency,Ind-Prod - Main Market,6.790,6.650,886000,200 / 12000,7.290 / 6.760,4.260 - 6.800,15.17,18.7,36.10,16.02,2.37%,2.84,385.65,1.75,4167.9M
7114,DNONCE (7114),+0.020 (+4.76%),,0.440,+0.020 (+4.76%),0.8140,50,18,5,16.78%,15.89%,,,,,Ind-Prod - Main Market,0.440,0.430,395000,100000 / 48900,0.435 / 0.440,0.265 - 0.480,19.89,1.99,22.08,0.00,0.00%,0.40,522.96,0.08,19.8M
7115,SKBSHUT (7115) [s],SKB SHUTTERS CORPORATION BHD,,0.620,0.000 (0.00%),0.5000,51,16,0,-24.68%,19.52%,2/18/2010,3/19/2010,3.0000,Percentage,Ind-Prod - Main Market,0.620,0.620,-,5000 / 0,0.550 / 0.000,0.440 - 0.800,1.89,16.94,3.66,0.00,0.00%,0.32,149.94,0.41,24.8M
7116,AIKBEE (7116),0.000 (0.00%),,0.990,0.000 (0.00%),,10,10,0,NA,NA,,,,,Ind-Prod - Main Market,-,-,-,0 / 0,- / -,,0.00,0,0,0,0.00%,0.67,0,,49.7M
7117,CENTURY (7117) [s],CENTURY LOGISTICS HOLDINGS BHD,,0.960,+0.025 (+2.67%),0.2070,51,1,49,1.20%,9.34%,6/1/2015,6/17/2015,0.0100,Currency,Trad/Serv - Main Market,0.965,0.935,4286300,112100 / 643100,0.955 / 0.960,0.545 - 2.550,12.28,10.29,9.33,4.95,5.16%,1.26,75.35,1.27,354.3M
7118,LIPO (7118),0.000 (0.00%),,1.240,0.000 (0.00%),,13,0,13,NA,NA,1/27/2012,2/29/2012,0.0300,Currency,Ind-Prod - Main Market,-,-,-,0 / 0,- / -,,6.80,10.99,11.28,3.01,2.43%,0.75,119.09,1.04,62.4M
7119,DEGEM (7119) [s],DEGEM BHD,,0.935,0.000 (0.00%),0.4342,51,1,37,4.19%,5.83%,7/23/2014,8/20/2014,3.0000,Percentage,Consumer Products - Main Market,0.935,0.935,-,3500 / 3000,0.935 / 1.020,0.770 - 1.150,8.26,6.22,15.03,1.49,1.59%,0.51,173.48,0.54,122.4M
7120,ACOSTEC (7120) [s],ACOUSTECH BHD,,0.680,0.000 (0.00%),0.7273,51,11,0,-161.63%,-70.05%,4/24/2014,5/14/2014,0.2000,Currency,Consumer Products - Main Market,0.680,0.680,-,10000 / 20000,0.665 / 0.700,0.560 - 0.725,-4.50,-25.19,-2.70,22.91,33.69%,1.13,90.15,0.75,114.6M
7121,XIANLNG (7121) [s],XIAN LENG HOLDINGS BHD,,0.565,0.000 (0.00%),0.8986,51,21,4,21.65%,-17.13%,6/25/2008,7/7/2008,1.0000,Percentage,Consumer Products - Main Market,0.565,0.565,-,12000 / 6400,0.565 / 0.575,0.255 - 0.600,1.54,56.5,1.00,0.00,0.00%,0.87,16.96,3.33,40.9M
7122,YFG (7122) [s],YFG BERHAD,,0.070,0.000 (0.00%),0.1333,51,25,3,111.78%,124.51%,,,,,Trad/Serv - Main Market,0.070,0.070,32000,588500 / 548700,0.065 / 0.070,0.060 - 0.135,-16.16,-8.86,-0.79,0.00,0.00%,1.43,14.00,0.5,42.6M
7123,PWORTH (7123) [s],PRICEWORTH INTERNATIONAL BHD,,0.160,0.000 (0.00%),0.0800,51,7,4,-23.66%,-30.76%,12/15/2009,12/31/2009,1.0000,Ratio,Ind-Prod - Main Market,0.160,0.160,378500,44000 / 532500,0.160 / 0.165,0.150 - 0.275,0.70,41.03,0.39,0.00,0.00%,0.29,36.59,0.44,72.7M
7125,EMIVEST (7125),0.000 (0.00%),,0.895,0.000 (0.00%),,11,0,11,NA,NA,2/16/2012,2/28/2012,0.0400,Currency,Consumer Products - Main Market,-,-,-,0 / 0,- / -,,0.00,0,0,0,0.00%,0.60,0,,107.4M
7126,LONBISC (7126) [s],LONDON BISCUITS BHD,,0.800,+0.010 (+1.27%),0.6438,50,0,50,-3.74%,2.13%,1/30/2014,2/28/2014,1.0000,Percentage,Consumer Products - Main Market,0.800,0.790,68000,13200 / 50000,0.795 / 0.800,0.565 - 0.930,3.86,10.2,7.84,0.00,0.00%,0.39,202.75,0.39,149.2M
7127,UKB (7127),-1.380 (-100.00%),,,-1.380 (-100.00%),,6,0,6,NA,NA,8/23/2010,9/9/2010,0.0600,Currency,Ind-Prod - Main Market,-,-,-,0 / 0,- / -,,0.00,0,0,0,0.00%,0.00,0,,0.0M
7128,CAMRES (7128) [s],CAM RESOURCES BHD,,0.305,+0.005 (+1.67%),0.2903,51,0,51,2.96%,1.83%,3/19/2015,1/1/1970,1.0000,Ratio,Consumer Products - Main Market,0.305,0.305,3300,41000 / 7000,0.295 / 0.320,0.260 - 0.415,6.83,8.27,3.69,0.00,0.00%,0.56,112.45,0.27,58.5M
7129,ASIAFLE (7129) [s],ASIA FILE CORPORATION BHD,,3.600,0.000 (0.00%),0.0602,51,0,51,-0.71%,3.81%,5/13/2015,5/27/2015,6.0000,Percentage,Consumer Products - Main Market,3.600,3.600,1000,20000 / 10200,3.550 / 3.600,3.350 - 7.500,10.82,13.67,26.34,13.91,3.86%,1.48,203.27,1.77,686.1M
7130,KPOWER (7130) [s],KUMPULAN POWERNET BHD,,0.450,0.000 (0.00%),0.5714,51,39,0,-25.85%,-1.65%,,,,,Ind-Prod - Main Market,0.450,0.450,-,20000 / 20000,0.430 / 0.500,0.250 - 0.600,-14.37,-6.39,-7.04,0.00,0.00%,0.92,11.18,4.03,25.4M
7131,ACME (7131) [s],ACME HOLDINGS BERHAD,,0.300,0.000 (0.00%),0.1333,52,16,4,47.16%,12.55%,,,,,Ind-Prod - Main Market,0.300,0.300,-,6000 / 27200,0.270 / 0.330,0.240 - 0.690,13.55,7.94,3.78,0.00,0.00%,1.08,31.10,0.96,62.9M
7132,SMISCOR (7132) [s],SMIS CORPORATION BHD,,0.710,0.000 (0.00%),0.2571,51,10,5,-26.95%,9.35%,6/26/2015,7/24/2015,0.0250,Currency,Ind-Prod - Main Market,0.710,0.680,55000,3000 / 3000,0.705 / 0.750,0.620 - 0.970,3.18,12.63,5.62,2.52,3.55%,0.40,359.90,0.2,29.9M
7133,ULICORP (7133) [s],UNITED U-LI CORPORATION BHD,,4.340,+0.070 (+1.64%),1.0246,51,1,37,1.53%,7.79%,7/20/2015,8/12/2015,0.0300,Currency,Ind-Prod - Main Market,4.360,4.250,264800,14600 / 65600,4.340 / 4.350,1.430 - 4.270,11.34,24.06,18.04,7.00,1.61%,2.73,131.48,3.3,572.9M
7134,PW (7134) [s],PW CONSOLIDATED BHD,,1.230,+0.010 (+0.82%),0.1290,51,9,10,26.23%,6.05%,3/19/2015,4/20/2015,0.0800,Currency,Consumer Products - Main Market,1.230,1.220,12000,5000 / 3000,1.210 / 1.220,1.150 - 1.770,4.67,8.49,14.49,0.00,0.00%,0.40,392.99,0.31,87.8M
7136,HIGH5 (7136),0.000 (0.00%),,0.040,0.000 (0.00%),0.1667,48,17,0,-21.71%,-13.89%,,,,,Consumer Products - Main Market,0.040,0.040,-,0 / 0,- / -,0.030 - 0.090,28.10,-0.27,-14.61,0.00,0.00%,-0.08,19.43,0.21,16.3M
7137,UMS (7137) [s],UMS HOLDINGS BHD,,2.580,0.000 (0.00%),0.2167,51,1,34,3.01%,6.19%,4/1/2015,4/15/2015,4.0000,Percentage,Trad/Serv - Main Market,2.580,2.580,-,6500 / 1000,2.300 / 2.880,2.450 - 3.050,6.20,11.93,21.63,0.00,0.00%,0.74,193.73,1.33,105.0M
7139,NICE (7139) [s],NICHE CAPITAL EMAS HLDG BHD,,0.125,0.000 (0.00%),0.1923,51,31,0,-27.88%,5.87%,,,,,Consumer Products - Main Market,0.125,0.125,622000,196600 / 8000,0.120 / 0.125,0.100 - 0.230,0.22,625,0.02,0.00,0.00%,1.39,8.37,1.49,33.6M
7140,OKA (7140) [s],OKA CORPORATION BHD,,0.840,+0.010 (+1.20%),0.3718,51,2,32,19.37%,10.95%,3/18/2015,3/31/2015,0.0100,Currency,Ind-Prod - Main Market,0.845,0.830,266800,86800 / 38300,0.835 / 0.840,0.550 - 1.330,11.79,9.13,9.20,3.92,4.67%,1.08,104.84,0.8,130.8M
7141,HUATLAI (7141),0.000 (0.00%),,3.450,0.000 (0.00%),1.0000,51,21,1,6.33%,14.91%,11/26/2013,12/12/2013,0.0400,Currency,Consumer Products - Main Market,3.450,3.450,-,2000 / 20000,2.700 / 3.450,2.100 - 3.450,16.01,8.04,42.90,0.00,0.00%,1.29,1731.45,345,268.8M
7143,STONE (7143) [s],STONE MASTER CORPORATION BHD,,0.245,0.000 (0.00%),0.0109,51,39,0,23.79%,-6.98%,,,,,Ind-Prod - Main Market,0.245,0.240,390000,445800 / 255000,0.240 / 0.250,0.235 - 1.150,-6.66,-14.67,-1.67,0.00,0.00%,0.98,36.28,0.68,56.6M
7145,PSIPTEK (7145) [s],PRINSIPTEK CORPORATION BHD,,0.165,0.000 (0.00%),0.1404,51,6,9,44.14%,-661.74%,7/21/2008,8/22/2008,4.0000,Percentage,Construction - Main Market,0.165,0.160,416000,621400 / 709300,0.160 / 0.165,0.125 - 0.410,2.33,15.42,1.07,0.00,0.00%,0.36,86.92,0.19,52.3M
7146,AEM (7146),+0.005 (+3.85%),,0.135,+0.005 (+3.85%),0.0417,51,32,1,74.33%,330.37%,,,,,Ind-Prod - Main Market,0.135,0.135,70000,860900 / 103000,0.130 / 0.135,0.130 - 0.250,-2.38,-27,-0.50,0.00,0.00%,0.64,28.10,0.48,24.6M
7147,TRACOMA (7147),0.000 (0.00%),,0.060,0.000 (0.00%),,9,9,0,NA,NA,9/3/2008,9/26/2008,1.0000,Percentage,Ind-Prod - Main Market,-,-,-,0 / 0,- / -,,0.00,0,0,0,0.00%,-0.03,0,,2.9M
7148,CCMDBIO (7148) [s],CCM DUOPHARMA BIOTECH BHD,,2.680,+0.030 (+1.13%),0.1224,51,0,51,4.79%,2.55%,5/27/2015,6/25/2015,0.1450,Currency,Consumer Products - Main Market,2.690,2.680,32400,11600 / 7000,2.680 / 2.710,2.500 - 3.970,17.69,10.3,26.01,17.42,6.50%,1.82,130.53,2.05,373.8M
7149,ENGKAH (7149) [s],ENG KAH CORPORATION BHD,,2.010,0.000 (0.00%),0.1077,51,0,51,-9.57%,-8.46%,7/29/2015,8/18/2015,3.5000,Percentage,Consumer Products - Main Market,2.010,2.010,-,4000 / 3200,1.960 / 2.050,1.940 - 2.590,7.67,25.44,7.90,10.48,5.21%,1.95,90.34,2.22,142.2M
7152,JAYCORP (7152) [s],JAYCORP BHD,,0.705,0.000 (0.00%),0.4722,51,4,7,-14.25%,-7.12%,12/16/2014,12/29/2014,0.0350,Currency,Consumer Products - Main Market,0.710,0.705,40000,9000 / 17000,0.705 / 0.735,0.620 - 0.800,6.19,12.24,5.76,3.49,4.95%,0.76,174.41,0.4,96.4M
7153,KOSSAN (7153) [s],KOSSAN RUBBER INDUSTRIES BHD,,6.580,+0.130 (+2.02%),0.8971,51,0,51,9.83%,9.57%,7/1/2015,7/22/2015,0.0450,Currency,Ind-Prod - Main Market,6.630,6.560,244500,6200 / 27800,6.570 / 6.590,3.790 - 6.900,17.92,27.61,23.83,7.00,1.06%,4.95,213.05,3.09,4207.7M
7154,CAELY (7154) [s],CAELY HOLDINGS BHD,,0.520,+0.015 (+2.97%),0.7391,49,16,13,52.07%,9.10%,9/25/2014,10/21/2014,0.0100,Currency,Consumer Products - Main Market,0.520,0.505,58100,12000 / 109100,0.505 / 0.520,0.350 - 0.580,4.89,11.09,4.69,1.07,2.06%,0.54,118.12,0.44,41.6M
7155,SKPRES (7155) [s],SKP RESOURCES BHD,,1.250,+0.030 (+2.46%),1.0305,50,1,24,12.03%,9.36%,10/1/2014,10/27/2014,0.0170,Currency,Ind-Prod - Main Market,1.250,1.220,3038700,20000 / 168500,1.240 / 1.250,0.575 - 1.230,23.00,31.97,3.91,1.42,1.14%,7.35,57.36,2.18,1343.6M
7156,BASWELL (7156),0.000 (0.00%),,,0.000 (0.00%),,8,8,0,NA,NA,,,,,Consumer Products - Main Market,-,-,-,0 / 0,- / -,,0.00,0,0,0,0.00%,0.00,0,,0.0M
7157,CYL (7157) [s],CYL CORPORATION BHD,,0.730,0.000 (0.00%),0.7407,50,2,5,3.26%,-3.56%,6/4/2015,6/23/2015,5.0000,Percentage,Ind-Prod - Main Market,0.730,0.730,210000,10000 / 10900,0.715 / 0.750,0.530 - 0.800,0.08,12.81,5.70,4.50,6.16%,0.01,72.83,1,73.0M
7158,SCOMI (7158),+0.010 (+4.76%),,0.220,+0.010 (+4.76%),0.0417,49,8,4,81.65%,-33.87%,8/26/2009,9/11/2009,5.0000,Percentage,Trad/Serv - Main Market,0.225,0.215,2393500,410500 / 1130200,0.220 / 0.225,0.210 - 0.450,7.93,6.94,3.17,0.00,0.00%,0.55,115.70,0.19,341.9M
7160,PENTA (7160) [s],PENTAMASTER CORPORATION BHD,,0.735,+0.020 (+2.80%),0.9222,49,12,4,120.29%,-24.24%,7/11/2008,7/31/2008,8.0000,Percentage,Technology - Main Market,0.755,0.735,4964100,440300 / 58500,0.735 / 0.740,0.320 - 0.770,11.86,13.08,5.62,0.00,0.00%,1.55,68.03,1.08,97.9M
7161,FUTUTEC (7161) [s],FUTUTECH BHD,,1.600,+0.010 (+0.63%),0.7674,51,27,16,31.54%,29.72%,6/18/2015,7/15/2015,6.0000,Percentage,Construction - Main Market,1.600,1.590,22000,14400 / 20000,1.590 / 1.600,0.940 - 1.800,16.10,9.2,17.39,3.00,1.88%,1.48,72.99,2.19,145.2M
7162,ASTINO (7162) [s],ASTINO BHD,,0.740,+0.010 (+1.37%),0.0744,49,0,49,3.70%,7.04%,2/26/2015,3/27/2015,0.0291,Currency,Ind-Prod - Main Market,0.745,0.730,55000,19000 / 5000,0.740 / 0.745,0.650 - 1.860,9.75,7.44,9.95,2.91,3.93%,0.73,187.26,0.4,202.8M
7163,PJBUMI (7163) [s],PJBUMI BHD,,0.320,+0.010 (+3.23%),0.5128,48,25,0,-14.77%,21.17%,,,,,Trad/Serv - Main Market,0.320,0.300,28000,10000 / 4000,0.300 / 0.320,0.220 - 0.415,4.32,19.51,1.64,0.00,0.00%,0.84,26.93,1.19,16.0M
7164,KNM (7164) [s],KNM GROUP BHD,,0.625,+0.005 (+0.81%),0.3116,48,2,14,-17.51%,-9.68%,3/29/2011,4/19/2011,0.0300,Currency,Ind-Prod - Main Market,0.640,0.620,36649000,1115400 / 1759200,0.625 / 0.630,0.410 - 1.100,2.68,18.22,3.43,0.00,0.00%,0.49,88.48,0.71,1211.8M
7165,SGB (7165) [s],SPRING GALLERY BERHAD,,0.675,+0.005 (+0.75%),0.9615,48,30,2,101.33%,26.83%,,,,,Consumer Products - Main Market,0.690,0.665,6803900,5277700 / 53900,0.670 / 0.675,0.300 - 0.690,52.05,3.41,19.79,0.00,0.00%,1.78,23.36,2.89,70.5M
7167,JOHOTIN (7167) [s],JOHORE TIN BHD,,1.480,+0.010 (+0.68%),0.3333,48,5,3,14.36%,9.74%,7/1/2015,7/24/2015,0.0350,Currency,Ind-Prod - Main Market,1.510,1.480,57000,5000 / 15000,1.470 / 1.500,1.320 - 1.800,6.40,11.68,12.67,2.02,1.36%,0.75,369.58,0.4,138.1M
7168,PRG (7168) [s],FURNIWEB INDUSTRIAL PRODUCTS,,0.650,0.000 (0.00%),0.1613,48,3,0,-4.47%,-16.43%,7/9/2015,7/28/2015,0.0100,Currency,Ind-Prod - Main Market,0.650,0.650,40000,10000 / 29000,0.645 / 0.665,0.600 - 0.910,2.27,38.24,1.70,1.10,1.69%,0.87,69.09,0.94,94.2M
7169,DOMINAN (7169) [s],DOMINANT ENTERPRISE BHD,,1.750,+0.010 (+0.57%),0.8551,48,0,48,9.64%,6.72%,3/16/2015,4/8/2015,0.0200,Currency,Ind-Prod - Main Market,1.750,1.730,37000,1800 / 4000,1.730 / 1.740,1.160 - 1.850,10.13,10.73,16.31,3.00,1.71%,1.09,398.17,0.44,240.7M
7170,LFECORP (7170) [s],LFE CORPORATION BHD,,0.200,+0.015 (+8.11%),0.5517,48,24,3,226.81%,818.84%,,,,,Trad/Serv - Main Market,0.200,0.200,1000,20000 / 49000,0.190 / 0.200,0.120 - 0.265,3.29,35.71,0.56,0.00,0.00%,1.18,38.38,0.52,17.0M
7171,CENBOND (7171),+0.030 (+2.17%),,1.410,+0.030 (+2.17%),0.6053,48,0,48,0.79%,5.08%,12/11/2014,12/23/2014,0.0300,Currency,Ind-Prod - Main Market,1.410,1.390,23900,12100 / 5000,1.410 / 1.420,1.180 - 1.560,8.73,11.06,12.75,5.00,3.55%,0.97,131.43,1.07,169.2M
7172,PMBTECH (7172) [s],PMB TECHNOLOGY BHD,,0.925,0.000 (0.00%),0.0635,47,0,47,-0.77%,1.47%,5/25/2015,6/11/2015,2.0000,Percentage,Ind-Prod - Main Market,0.925,0.925,-,0 / 2000,0.000 / 0.950,0.865 - 1.810,5.14,10.29,8.99,3.00,3.24%,0.53,468.02,0.2,71.7M
7173,TOYOINK (7173) [s],TOYO INK GROUP BHD,,0.690,0.000 (0.00%),0.5246,47,4,16,32.70%,-6.78%,1/22/2015,2/16/2015,1.0000,Percentage,Ind-Prod - Main Market,0.690,0.690,-,1000 / 23000,0.560 / 0.700,0.530 - 0.835,1.32,45.7,1.51,1.02,1.48%,0.61,76.51,0.9,73.8M
7174,CAB (7174) [s],CAB CAKARAN CORPORATION BHD,,1.090,+0.030 (+2.83%),0.8308,47,14,1,10.97%,9.76%,,,,,Consumer Products - Main Market,1.100,1.070,52500,40000 / 15000,1.080 / 1.090,0.550 - 1.200,3.67,25.83,4.22,0.00,0.00%,0.95,527.51,0.21,154.2M
7176,TPC (7176),+0.005 (+1.19%),,0.425,+0.005 (+1.19%),0.4884,45,23,5,82.23%,8.87%,,,,,Consumer Products - Main Market,0.425,0.425,5000,10000 / 1000,0.430 / 0.450,0.320 - 0.535,22.04,6.89,6.17,0.00,0.00%,1.52,107.21,0.4,34.0M
7178,YSPSAH (7178) [s],Y.S.P.SOUTHEAST ASIA HOLDING,,2.660,+0.040 (+1.53%),1.0000,47,0,47,9.28%,4.60%,7/23/2015,8/25/2015,0.0650,Currency,Consumer Products - Main Market,2.690,2.630,790000,20800 / 11300,2.650 / 2.660,1.200 - 2.660,8.32,17.39,15.30,6.48,2.44%,1.45,157.72,1.69,354.4M
